Organisation Code,Organisation Label,Effective Date,Organisational Unit,Service Division Label,Category Internal Name,Purpose,Detailed Expenditure Code,Payment Date,Transaction Number,Irrecoverable VAT Amount,Amount,Capital Or Revenue,Benificiary Name,Procurement Card
Http://opendatacommunities.org/id/metropolitan-district-council/leeds,Leeds City Council,31/08/2016,Childrens Services,Safeguarding Targeted & Specialist,Third Party Payments,Section 17,551,05-Aug-2016,1608-00001,0.00,846.00,R,A A Domestics,No
Http://opendatacommunities.org/id/metropolitan-district-council/leeds,Leeds City Council,31/08/2016,Environment & Housing,Leeds Building Services,Supplies and Services,Operational Materials,205,03-Aug-2016,1608-00002,0.00,97.74,R,A Andrews & Sons (Marbles & Tiles),No
Http://opendatacommunities.org/id/metropolitan-district-council/leeds,Leeds City Council,31/08/2016,Environment & Housing,Leeds Building Services,Supplies and Services,Operational Materials,205,03-Aug-2016,1608-00003,0.00,19.04,R,A Andrews & Sons (Marbles & Tiles),No
Http://opendatacommunities.org/id/metropolitan-district-council/leeds,Leeds City Council,31/08/2016,Environment & Housing,Leeds Building Services,Supplies and Services,Operational Materials,205,03-Aug-2016,1608-00004,0.00,5.78,R,A Andrews & Sons (Marbles & Tiles),No
Http://opendatacommunities.org/id/metropolitan-district-council/leeds,Leeds City Council,31/08/2016,Environment & Housing,Leeds Building Services,Supplies and Services,Operational Materials,205,26-Aug-2016,1608-00005,0.00,5.09,R,A Andrews & Sons (Marbles & Tiles),No
Http://opendatacommunities.org/id/metropolitan-district-council/leeds,Leeds City Council,31/08/2016,Environment & Housing,Housing Leeds Service,Capital,Other Costs,7,16-Aug-2016,1608-00006,0.00,168.15,C,REDACTED PERSONAL DATA,No
Http://opendatacommunities.org/id/metropolitan-district-council/leeds,Leeds City Council,31/08/2016,City Development,Libraries  Arts & Heritage,Supplies and Services,Operational Furniture And Equipment,203,09-Aug-2016,1608-00007,0.00,173.19,R,A C Entertainment Technologies Ltd,No
Http://opendatacommunities.org/id/metropolitan-district-council/leeds,Leeds City Council,31/08/2016,City Development,Libraries  Arts & Heritage,Supplies and Services,Operational Materials,205,15-Aug-2016,1608-00008,0.00,115.30,R,A C Entertainment Technologies Ltd,No
Http://opendatacommunities.org/id/metropolitan-district-council/leeds,Leeds City Council,31/08/2016,City Development,Libraries  Arts & Heritage,Supplies and Services,Operational Furniture And Equipment,203,24-Aug-2016,1608-00009,0.00,147.50,R,A C Entertainment Technologies Ltd,No
Http://opendatacommunities.org/id/metropolitan-district-council/leeds,Leeds City Council,31/08/2016,City Development,Libraries  Arts & Heritage,Supplies and Services,Operational Furniture And Equipment,203,24-Aug-2016,1608-00010,0.00,265.99,R,A C Entertainment Technologies Ltd,No
Http://opendatacommunities.org/id/metropolitan-district-council/leeds,Leeds City Council,31/08/2016,City Development,Libraries  Arts & Heritage,Supplies and Services,Operational Furniture And Equipment,203,30-Aug-2016,1608-00011,0.00,547.24,R,A C Entertainment Technologies Ltd,No
Http://opendatacommunities.org/id/metropolitan-district-council/leeds,Leeds City Council,31/08/2016,Strategic Landlord,Housing Management,Transport,Miscellaneous Transport Related Costs,324,31-Aug-2016,1608-00012,0.00,15.30,R,REDACTED PERSONAL DATA,No
Http://opendatacommunities.org/id/metropolitan-district-council/leeds,Leeds City Council,31/08/2016,Environment & Housing,Housing Leeds Service,Capital,Other Costs,7,11-Aug-2016,1608-00013,0.00,50.00,C,REDACTED PERSONAL DATA,No
Http://opendatacommunities.org/id/metropolitan-district-council/leeds,Leeds City Council,31/08/2016,Environment & Housing,Parks and Countryside,Supplies and Services,Bought In Professional Services,277,25-Aug-2016,1608-00014,0.00,2341.98,R,REDACTED COMMERCIAL CONFIDENTIALITY,No
Http://opendatacommunities.org/id/metropolitan-district-council/leeds,Leeds City Council,31/08/2016,Strategic Landlord,Property and Contracts,Premises,Maintenance Of Buildings,101,12-Aug-2016,1608-00015,0.00,1176.00,R,A Fox Industrial Doors,No
Http://opendatacommunities.org/id/metropolitan-district-council/leeds,Leeds City Council,31/08/2016,Environment & Housing,Leeds Building Services,Supplies and Services,Operational Materials,205,05-Aug-2016,1608-00016,0.00,75.00,R,A J H  Pump Supply & Repair Ltd,No
Http://opendatacommunities.org/id/metropolitan-district-council/leeds,Leeds City Council,31/08/2016,Environment & Housing,Leeds Building Services,Supplies and Services,Operational Materials,205,05-Aug-2016,1608-00017,0.00,109.39,R,A J H  Pump Supply & Repair Ltd,No
Http://opendatacommunities.org/id/metropolitan-district-council/leeds,Leeds City Council,31/08/2016,Environment & Housing,Leeds Building Services,Supplies and Services,Operational Materials,205,05-Aug-2016,1608-00018,0.00,215.00,R,A J H  Pump Supply & Repair Ltd,No
Http://opendatacommunities.org/id/metropolitan-district-council/leeds,Leeds City Council,31/08/2016,Environment & Housing,Leeds Building Services,Supplies and Services,Operational Materials,205,05-Aug-2016,1608-00019,0.00,1545.00,R,A J H  Pump Supply & Repair Ltd,No
Http://opendatacommunities.org/id/metropolitan-district-council/leeds,Leeds City Council,31/08/2016,Environment & Housing,Leeds Building Services,Supplies and Services,Operational Materials,205,05-Aug-2016,1608-00020,0.00,79.50,R,A J H  Pump Supply & Repair Ltd,No
Http://opendatacommunities.org/id/metropolitan-district-council/leeds,Leeds City Council,31/08/2016,Environment & Housing,Leeds Building Services,Supplies and Services,Operational Materials,205,05-Aug-2016,1608-00021,0.00,131.09,R,A J H  Pump Supply & Repair Ltd,No
Http://opendatacommunities.org/id/metropolitan-district-council/leeds,Leeds City Council,31/08/2016,Environment & Housing,Leeds Building Services,Supplies and Services,Operational Materials,205,05-Aug-2016,1608-00022,0.00,54.50,R,A J H  Pump Supply & Repair Ltd,No
Http://opendatacommunities.org/id/metropolitan-district-council/leeds,Leeds City Council,31/08/2016,Environment & Housing,Leeds Building Services,Supplies and Services,Operational Materials,205,05-Aug-2016,1608-00023,0.00,296.00,R,A J H  Pump Supply & Repair Ltd,No
Http://opendatacommunities.org/id/metropolitan-district-council/leeds,Leeds City Council,31/08/2016,Environment & Housing,Leeds Building Services,Supplies and Services,Operational Materials,205,05-Aug-2016,1608-00024,0.00,75.00,R,A J H  Pump Supply & Repair Ltd,No
Http://opendatacommunities.org/id/metropolitan-district-council/leeds,Leeds City Council,31/08/2016,Environment & Housing,Leeds Building Services,Supplies and Services,Operational Materials,205,05-Aug-2016,1608-00025,0.00,29.50,R,A J H  Pump Supply & Repair Ltd,No
Http://opendatacommunities.org/id/metropolitan-district-council/leeds,Leeds City Council,31/08/2016,Environment & Housing,Leeds Building Services,Supplies and Services,Operational Materials,205,05-Aug-2016,1608-00026,0.00,216.00,R,A J H  Pump Supply & Repair Ltd,No
Http://opendatacommunities.org/id/metropolitan-district-council/leeds,Leeds City Council,31/08/2016,Environment & Housing,Leeds Building Services,Supplies and Services,Operational Materials,205,05-Aug-2016,1608-00027,0.00,47.50,R,A J H  Pump Supply & Repair Ltd,No
Http://opendatacommunities.org/id/metropolitan-district-council/leeds,Leeds City Council,31/08/2016,Environment & Housing,Leeds Building Services,Supplies and Services,Operational Materials,205,05-Aug-2016,1608-00028,0.00,56.73,R,A J H  Pump Supply & Repair Ltd,No
Http://opendatacommunities.org/id/metropolitan-district-council/leeds,Leeds City Council,31/08/2016,Environment & Housing,Leeds Building Services,Supplies and Services,Operational Materials,205,05-Aug-2016,1608-00029,0.00,83.50,R,A J H  Pump Supply & Repair Ltd,No
Http://opendatacommunities.org/id/metropolitan-district-council/leeds,Leeds City Council,31/08/2016,Environment & Housing,Leeds Building Services,Supplies and Services,Operational Materials,205,05-Aug-2016,1608-00030,0.00,46.50,R,A J H  Pump Supply & Repair Ltd,No
Http://opendatacommunities.org/id/metropolitan-district-council/leeds,Leeds City Council,31/08/2016,Environment & Housing,Leeds Building Services,Supplies and Services,Operational Materials,205,05-Aug-2016,1608-00031,0.00,598.00,R,A J H  Pump Supply & Repair Ltd,No
Http://opendatacommunities.org/id/metropolitan-district-council/leeds,Leeds City Council,31/08/2016,Environment & Housing,Leeds Building Services,Supplies and Services,Operational Materials,205,08-Aug-2016,1608-00032,0.00,72.00,R,A J H  Pump Supply & Repair Ltd,No
Http://opendatacommunities.org/id/metropolitan-district-council/leeds,Leeds City Council,31/08/2016,Environment & Housing,Leeds Building Services,Supplies and Services,Other Hired And Contracted Services,265,10-Aug-2016,1608-00033,0.00,447.00,R,A J H  Pump Supply & Repair Ltd,No
Http://opendatacommunities.org/id/metropolitan-district-council/leeds,Leeds City Council,31/08/2016,Environment & Housing,Leeds Building Services,Supplies and Services,Other Hired And Contracted Services,265,10-Aug-2016,1608-00034,0.00,1805.00,R,A J H  Pump Supply & Repair Ltd,No
Http://opendatacommunities.org/id/metropolitan-district-council/leeds,Leeds City Council,31/08/2016,Environment & Housing,Leeds Building Services,Supplies and Services,Other Hired And Contracted Services,265,10-Aug-2016,1608-00035,0.00,761.00,R,A J H  Pump Supply & Repair Ltd,No
Http://opendatacommunities.org/id/metropolitan-district-council/leeds,Leeds City Council,31/08/2016,Environment & Housing,Leeds Building Services,Supplies and Services,Operational Materials,205,10-Aug-2016,1608-00036,0.00,24.24,R,A J H  Pump Supply & Repair Ltd,No
Http://opendatacommunities.org/id/metropolitan-district-council/leeds,Leeds City Council,31/08/2016,Environment & Housing,Leeds Building Services,Supplies and Services,Operational Materials,205,10-Aug-2016,1608-00037,0.00,166.14,R,A J H  Pump Supply & Repair Ltd,No
Http://opendatacommunities.org/id/metropolitan-district-council/leeds,Leeds City Council,31/08/2016,Environment & Housing,Leeds Building Services,Supplies and Services,Operational Materials,205,10-Aug-2016,1608-00038,0.00,12.07,R,A J H  Pump Supply & Repair Ltd,No
Http://opendatacommunities.org/id/metropolitan-district-council/leeds,Leeds City Council,31/08/2016,Environment & Housing,Leeds Building Services,Supplies and Services,Operational Materials,205,10-Aug-2016,1608-00039,0.00,27.38,R,A J H  Pump Supply & Repair Ltd,No
Http://opendatacommunities.org/id/metropolitan-district-council/leeds,Leeds City Council,31/08/2016,Environment & Housing,Leeds Building Services,Supplies and Services,Operational Materials,205,10-Aug-2016,1608-00040,0.00,102.75,R,A J H  Pump Supply & Repair Ltd,No
Http://opendatacommunities.org/id/metropolitan-district-council/leeds,Leeds City Council,31/08/2016,Environment & Housing,Leeds Building Services,Supplies and Services,Operational Materials,205,10-Aug-2016,1608-00041,0.00,17.95,R,A J H  Pump Supply & Repair Ltd,No
Http://opendatacommunities.org/id/metropolitan-district-council/leeds,Leeds City Council,31/08/2016,Environment & Housing,Leeds Building Services,Supplies and Services,Operational Materials,205,10-Aug-2016,1608-00042,0.00,33.95,R,A J H  Pump Supply & Repair Ltd,No
Http://opendatacommunities.org/id/metropolitan-district-council/leeds,Leeds City Council,31/08/2016,Environment & Housing,Leeds Building Services,Supplies and Services,Operational Materials,205,10-Aug-2016,1608-00043,0.00,87.49,R,A J H  Pump Supply & Repair Ltd,No
Http://opendatacommunities.org/id/metropolitan-district-council/leeds,Leeds City Council,31/08/2016,Environment & Housing,Leeds Building Services,Supplies and Services,Operational Materials,205,10-Aug-2016,1608-00044,0.00,33.47,R,A J H  Pump Supply & Repair Ltd,No
Http://opendatacommunities.org/id/metropolitan-district-council/leeds,Leeds City Council,31/08/2016,Environment & Housing,Leeds Building Services,Supplies and Services,Operational Materials,205,10-Aug-2016,1608-00045,0.00,37.90,R,A J H  Pump Supply & Repair Ltd,No
Http://opendatacommunities.org/id/metropolitan-district-council/leeds,Leeds City Council,31/08/2016,Environment & Housing,Leeds Building Services,Supplies and Services,Operational Materials,205,18-Aug-2016,1608-00046,0.00,414.00,R,A J H  Pump Supply & Repair Ltd,No
Http://opendatacommunities.org/id/metropolitan-district-council/leeds,Leeds City Council,31/08/2016,Environment & Housing,Leeds Building Services,Supplies and Services,Operational Materials,205,19-Aug-2016,1608-00047,0.00,9.62,R,A J H  Pump Supply & Repair Ltd,No
Http://opendatacommunities.org/id/metropolitan-district-council/leeds,Leeds City Council,31/08/2016,Environment & Housing,Leeds Building Services,Supplies and Services,Operational Materials,205,19-Aug-2016,1608-00048,0.00,35.91,R,A J H  Pump Supply & Repair Ltd,No
Http://opendatacommunities.org/id/metropolitan-district-council/leeds,Leeds City Council,31/08/2016,Environment & Housing,Leeds Building Services,Supplies and Services,Operational Materials,205,19-Aug-2016,1608-00049,0.00,115.00,R,A J H  Pump Supply & Repair Ltd,No
Http://opendatacommunities.org/id/metropolitan-district-council/leeds,Leeds City Council,31/08/2016,Environment & Housing,Leeds Building Services,Supplies and Services,Operational Materials,205,19-Aug-2016,1608-00050,0.00,115.00,R,A J H  Pump Supply & Repair Ltd,No
Http://opendatacommunities.org/id/metropolitan-district-council/leeds,Leeds City Council,31/08/2016,Environment & Housing,Leeds Building Services,Supplies and Services,Operational Materials,205,19-Aug-2016,1608-00051,0.00,32.00,R,A J H  Pump Supply & Repair Ltd,No
Http://opendatacommunities.org/id/metropolitan-district-council/leeds,Leeds City Council,31/08/2016,Environment & Housing,Leeds Building Services,Supplies and Services,Operational Materials,205,19-Aug-2016,1608-00052,0.00,59.45,R,A J H  Pump Supply & Repair Ltd,No
Http://opendatacommunities.org/id/metropolitan-district-council/leeds,Leeds City Council,31/08/2016,Environment & Housing,Leeds Building Services,Supplies and Services,Operational Materials,205,19-Aug-2016,1608-00053,0.00,19.00,R,A J H  Pump Supply & Repair Ltd,No
Http://opendatacommunities.org/id/metropolitan-district-council/leeds,Leeds City Council,31/08/2016,Environment & Housing,Leeds Building Services,Supplies and Services,Operational Materials,205,19-Aug-2016,1608-00054,0.00,15.90,R,A J H  Pump Supply & Repair Ltd,No
Http://opendatacommunities.org/id/metropolitan-district-council/leeds,Leeds City Council,31/08/2016,Environment & Housing,Leeds Building Services,Supplies and Services,Operational Materials,205,19-Aug-2016,1608-00055,0.00,218.48,R,A J H  Pump Supply & Repair Ltd,No
Http://opendatacommunities.org/id/metropolitan-district-council/leeds,Leeds City Council,31/08/2016,Environment & Housing,Leeds Building Services,Supplies and Services,Operational Materials,205,19-Aug-2016,1608-00056,0.00,1516.00,R,A J H  Pump Supply & Repair Ltd,No
Http://opendatacommunities.org/id/metropolitan-district-council/leeds,Leeds City Council,31/08/2016,Environment & Housing,Leeds Building Services,Supplies and Services,Operational Materials,205,19-Aug-2016,1608-00057,0.00,25.52,R,A J H  Pump Supply & Repair Ltd,No
Http://opendatacommunities.org/id/metropolitan-district-council/leeds,Leeds City Council,31/08/2016,Environment & Housing,Leeds Building Services,Supplies and Services,Operational Materials,205,19-Aug-2016,1608-00058,0.00,769.95,R,A J H  Pump Supply & Repair Ltd,No
Http://opendatacommunities.org/id/metropolitan-district-council/leeds,Leeds City Council,31/08/2016,Environment & Housing,Leeds Building Services,Supplies and Services,Operational Materials,205,19-Aug-2016,1608-00059,0.00,69.00,R,A J H  Pump Supply & Repair Ltd,No
Http://opendatacommunities.org/id/metropolitan-district-council/leeds,Leeds City Council,31/08/2016,Environment & Housing,Leeds Building Services,Supplies and Services,Operational Materials,205,19-Aug-2016,1608-00060,0.00,48.85,R,A J H  Pump Supply & Repair Ltd,No
Http://opendatacommunities.org/id/metropolitan-district-council/leeds,Leeds City Council,31/08/2016,Environment & Housing,Leeds Building Services,Supplies and Services,Operational Materials,205,19-Aug-2016,1608-00061,0.00,417.50,R,A J H  Pump Supply & Repair Ltd,No
Http://opendatacommunities.org/id/metropolitan-district-council/leeds,Leeds City Council,31/08/2016,Environment & Housing,Leeds Building Services,Supplies and Services,Operational Materials,205,19-Aug-2016,1608-00062,0.00,131.09,R,A J H  Pump Supply & Repair Ltd,No
Http://opendatacommunities.org/id/metropolitan-district-council/leeds,Leeds City Council,31/08/2016,Environment & Housing,Leeds Building Services,Supplies and Services,Operational Materials,205,19-Aug-2016,1608-00063,0.00,110.55,R,A J H  Pump Supply & Repair Ltd,No
Http://opendatacommunities.org/id/metropolitan-district-council/leeds,Leeds City Council,31/08/2016,Environment & Housing,Leeds Building Services,Supplies and Services,Operational Materials,205,19-Aug-2016,1608-00064,0.00,33.25,R,A J H  Pump Supply & Repair Ltd,No
Http://opendatacommunities.org/id/metropolitan-district-council/leeds,Leeds City Council,31/08/2016,Environment & Housing,Leeds Building Services,Supplies and Services,Operational Materials,205,26-Aug-2016,1608-00065,0.00,33.49,R,A J H  Pump Supply & Repair Ltd,No
Http://opendatacommunities.org/id/metropolitan-district-council/leeds,Leeds City Council,31/08/2016,Environment & Housing,Leeds Building Services,Supplies and Services,Operational Materials,205,26-Aug-2016,1608-00066,0.00,133.40,R,A J H  Pump Supply & Repair Ltd,No
Http://opendatacommunities.org/id/metropolitan-district-council/leeds,Leeds City Council,31/08/2016,Environment & Housing,Leeds Building Services,Supplies and Services,Operational Materials,205,26-Aug-2016,1608-00067,0.00,58.75,R,A J H  Pump Supply & Repair Ltd,No
Http://opendatacommunities.org/id/metropolitan-district-council/leeds,Leeds City Council,31/08/2016,City Development,Libraries  Arts & Heritage,Supplies and Services,Art Galleries Total Stores,003,23-Aug-2016,1608-00068,0.00,417.72,R,A J Promotions,No
Http://opendatacommunities.org/id/metropolitan-district-council/leeds,Leeds City Council,31/08/2016,City Development,Libraries  Arts & Heritage,Supplies and Services,Art Galleries Total Stores,003,25-Aug-2016,1608-00069,0.00,810.30,R,A J Promotions,No
Http://opendatacommunities.org/id/metropolitan-district-council/leeds,Leeds City Council,31/08/2016,City Development,Libraries  Arts & Heritage,Supplies and Services,Resaleable Materials,204,25-Aug-2016,1608-00070,0.00,103.10,R,A J Promotions,No
Http://opendatacommunities.org/id/metropolitan-district-council/leeds,Leeds City Council,31/08/2016,City Development,Libraries  Arts & Heritage,Supplies and Services,Art Galleries Total Stores,003,26-Aug-2016,1608-00071,0.00,460.00,R,A J Promotions,No
Http://opendatacommunities.org/id/metropolitan-district-council/leeds,Leeds City Council,31/08/2016,City Development,Libraries  Arts & Heritage,Supplies and Services,Resaleable Materials,204,26-Aug-2016,1608-00072,0.00,69.50,R,A J Promotions,No
Http://opendatacommunities.org/id/metropolitan-district-council/leeds,Leeds City Council,31/08/2016,Childrens Services,Partnership Development & Leadership,Employees,Training & Development,70,03-Aug-2016,1608-00073,0.00,75.00,R,A Little Something Extra Ltd,No
Http://opendatacommunities.org/id/metropolitan-district-council/leeds,Leeds City Council,31/08/2016,Childrens Services,Learning Skills & Universal,Supplies and Services,Teaching Materials,202,23-Aug-2016,1608-00074,0.00,180.00,R,A Little Something Extra Ltd,No
Http://opendatacommunities.org/id/metropolitan-district-council/leeds,Leeds City Council,31/08/2016,Childrens Services,Learning Skills & Universal,Supplies and Services,Teaching Materials,202,23-Aug-2016,1608-00075,0.00,180.00,R,A Little Something Extra Ltd,No
Http://opendatacommunities.org/id/metropolitan-district-council/leeds,Leeds City Council,31/08/2016,Childrens Services,Learning Skills & Universal,Supplies and Services,Teaching Materials,202,23-Aug-2016,1608-00076,0.00,180.00,R,A Little Something Extra Ltd,No
Http://opendatacommunities.org/id/metropolitan-district-council/leeds,Leeds City Council,31/08/2016,Childrens Services,Learning Skills & Universal,Third Party Payments,Services Rendered By Voluntary Sector,505,26-Aug-2016,1608-00077,0.00,90.00,R,A Little Something Extra Ltd,No
Http://opendatacommunities.org/id/metropolitan-district-council/leeds,Leeds City Council,31/08/2016,Environment & Housing,Housing Leeds Service,Capital,Other Costs,7,11-Aug-2016,1608-00078,0.00,165.00,C,REDACTED PERSONAL DATA,No
Http://opendatacommunities.org/id/metropolitan-district-council/leeds,Leeds City Council,31/08/2016,Environment & Housing,Housing Leeds Service,Capital,Other Costs,7,25-Aug-2016,1608-00079,0.00,380.00,C,REDACTED PERSONAL DATA,No
Http://opendatacommunities.org/id/metropolitan-district-council/leeds,Leeds City Council,31/08/2016,Environment & Housing,Housing Leeds Service,Capital,Other Costs,7,25-Aug-2016,1608-00080,0.00,300.00,C,REDACTED PERSONAL DATA,No
Http://opendatacommunities.org/id/metropolitan-district-council/leeds,Leeds City Council,31/08/2016,Citizens and Communities,Customer Access,Supplies and Services,Other Hired And Contracted Services,265,04-Aug-2016,1608-00081,0.00,526.09,R,A Mohammed,No
Http://opendatacommunities.org/id/metropolitan-district-council/leeds,Leeds City Council,31/08/2016,Citizens and Communities,Customer Access,Supplies and Services,Other Hired And Contracted Services,265,04-Aug-2016,1608-00082,0.00,206.00,R,A Mohammed,No
Http://opendatacommunities.org/id/metropolitan-district-council/leeds,Leeds City Council,31/08/2016,Citizens and Communities,Customer Access,Supplies and Services,Other Hired And Contracted Services,265,04-Aug-2016,1608-00083,0.00,25.50,R,A Musalam,No
Http://opendatacommunities.org/id/metropolitan-district-council/leeds,Leeds City Council,31/08/2016,Citizens and Communities,Customer Access,Supplies and Services,Other Hired And Contracted Services,265,04-Aug-2016,1608-00084,0.00,446.00,R,A Namaki,No
Http://opendatacommunities.org/id/metropolitan-district-council/leeds,Leeds City Council,31/08/2016,Environment & Housing,Parks and Countryside,Supplies and Services,Operational Materials,205,15-Aug-2016,1608-00085,0.00,450.00,R,A Newton,No
Http://opendatacommunities.org/id/metropolitan-district-council/leeds,Leeds City Council,31/08/2016,Insurance,Insurance,Supplies and Services,Insurance Claims,248,11-Aug-2016,1608-00086,0.00,472.92,R,REDACTED PERSONAL DATA,No
Http://opendatacommunities.org/id/metropolitan-district-council/leeds,Leeds City Council,31/08/2016,City Development,Libraries  Arts & Heritage,Supplies and Services,Books & Audio-Visual Materials,206,22-Aug-2016,1608-00087,0.00,150.22,R,A S Jhagra,No
Http://opendatacommunities.org/id/metropolitan-district-council/leeds,Leeds City Council,31/08/2016,Citizens and Communities,Customer Access,Supplies and Services,Other Hired And Contracted Services,265,04-Aug-2016,1608-00088,0.00,418.50,R,A Sheikholeslami,No
Http://opendatacommunities.org/id/metropolitan-district-council/leeds,Leeds City Council,31/08/2016,Environment & Housing,Waste Management,Supplies and Services,Other Hired And Contracted Services,265,01-Aug-2016,1608-00089,0.00,771.90,R,A T Nerac Ltd,No
Http://opendatacommunities.org/id/metropolitan-district-council/leeds,Leeds City Council,31/08/2016,Environment & Housing,Waste Management,Supplies and Services,Other Hired And Contracted Services,265,05-Aug-2016,1608-00090,0.00,348.00,R,A T Nerac Ltd,No
Http://opendatacommunities.org/id/metropolitan-district-council/leeds,Leeds City Council,31/08/2016,Central & Corporate,Human Resources,Employees,Occupational Health,85,04-Aug-2016,1608-00091,0.00,156.50,R,A W Morgan,No
Http://opendatacommunities.org/id/metropolitan-district-council/leeds,Leeds City Council,31/08/2016,Environment & Housing,Waste Management,Supplies and Services,Operational Furniture And Equipment,203,30-Aug-2016,1608-00092,0.00,3660.00,R,A&C Weber Uk Ltd,No
Http://opendatacommunities.org/id/metropolitan-district-council/leeds,Leeds City Council,31/08/2016,Public Health,Public Health,Third Party Payments,Public Health Commissioned Services,526,01-Aug-2016,1608-00093,0.00,32.48,R,Aaa Healthcare Ltd,No
Http://opendatacommunities.org/id/metropolitan-district-council/leeds,Leeds City Council,31/08/2016,Central & Corporate,Finance,Employees,Training & Development,70,22-Aug-2016,1608-00094,0.00,88.00,R,Aat,No
Http://opendatacommunities.org/id/metropolitan-district-council/leeds,Leeds City Council,31/08/2016,Central & Corporate,Finance,Employees,Training & Development,70,23-Aug-2016,1608-00095,0.00,88.00,R,Aat,No
Http://opendatacommunities.org/id/metropolitan-district-council/leeds,Leeds City Council as Accountable Body,31/08/2016,Social Services Pooled Budgets,Leeds Community Equip Store Pooled Budgt,Supplies and Services,Other Equipment,203,19-Aug-2016,1608-00096,0.00,773.00,R,Aat (Gb) Ltd,No
Http://opendatacommunities.org/id/metropolitan-district-council/leeds,Leeds City Council,31/08/2016,Childrens Services,Safeguarding Targeted & Specialist,Support Services,Legal Disbursements,411,01-Aug-2016,1608-00097,0.00,31.02,R,Abacus Express Limited,No
Http://opendatacommunities.org/id/metropolitan-district-council/leeds,Leeds City Council,31/08/2016,Childrens Services,Safeguarding Targeted & Specialist,Support Services,Legal Disbursements,411,01-Aug-2016,1608-00098,0.00,15.59,R,Abacus Express Limited,No
Http://opendatacommunities.org/id/metropolitan-district-council/leeds,Leeds City Council,31/08/2016,City Development,Planning & Sustainable Development,Supplies and Services,Other Hired And Contracted Services,265,05-Aug-2016,1608-00099,0.00,17.31,R,Abacus Express Limited,No
Http://opendatacommunities.org/id/metropolitan-district-council/leeds,Leeds City Council,31/08/2016,Childrens Services,Safeguarding Targeted & Specialist,Support Services,Legal Disbursements,411,10-Aug-2016,1608-00100,0.00,26.77,R,Abacus Express Limited,No
Http://opendatacommunities.org/id/metropolitan-district-council/leeds,Leeds City Council,31/08/2016,Childrens Services,Safeguarding Targeted & Specialist,Support Services,Legal Disbursements,411,10-Aug-2016,1608-00101,0.00,31.02,R,Abacus Express Limited,No
Http://opendatacommunities.org/id/metropolitan-district-council/leeds,Leeds City Council,31/08/2016,Childrens Services,Safeguarding Targeted & Specialist,Support Services,Legal Disbursements,411,10-Aug-2016,1608-00102,0.00,15.59,R,Abacus Express Limited,No
Http://opendatacommunities.org/id/metropolitan-district-council/leeds,Leeds City Council,31/08/2016,Childrens Services,Safeguarding Targeted & Specialist,Support Services,Legal Disbursements,411,10-Aug-2016,1608-00103,0.00,15.59,R,Abacus Express Limited,No
Http://opendatacommunities.org/id/metropolitan-district-council/leeds,Leeds City Council,31/08/2016,City Development,Highways,Supplies and Services,Operational Materials,205,11-Aug-2016,1608-00104,0.00,24.19,R,Abacus Express Limited,No
Http://opendatacommunities.org/id/metropolitan-district-council/leeds,Leeds City Council,31/08/2016,Central & Corporate,Legal Services,Support Services,Legal Disbursements,411,25-Aug-2016,1608-00105,0.00,20.96,R,Abacus Express Limited,No
Http://opendatacommunities.org/id/metropolitan-district-council/leeds,Leeds City Council,31/08/2016,Adult Social Care,Services For Older People - 65 And Over,Third Party Payments,Nursing Care Dementia,574,24-Aug-2016,1608-00106,0.00,1556.00,R,Abbendon Nursing Home,No
Http://opendatacommunities.org/id/metropolitan-district-council/leeds,Leeds City Council,31/08/2016,City Development,Libraries  Arts & Heritage  ,Supplies and Services,Food & Drink,231,28-Jul-2016,1608-00107,0.00,7.42,R,Abbey House Museum Caf,Yes
Http://opendatacommunities.org/id/metropolitan-district-council/leeds,Leeds City Council,31/08/2016,Environment & Housing,Environmental Action (South),Supplies and Services,Bought In Professional Services,277,25-Aug-2016,1608-00108,0.00,28.15,R,Abbey House Veterinary Hospital,No
Http://opendatacommunities.org/id/metropolitan-district-council/leeds,Leeds City Council,31/08/2016,Adult Social Care,Services For Older People - 65 And Over,Third Party Payments,Home Care,568,05-Aug-2016,1608-00109,0.00,1188.14,R,Abbeyfield The Dales Limited,No
Http://opendatacommunities.org/id/metropolitan-district-council/leeds,Leeds City Council,31/08/2016,Citizens and Communities,Customer Access,Supplies and Services,Other Hired And Contracted Services,265,04-Aug-2016,1608-00110,0.00,218.50,R,Abdur Rahman Khan,No
Http://opendatacommunities.org/id/metropolitan-district-council/leeds,Leeds City Council,31/08/2016,Adult Social Care,Services For Older People - 65 And Over,Third Party Payments,Nursing Home,570,24-Aug-2016,1608-00111,0.00,41435.31,R,Aberford Hall,No
Http://opendatacommunities.org/id/metropolitan-district-council/leeds,Leeds City Council,31/08/2016,Adult Social Care,Services For Older People - 65 And Over,Third Party Payments,Nursing Care Dementia,574,24-Aug-2016,1608-00112,0.00,1501.20,R,Aberford Hall,No
Http://opendatacommunities.org/id/metropolitan-district-council/leeds,Leeds City Council,31/08/2016,Adult Social Care,Services For Older People - 65 And Over,Third Party Payments,Residential,580,24-Aug-2016,1608-00113,0.00,6365.64,R,Aberford Hall,No
Http://opendatacommunities.org/id/metropolitan-district-council/leeds,Leeds City Council,31/08/2016,Environment & Housing,Leeds Building Services,Supplies and Services,Operational Materials,205,19-Aug-2016,1608-00114,0.00,8.00,R,Abi Garage Doors Ltd,No
Http://opendatacommunities.org/id/metropolitan-district-council/leeds,Leeds City Council,31/08/2016,Environment & Housing,Leeds Building Services,Supplies and Services,Operational Materials,205,24-Aug-2016,1608-00115,0.00,12.00,R,Abi Garage Doors Ltd,No
Http://opendatacommunities.org/id/metropolitan-district-council/leeds,Leeds City Council,31/08/2016,Environment & Housing,Leeds Building Services,Supplies and Services,Operational Materials,205,31-Aug-2016,1608-00116,0.00,39.40,R,Abi Garage Doors Ltd,No
Http://opendatacommunities.org/id/metropolitan-district-council/leeds,Leeds City Council,31/08/2016,Environment & Housing,Strategic Housing Support,Supplies and Services,Other Hired And Contracted Services,265,18-Aug-2016,1608-00117,0.00,448.04,R,REDACTED PERSONAL DATA,No
Http://opendatacommunities.org/id/metropolitan-district-council/leeds,Leeds City Council,31/08/2016,Childrens Services,Safeguarding Targeted & Specialist,Supplies and Services,Telephones,213,11-Aug-2016,1608-00118,0.00,2.80,R,REDACTED PERSONAL DATA,No
Http://opendatacommunities.org/id/metropolitan-district-council/leeds,Leeds City Council,31/08/2016,Childrens Services,Safeguarding Targeted & Specialist,Supplies and Services,Food & Drink,231,11-Aug-2016,1608-00119,0.00,21.53,R,REDACTED PERSONAL DATA,No
Http://opendatacommunities.org/id/metropolitan-district-council/leeds,Leeds City Council,31/08/2016,Childrens Services,Safeguarding Targeted & Specialist,Transport,Public Transport Expenses,310,11-Aug-2016,1608-00120,0.00,1.00,R,REDACTED PERSONAL DATA,No
Http://opendatacommunities.org/id/metropolitan-district-council/leeds,Leeds City Council,31/08/2016,Childrens Services,Safeguarding Targeted & Specialist,Transport,Car & Motorcycle Allowances,311,11-Aug-2016,1608-00121,0.00,5.40,R,REDACTED PERSONAL DATA,No
Http://opendatacommunities.org/id/metropolitan-district-council/leeds,Leeds City Council,31/08/2016,Adult Social Care,Services For Older People Under 65 P/Dis,Third Party Payments,Residential,580,25-Aug-2016,1608-00122,0.00,1982.52,R,Able Community Care Ltd,No
Http://opendatacommunities.org/id/metropolitan-district-council/leeds,Leeds City Council,31/08/2016,City Development,Economic Development,Supplies and Services,Publication And Promotion,267,26-Aug-2016,1608-00123,0.00,722.50,R,Absolute Media Ltd,No
Http://opendatacommunities.org/id/metropolitan-district-council/leeds,Leeds City Council,31/08/2016,Childrens Services,Safeguarding Targeted & Specialist,Employees,Agency Staff,8,11-Aug-2016,1608-00124,0.00,589.15,R,Academic Appointments Ltd,No
Http://opendatacommunities.org/id/metropolitan-district-council/leeds,Leeds City Council,31/08/2016,Childrens Services,Learning Skills & Universal,Employees,Basic Pay,1,11-Aug-2016,1608-00125,0.00,4340.00,R,Academic Appointments Ltd,No
Http://opendatacommunities.org/id/metropolitan-district-council/leeds,Leeds City Council,31/08/2016,Childrens Services,Safeguarding Targeted & Specialist,Employees,Agency Staff,8,16-Aug-2016,1608-00126,0.00,1230.00,R,Academic Appointments Ltd,No
Http://opendatacommunities.org/id/metropolitan-district-council/leeds,Leeds City Council,31/08/2016,Childrens Services,Safeguarding Targeted & Specialist,Employees,Agency Staff,8,25-Aug-2016,1608-00127,0.00,1071.10,R,Academic Appointments Ltd,No
Http://opendatacommunities.org/id/metropolitan-district-council/leeds,Leeds City Council,31/08/2016,Environment & Housing,Environmental Health,Capital,Construction,3,11-Aug-2016,1608-00128,0.00,2415.00,C,Accent Homes Ltd,No
Http://opendatacommunities.org/id/metropolitan-district-council/leeds,Leeds City Council,31/08/2016,Environment & Housing,Community Safety,Transport,Hire Of Movable Plant & Machinery,315,30-Aug-2016,1608-00129,0.00,1350.71,R,Access Hire Nationwide Ltd,No
Http://opendatacommunities.org/id/metropolitan-district-council/leeds,Leeds City Council,31/08/2016,Environment & Housing,Leeds Building Services,Supplies and Services,Operational Materials,205,04-Aug-2016,1608-00130,0.00,33.92,R,Access Locksmiths (Leeds) Limited,No
Http://opendatacommunities.org/id/metropolitan-district-council/leeds,Leeds City Council,31/08/2016,Strategic Landlord,Housing Management,Premises,General Maintenance,104,04-Aug-2016,1608-00131,0.00,207.40,R,Access Locksmiths (Leeds) Limited,No
Http://opendatacommunities.org/id/metropolitan-district-council/leeds,Leeds City Council,31/08/2016,Environment & Housing,Leeds Building Services,Supplies and Services,Operational Materials,205,05-Aug-2016,1608-00132,0.00,17.06,R,Access Locksmiths (Leeds) Limited,No
Http://opendatacommunities.org/id/metropolitan-district-council/leeds,Leeds City Council,31/08/2016,Environment & Housing,Leeds Building Services,Supplies and Services,Operational Materials,205,05-Aug-2016,1608-00133,0.00,85.56,R,Access Locksmiths (Leeds) Limited,No
Http://opendatacommunities.org/id/metropolitan-district-council/leeds,Leeds City Council,31/08/2016,Environment & Housing,Leeds Building Services,Supplies and Services,Operational Materials,205,05-Aug-2016,1608-00134,0.00,5.08,R,Access Locksmiths (Leeds) Limited,No
Http://opendatacommunities.org/id/metropolitan-district-council/leeds,Leeds City Council,31/08/2016,Strategic Landlord,Property and Contracts,Premises,General Maintenance,104,05-Aug-2016,1608-00135,0.00,76.70,R,Access Locksmiths (Leeds) Limited,No
Http://opendatacommunities.org/id/metropolitan-district-council/leeds,Leeds City Council,31/08/2016,Environment & Housing,Leeds Building Services,Supplies and Services,Other Hired And Contracted Services,265,05-Aug-2016,1608-00136,0.00,2.50,R,Access Locksmiths (Leeds) Limited,No
Http://opendatacommunities.org/id/metropolitan-district-council/leeds,Leeds City Council,31/08/2016,Strategic Landlord,Property and Contracts,Premises,General Maintenance,104,12-Aug-2016,1608-00137,0.00,218.10,R,Access Locksmiths (Leeds) Limited,No
Http://opendatacommunities.org/id/metropolitan-district-council/leeds,Leeds City Council,31/08/2016,Environment & Housing,Leeds Building Services,Supplies and Services,Operational Materials,205,12-Aug-2016,1608-00138,0.00,104.50,R,Access Locksmiths (Leeds) Limited,No
Http://opendatacommunities.org/id/metropolitan-district-council/leeds,Leeds City Council,31/08/2016,Environment & Housing,Leeds Building Services,Supplies and Services,Operational Materials,205,12-Aug-2016,1608-00139,0.00,85.56,R,Access Locksmiths (Leeds) Limited,No
Http://opendatacommunities.org/id/metropolitan-district-council/leeds,Leeds City Council,31/08/2016,Environment & Housing,Leeds Building Services,Supplies and Services,Operational Materials,205,12-Aug-2016,1608-00140,0.00,55.05,R,Access Locksmiths (Leeds) Limited,No
Http://opendatacommunities.org/id/metropolitan-district-council/leeds,Leeds City Council,31/08/2016,Environment & Housing,Leeds Building Services,Supplies and Services,Operational Materials,205,12-Aug-2016,1608-00141,0.00,88.70,R,Access Locksmiths (Leeds) Limited,No
Http://opendatacommunities.org/id/metropolitan-district-council/leeds,Leeds City Council,31/08/2016,Environment & Housing,Leeds Building Services,Supplies and Services,Operational Materials,205,12-Aug-2016,1608-00142,0.00,86.60,R,Access Locksmiths (Leeds) Limited,No
Http://opendatacommunities.org/id/metropolitan-district-council/leeds,Leeds City Council,31/08/2016,Environment & Housing,Leeds Building Services,Supplies and Services,Operational Materials,205,12-Aug-2016,1608-00143,0.00,31.18,R,Access Locksmiths (Leeds) Limited,No
Http://opendatacommunities.org/id/metropolitan-district-council/leeds,Leeds City Council,31/08/2016,Environment & Housing,Leeds Building Services,Supplies and Services,Operational Materials,205,12-Aug-2016,1608-00144,0.00,2.50,R,Access Locksmiths (Leeds) Limited,No
Http://opendatacommunities.org/id/metropolitan-district-council/leeds,Leeds City Council,31/08/2016,Environment & Housing,Leeds Building Services,Supplies and Services,Operational Materials,205,12-Aug-2016,1608-00145,0.00,33.20,R,Access Locksmiths (Leeds) Limited,No
Http://opendatacommunities.org/id/metropolitan-district-council/leeds,Leeds City Council,31/08/2016,Environment & Housing,Leeds Building Services,Supplies and Services,Operational Materials,205,12-Aug-2016,1608-00146,0.00,16.83,R,Access Locksmiths (Leeds) Limited,No
Http://opendatacommunities.org/id/metropolitan-district-council/leeds,Leeds City Council,31/08/2016,Environment & Housing,Leeds Building Services,Supplies and Services,Operational Materials,205,12-Aug-2016,1608-00147,0.00,253.41,R,Access Locksmiths (Leeds) Limited,No
Http://opendatacommunities.org/id/metropolitan-district-council/leeds,Leeds City Council,31/08/2016,Environment & Housing,Leeds Building Services,Supplies and Services,Operational Materials,205,12-Aug-2016,1608-00148,0.00,83.88,R,Access Locksmiths (Leeds) Limited,No
Http://opendatacommunities.org/id/metropolitan-district-council/leeds,Leeds City Council,31/08/2016,Environment & Housing,Leeds Building Services,Supplies and Services,Operational Materials,205,12-Aug-2016,1608-00149,0.00,26.03,R,Access Locksmiths (Leeds) Limited,No
Http://opendatacommunities.org/id/metropolitan-district-council/leeds,Leeds City Council,31/08/2016,Strategic Landlord,Property and Contracts,Premises,General Maintenance,104,12-Aug-2016,1608-00150,0.00,117.05,R,Access Locksmiths (Leeds) Limited,No
Http://opendatacommunities.org/id/metropolitan-district-council/leeds,Leeds City Council,31/08/2016,Environment & Housing,Leeds Building Services,Supplies and Services,Operational Materials,205,15-Aug-2016,1608-00151,0.00,75.00,R,Access Locksmiths (Leeds) Limited,No
Http://opendatacommunities.org/id/metropolitan-district-council/leeds,Leeds City Council,31/08/2016,Environment & Housing,Leeds Building Services,Supplies and Services,Operational Materials,205,17-Aug-2016,1608-00152,0.00,15.39,R,Access Locksmiths (Leeds) Limited,No
Http://opendatacommunities.org/id/metropolitan-district-council/leeds,Leeds City Council,31/08/2016,Environment & Housing,Leeds Building Services,Supplies and Services,Operational Materials,205,19-Aug-2016,1608-00153,0.00,10.00,R,Access Locksmiths (Leeds) Limited,No
Http://opendatacommunities.org/id/metropolitan-district-council/leeds,Leeds City Council,31/08/2016,Environment & Housing,Leeds Building Services,Supplies and Services,Operational Materials,205,19-Aug-2016,1608-00154,0.00,85.56,R,Access Locksmiths (Leeds) Limited,No
Http://opendatacommunities.org/id/metropolitan-district-council/leeds,Leeds City Council,31/08/2016,Environment & Housing,Leeds Building Services,Supplies and Services,Operational Materials,205,19-Aug-2016,1608-00155,0.00,29.88,R,Access Locksmiths (Leeds) Limited,No
Http://opendatacommunities.org/id/metropolitan-district-council/leeds,Leeds City Council,31/08/2016,Environment & Housing,Leeds Building Services,Supplies and Services,Operational Materials,205,19-Aug-2016,1608-00156,0.00,9.28,R,Access Locksmiths (Leeds) Limited,No
Http://opendatacommunities.org/id/metropolitan-district-council/leeds,Leeds City Council,31/08/2016,Strategic Landlord,Property and Contracts,Premises,General Maintenance,104,19-Aug-2016,1608-00157,0.00,149.62,R,Access Locksmiths (Leeds) Limited,No
Http://opendatacommunities.org/id/metropolitan-district-council/leeds,Leeds City Council,31/08/2016,Strategic Landlord,Property and Contracts,Premises,General Maintenance,104,19-Aug-2016,1608-00158,0.00,103.70,R,Access Locksmiths (Leeds) Limited,No
Http://opendatacommunities.org/id/metropolitan-district-council/leeds,Leeds City Council,31/08/2016,Strategic Landlord,Property and Contracts,Premises,General Maintenance,104,26-Aug-2016,1608-00159,0.00,225.58,R,Access Locksmiths (Leeds) Limited,No
Http://opendatacommunities.org/id/metropolitan-district-council/leeds,Leeds City Council,31/08/2016,Strategic Landlord,Housing Management,Premises,General Maintenance,104,26-Aug-2016,1608-00160,0.00,103.70,R,Access Locksmiths (Leeds) Limited,No
Http://opendatacommunities.org/id/metropolitan-district-council/leeds,Leeds City Council,31/08/2016,Strategic Landlord,Housing Management,Premises,Premises Security Services,162,26-Aug-2016,1608-00161,0.00,10.31,R,Access Locksmiths (Leeds) Limited,No
Http://opendatacommunities.org/id/metropolitan-district-council/leeds,Leeds City Council,31/08/2016,Strategic Landlord,Housing Management,Premises,Premises Security Services,162,26-Aug-2016,1608-00162,0.00,25.00,R,Access Locksmiths (Leeds) Limited,No
Http://opendatacommunities.org/id/metropolitan-district-council/leeds,Leeds City Council,31/08/2016,Strategic Landlord,Housing Management,Premises,General Maintenance,104,26-Aug-2016,1608-00163,0.00,103.70,R,Access Locksmiths (Leeds) Limited,No
Http://opendatacommunities.org/id/metropolitan-district-council/leeds,Leeds City Council,31/08/2016,Strategic Landlord,Housing Management,Premises,Premises Security Services,162,26-Aug-2016,1608-00164,0.00,20.78,R,Access Locksmiths (Leeds) Limited,No
Http://opendatacommunities.org/id/metropolitan-district-council/leeds,Leeds City Council,31/08/2016,Environment & Housing,Leeds Building Services,Supplies and Services,Operational Materials,205,26-Aug-2016,1608-00165,0.00,16.83,R,Access Locksmiths (Leeds) Limited,No
Http://opendatacommunities.org/id/metropolitan-district-council/leeds,Leeds City Council,31/08/2016,Environment & Housing,Leeds Building Services,Supplies and Services,Operational Materials,205,26-Aug-2016,1608-00166,0.00,625.28,R,Access Locksmiths (Leeds) Limited,No
Http://opendatacommunities.org/id/metropolitan-district-council/leeds,Leeds City Council,31/08/2016,Environment & Housing,Leeds Building Services,Supplies and Services,Operational Materials,205,26-Aug-2016,1608-00167,0.00,22.64,R,Access Locksmiths (Leeds) Limited,No
Http://opendatacommunities.org/id/metropolitan-district-council/leeds,Leeds City Council,31/08/2016,Environment & Housing,Leeds Building Services,Supplies and Services,Operational Materials,205,31-Aug-2016,1608-00168,0.00,15.86,R,Access Locksmiths (Leeds) Limited,No
Http://opendatacommunities.org/id/metropolitan-district-council/leeds,Leeds City Council,31/08/2016,Childrens Services,Safeguarding Targeted & Specialist,Supplies and Services,Computer Software & Equipment,214,15-Aug-2016,1608-00169,0.00,500.00,R,Access Moving Image Ltd,No
Http://opendatacommunities.org/id/metropolitan-district-council/leeds,Leeds City Council,31/08/2016,Environment & Housing,Leeds Building Services,Supplies and Services,Operational Materials,205,01-Aug-2016,1608-00170,0.00,362.90,R,Access Opening Systems Limited,No
Http://opendatacommunities.org/id/metropolitan-district-council/leeds,Leeds City Council,31/08/2016,Environment & Housing,Leeds Building Services,Supplies and Services,Other Hired And Contracted Services,265,01-Aug-2016,1608-00171,0.00,85.00,R,Access Opening Systems Limited,No
Http://opendatacommunities.org/id/metropolitan-district-council/leeds,Leeds City Council,31/08/2016,Environment & Housing,Leeds Building Services,Supplies and Services,Other Hired And Contracted Services,265,05-Aug-2016,1608-00172,0.00,521.11,R,Access Opening Systems Limited,No
Http://opendatacommunities.org/id/metropolitan-district-council/leeds,Leeds City Council,31/08/2016,Environment & Housing,Leeds Building Services,Supplies and Services,Other Hired And Contracted Services,265,05-Aug-2016,1608-00173,0.00,244.25,R,Access Opening Systems Limited,No
Http://opendatacommunities.org/id/metropolitan-district-council/leeds,Leeds City Council,31/08/2016,Environment & Housing,Leeds Building Services,Supplies and Services,Other Hired And Contracted Services,265,05-Aug-2016,1608-00174,0.00,85.00,R,Access Opening Systems Limited,No
Http://opendatacommunities.org/id/metropolitan-district-council/leeds,Leeds City Council,31/08/2016,Environment & Housing,Leeds Building Services,Supplies and Services,Operational Materials,205,05-Aug-2016,1608-00175,0.00,250.00,R,Access Opening Systems Limited,No
Http://opendatacommunities.org/id/metropolitan-district-council/leeds,Leeds City Council,31/08/2016,Environment & Housing,Leeds Building Services,Supplies and Services,Operational Materials,205,05-Aug-2016,1608-00176,0.00,135.00,R,Access Opening Systems Limited,No
Http://opendatacommunities.org/id/metropolitan-district-council/leeds,Leeds City Council,31/08/2016,Environment & Housing,Leeds Building Services,Supplies and Services,Other Hired And Contracted Services,265,05-Aug-2016,1608-00177,0.00,85.00,R,Access Opening Systems Limited,No
Http://opendatacommunities.org/id/metropolitan-district-council/leeds,Leeds City Council,31/08/2016,Environment & Housing,Leeds Building Services,Supplies and Services,Operational Materials,205,05-Aug-2016,1608-00178,0.00,822.24,R,Access Opening Systems Limited,No
Http://opendatacommunities.org/id/metropolitan-district-council/leeds,Leeds City Council,31/08/2016,Environment & Housing,Leeds Building Services,Supplies and Services,Operational Materials,205,12-Aug-2016,1608-00179,0.00,295.93,R,Access Opening Systems Limited,No
Http://opendatacommunities.org/id/metropolitan-district-council/leeds,Leeds City Council,31/08/2016,Environment & Housing,Leeds Building Services,Supplies and Services,Operational Materials,205,15-Aug-2016,1608-00180,0.00,563.17,R,Access Opening Systems Limited,No
Http://opendatacommunities.org/id/metropolitan-district-council/leeds,Leeds City Council,31/08/2016,Environment & Housing,Leeds Building Services,Supplies and Services,Other Hired And Contracted Services,265,15-Aug-2016,1608-00181,0.00,85.00,R,Access Opening Systems Limited,No
Http://opendatacommunities.org/id/metropolitan-district-council/leeds,Leeds City Council,31/08/2016,Environment & Housing,Leeds Building Services,Supplies and Services,Other Hired And Contracted Services,265,15-Aug-2016,1608-00182,0.00,85.00,R,Access Opening Systems Limited,No
Http://opendatacommunities.org/id/metropolitan-district-council/leeds,Leeds City Council,31/08/2016,Environment & Housing,Leeds Building Services,Supplies and Services,Other Hired And Contracted Services,265,15-Aug-2016,1608-00183,0.00,350.00,R,Access Opening Systems Limited,No
Http://opendatacommunities.org/id/metropolitan-district-council/leeds,Leeds City Council,31/08/2016,Environment & Housing,Leeds Building Services,Supplies and Services,Other Hired And Contracted Services,265,15-Aug-2016,1608-00184,0.00,1453.01,R,Access Opening Systems Limited,No
Http://opendatacommunities.org/id/metropolitan-district-council/leeds,Leeds City Council,31/08/2016,Environment & Housing,Leeds Building Services,Supplies and Services,Other Hired And Contracted Services,265,19-Aug-2016,1608-00185,0.00,85.00,R,Access Opening Systems Limited,No
Http://opendatacommunities.org/id/metropolitan-district-council/leeds,Leeds City Council,31/08/2016,Environment & Housing,Leeds Building Services,Supplies and Services,Other Hired And Contracted Services,265,19-Aug-2016,1608-00186,0.00,3245.21,R,Access Opening Systems Limited,No
Http://opendatacommunities.org/id/metropolitan-district-council/leeds,Leeds City Council,31/08/2016,Environment & Housing,Leeds Building Services,Supplies and Services,Other Hired And Contracted Services,265,19-Aug-2016,1608-00187,0.00,3300.00,R,Access Opening Systems Limited,No
Http://opendatacommunities.org/id/metropolitan-district-council/leeds,Leeds City Council,31/08/2016,Environment & Housing,Leeds Building Services,Supplies and Services,Operational Materials,205,19-Aug-2016,1608-00188,0.00,3456.12,R,Access Opening Systems Limited,No
Http://opendatacommunities.org/id/metropolitan-district-council/leeds,Leeds City Council,31/08/2016,Environment & Housing,Leeds Building Services,Supplies and Services,Operational Materials,205,19-Aug-2016,1608-00189,0.00,100.00,R,Access Opening Systems Limited,No
Http://opendatacommunities.org/id/metropolitan-district-council/leeds,Leeds City Council,31/08/2016,Environment & Housing,Leeds Building Services,Supplies and Services,Other Hired And Contracted Services,265,19-Aug-2016,1608-00190,0.00,85.00,R,Access Opening Systems Limited,No
Http://opendatacommunities.org/id/metropolitan-district-council/leeds,Leeds City Council,31/08/2016,Environment & Housing,Leeds Building Services,Supplies and Services,Other Hired And Contracted Services,265,25-Aug-2016,1608-00191,0.00,159.62,R,Access Opening Systems Limited,No
Http://opendatacommunities.org/id/metropolitan-district-council/leeds,Leeds City Council,31/08/2016,Environment & Housing,Leeds Building Services,Supplies and Services,Other Hired And Contracted Services,265,25-Aug-2016,1608-00192,0.00,85.00,R,Access Opening Systems Limited,No
Http://opendatacommunities.org/id/metropolitan-district-council/leeds,Leeds City Council,31/08/2016,Environment & Housing,Leeds Building Services,Supplies and Services,Other Hired And Contracted Services,265,25-Aug-2016,1608-00193,0.00,85.00,R,Access Opening Systems Limited,No
Http://opendatacommunities.org/id/metropolitan-district-council/leeds,Leeds City Council,31/08/2016,Environment & Housing,Leeds Building Services,Supplies and Services,Other Hired And Contracted Services,265,25-Aug-2016,1608-00194,0.00,85.00,R,Access Opening Systems Limited,No
Http://opendatacommunities.org/id/metropolitan-district-council/leeds,Leeds City Council,31/08/2016,Environment & Housing,Leeds Building Services,Supplies and Services,Operational Materials,205,26-Aug-2016,1608-00195,0.00,605.00,R,Access Opening Systems Limited,No
Http://opendatacommunities.org/id/metropolitan-district-council/leeds,Leeds City Council,31/08/2016,Environment & Housing,Leeds Building Services,Supplies and Services,Operational Materials,205,26-Aug-2016,1608-00196,0.00,70.00,R,Access Opening Systems Limited,No
Http://opendatacommunities.org/id/metropolitan-district-council/leeds,Leeds City Council,31/08/2016,Environment & Housing,Leeds Building Services,Supplies and Services,Operational Materials,205,26-Aug-2016,1608-00197,0.00,226.68,R,Access Opening Systems Limited,No
Http://opendatacommunities.org/id/metropolitan-district-council/leeds,Leeds City Council,31/08/2016,Environment & Housing,Leeds Building Services,Supplies and Services,Operational Materials,205,26-Aug-2016,1608-00198,0.00,100.00,R,Access Opening Systems Limited,No
Http://opendatacommunities.org/id/metropolitan-district-council/leeds,Leeds City Council,31/08/2016,Environment & Housing,Leeds Building Services,Supplies and Services,Operational Materials,205,26-Aug-2016,1608-00199,0.00,135.00,R,Access Opening Systems Limited,No
Http://opendatacommunities.org/id/metropolitan-district-council/leeds,Leeds City Council,31/08/2016,Environment & Housing,Leeds Building Services,Supplies and Services,Other Hired And Contracted Services,265,26-Aug-2016,1608-00200,0.00,85.00,R,Access Opening Systems Limited,No
Http://opendatacommunities.org/id/metropolitan-district-council/leeds,Leeds City Council,31/08/2016,Environment & Housing,Leeds Building Services,Supplies and Services,Other Hired And Contracted Services,265,31-Aug-2016,1608-00201,0.00,223.37,R,Access Opening Systems Limited,No
Http://opendatacommunities.org/id/metropolitan-district-council/leeds,Leeds City Council,31/08/2016,Insurance,Insurance,Supplies and Services,Insurance Claims,248,24-Aug-2016,1608-00202,0.00,1194.24,R,Accident Exchange Ltd,No
Http://opendatacommunities.org/id/metropolitan-district-council/leeds,Leeds City Council,31/08/2016,Civic Enterprise Leeds,Commercial Services,Transport,Private Hire,360,04-Aug-2016,1608-00203,0.00,161.60,R,Ace Cars,No
Http://opendatacommunities.org/id/metropolitan-district-council/leeds,Leeds City Council,31/08/2016,Civic Enterprise Leeds,Commercial Services,Transport,Private Hire,360,04-Aug-2016,1608-00204,0.00,212.10,R,Ace Cars,No
Http://opendatacommunities.org/id/metropolitan-district-council/leeds,Leeds City Council,31/08/2016,City Development,Recreation,Supplies and Services,Other Hired And Contracted Services,265,17-Aug-2016,1608-00205,0.00,139.50,R,Ace Container Services Limited,No
Http://opendatacommunities.org/id/metropolitan-district-council/leeds,Leeds City Council,31/08/2016,City Development,Recreation,Transport,External Hire -Occasional,304,26-Aug-2016,1608-00206,0.00,128.65,R,Ace Container Services Limited,No
Http://opendatacommunities.org/id/metropolitan-district-council/leeds,Leeds City Council,31/08/2016,City Development,Libraries  Arts & Heritage,Transport,Hire Of Movable Plant & Machinery,315,26-Aug-2016,1608-00207,0.00,46.50,R,Ace Container Services Limited,No
Http://opendatacommunities.org/id/metropolitan-district-council/leeds,Leeds City Council,31/08/2016,City Development,Recreation,Supplies and Services,Other Hired And Contracted Services,265,30-Aug-2016,1608-00208,0.00,139.50,R,Ace Container Services Limited,No
Http://opendatacommunities.org/id/metropolitan-district-council/leeds,Leeds City Council,31/08/2016,Childrens Services,Safeguarding Targeted & Specialist,Third Party Payments,SEN Placements,566,08-Aug-2016,1608-00209,0.00,16640.00,R,Ackworth School,No
Http://opendatacommunities.org/id/metropolitan-district-council/leeds,Leeds City Council,31/08/2016,Childrens Services,Safeguarding Targeted & Specialist,Third Party Payments,SEN Placements,566,08-Aug-2016,1608-00210,0.00,16640.00,R,Ackworth School,No
Http://opendatacommunities.org/id/metropolitan-district-council/leeds,Leeds City Council,31/08/2016,Childrens Services,Safeguarding Targeted & Specialist,Third Party Payments,SEN Placements,566,08-Aug-2016,1608-00211,0.00,16640.00,R,Ackworth School,No
Http://opendatacommunities.org/id/metropolitan-district-council/leeds,Leeds City Council,31/08/2016,Childrens Services,Safeguarding Targeted & Specialist,Third Party Payments,SEN Placements,566,08-Aug-2016,1608-00212,0.00,24440.00,R,Ackworth School,No
Http://opendatacommunities.org/id/metropolitan-district-council/leeds,Leeds City Council,31/08/2016,Childrens Services,Safeguarding Targeted & Specialist,Third Party Payments,SEN Placements,566,08-Aug-2016,1608-00213,0.00,16640.00,R,Ackworth School,No
Http://opendatacommunities.org/id/metropolitan-district-council/leeds,Leeds City Council,31/08/2016,Childrens Services,Safeguarding Targeted & Specialist,Third Party Payments,SEN Placements,566,08-Aug-2016,1608-00214,0.00,16332.00,R,Ackworth School,No
Http://opendatacommunities.org/id/metropolitan-district-council/leeds,Leeds City Council,31/08/2016,Childrens Services,Safeguarding Targeted & Specialist,Third Party Payments,SEN Placements,566,10-Aug-2016,1608-00215,0.00,16640.00,R,Ackworth School,No
Http://opendatacommunities.org/id/metropolitan-district-council/leeds,Leeds City Council,31/08/2016,Childrens Services,Safeguarding Targeted & Specialist,Third Party Payments,SEN Placements,566,12-Aug-2016,1608-00216,0.00,18138.66,R,Acorn Care And Education Ltd,No
Http://opendatacommunities.org/id/metropolitan-district-council/leeds,Leeds City Council,31/08/2016,Childrens Services,Safeguarding Targeted & Specialist,Third Party Payments,SEN Placements,566,12-Aug-2016,1608-00217,0.00,18138.66,R,Acorn Care And Education Ltd,No
Http://opendatacommunities.org/id/metropolitan-district-council/leeds,Leeds City Council,31/08/2016,Childrens Services,Safeguarding Targeted & Specialist,Third Party Payments,SEN Placements,566,12-Aug-2016,1608-00218,0.00,18138.66,R,Acorn Care And Education Ltd,No
Http://opendatacommunities.org/id/metropolitan-district-council/leeds,Leeds City Council,31/08/2016,Childrens Services,Safeguarding Targeted & Specialist,Third Party Payments,SEN Placements,566,12-Aug-2016,1608-00219,0.00,18138.66,R,Acorn Care And Education Ltd,No
Http://opendatacommunities.org/id/metropolitan-district-council/leeds,Leeds City Council,31/08/2016,Childrens Services,Safeguarding Targeted & Specialist,Third Party Payments,SEN Placements,566,12-Aug-2016,1608-00220,0.00,18138.66,R,Acorn Care And Education Ltd,No
Http://opendatacommunities.org/id/metropolitan-district-council/leeds,Leeds City Council,31/08/2016,Childrens Services,Safeguarding Targeted & Specialist,Third Party Payments,SEN Placements,566,12-Aug-2016,1608-00221,0.00,18138.66,R,Acorn Care And Education Ltd,No
Http://opendatacommunities.org/id/metropolitan-district-council/leeds,Leeds City Council,31/08/2016,Childrens Services,Safeguarding Targeted & Specialist,Third Party Payments,SEN Placements,566,12-Aug-2016,1608-00222,0.00,18138.66,R,Acorn Care And Education Ltd,No
Http://opendatacommunities.org/id/metropolitan-district-council/leeds,Leeds City Council,31/08/2016,Childrens Services,Safeguarding Targeted & Specialist,Third Party Payments,SEN Placements,566,12-Aug-2016,1608-00223,0.00,18138.66,R,Acorn Care And Education Ltd,No
Http://opendatacommunities.org/id/metropolitan-district-council/leeds,Leeds City Council,31/08/2016,Childrens Services,Safeguarding Targeted & Specialist,Third Party Payments,SEN Placements,566,12-Aug-2016,1608-00224,0.00,18138.66,R,Acorn Care And Education Ltd,No
Http://opendatacommunities.org/id/metropolitan-district-council/leeds,Leeds City Council,31/08/2016,Childrens Services,Safeguarding Targeted & Specialist,Third Party Payments,SEN Placements,566,12-Aug-2016,1608-00225,0.00,18138.66,R,Acorn Care And Education Ltd,No
Http://opendatacommunities.org/id/metropolitan-district-council/leeds,Leeds City Council,31/08/2016,Childrens Services,Safeguarding Targeted & Specialist,Third Party Payments,SEN Placements,566,12-Aug-2016,1608-00226,0.00,18138.66,R,Acorn Care And Education Ltd,No
Http://opendatacommunities.org/id/metropolitan-district-council/leeds,Leeds City Council,31/08/2016,Childrens Services,Safeguarding Targeted & Specialist,Third Party Payments,SEN Placements,566,12-Aug-2016,1608-00227,0.00,18138.66,R,Acorn Care And Education Ltd,No
Http://opendatacommunities.org/id/metropolitan-district-council/leeds,Leeds City Council,31/08/2016,Childrens Services,Safeguarding Targeted & Specialist,Third Party Payments,SEN Placements,566,12-Aug-2016,1608-00228,0.00,18138.66,R,Acorn Care And Education Ltd,No
Http://opendatacommunities.org/id/metropolitan-district-council/leeds,Leeds City Council,31/08/2016,Childrens Services,Safeguarding Targeted & Specialist,Third Party Payments,SEN Placements,566,12-Aug-2016,1608-00229,0.00,18138.66,R,Acorn Care And Education Ltd,No
Http://opendatacommunities.org/id/metropolitan-district-council/leeds,Leeds City Council,31/08/2016,Childrens Services,Safeguarding Targeted & Specialist,Third Party Payments,SEN Placements,566,12-Aug-2016,1608-00230,0.00,18138.66,R,Acorn Care And Education Ltd,No
Http://opendatacommunities.org/id/metropolitan-district-council/leeds,Leeds City Council,31/08/2016,Childrens Services,Safeguarding Targeted & Specialist,Third Party Payments,SEN Placements,566,12-Aug-2016,1608-00231,0.00,18138.66,R,Acorn Care And Education Ltd,No
Http://opendatacommunities.org/id/metropolitan-district-council/leeds,Leeds City Council,31/08/2016,Childrens Services,Safeguarding Targeted & Specialist,Third Party Payments,SEN Placements,566,12-Aug-2016,1608-00232,0.00,18138.66,R,Acorn Care And Education Ltd,No
Http://opendatacommunities.org/id/metropolitan-district-council/leeds,Leeds City Council,31/08/2016,Childrens Services,Safeguarding Targeted & Specialist,Third Party Payments,SEN Placements,566,12-Aug-2016,1608-00233,0.00,18138.66,R,Acorn Care And Education Ltd,No
Http://opendatacommunities.org/id/metropolitan-district-council/leeds,Leeds City Council,31/08/2016,Childrens Services,Safeguarding Targeted & Specialist,Third Party Payments,SEN Placements,566,12-Aug-2016,1608-00234,0.00,18138.66,R,Acorn Care And Education Ltd,No
Http://opendatacommunities.org/id/metropolitan-district-council/leeds,Leeds City Council,31/08/2016,Childrens Services,Safeguarding Targeted & Specialist,Third Party Payments,SEN Placements,566,12-Aug-2016,1608-00235,0.00,18138.66,R,Acorn Care And Education Ltd,No
Http://opendatacommunities.org/id/metropolitan-district-council/leeds,Leeds City Council,31/08/2016,Childrens Services,Learning Skills & Universal  ,Premises,Maintenance Of Buildings,101,28-Jul-2016,1608-00236,0.00,45.00,R,Acorn Garden Supplies,Yes
Http://opendatacommunities.org/id/metropolitan-district-council/leeds,Leeds City Council,31/08/2016,Childrens Services,Safeguarding Targeted & Specialist,Third Party Payments,Independent Fostering Agencies,509,03-Aug-2016,1608-00237,0.00,5014.20,R,Acorn House (Fostering Services) Ltd,No
Http://opendatacommunities.org/id/metropolitan-district-council/leeds,Leeds City Council,31/08/2016,Adult Social Care,Services For Older People - 65 And Over,Third Party Payments,Nursing Care Dementia,574,12-Aug-2016,1608-00238,0.00,7565.38,R,Acorn Nursing Home,No
Http://opendatacommunities.org/id/metropolitan-district-council/leeds,Leeds City Council,31/08/2016,Adult Social Care,Services For Older People - 65 And Over,Third Party Payments,Nursing Care Dementia,574,24-Aug-2016,1608-00239,0.00,1480.08,R,Acorn Nursing Home,No
Http://opendatacommunities.org/id/metropolitan-district-council/leeds,Leeds City Council,31/08/2016,City Development,Libraries  Arts & Heritage,Supplies and Services,Other Hired And Contracted Services,265,09-Aug-2016,1608-00240,0.00,8000.00,R,Acorn Scaffolding (Yorkshire) Ltd,No
Http://opendatacommunities.org/id/metropolitan-district-council/leeds,Leeds City Council,31/08/2016,City Development,Libraries  Arts & Heritage,Supplies and Services,Other Hired And Contracted Services,265,19-Aug-2016,1608-00241,0.00,850.00,R,Acorn Scaffolding (Yorkshire) Ltd,No
Http://opendatacommunities.org/id/metropolitan-district-council/leeds,Leeds City Council,31/08/2016,Adult Social Care,Other Adult Services,Third Party Payments,Residential - Drugs & Alcohol,583,15-Aug-2016,1608-00242,0.00,2357.14,R,Acorn Treatment & Housing,No
Http://opendatacommunities.org/id/metropolitan-district-council/leeds,Leeds City Council,31/08/2016,Adult Social Care,Other Adult Services,Third Party Payments,Residential - Drugs & Alcohol,583,15-Aug-2016,1608-00243,0.00,1257.14,R,Acorn Treatment & Housing,No
Http://opendatacommunities.org/id/metropolitan-district-council/leeds,Leeds City Council,31/08/2016,Adult Social Care,Other Adult Services,Third Party Payments,Residential - Drugs & Alcohol,583,15-Aug-2016,1608-00244,0.00,2357.14,R,Acorn Treatment & Housing,No
Http://opendatacommunities.org/id/metropolitan-district-council/leeds,Leeds City Council,31/08/2016,Adult Social Care,Other Adult Services,Third Party Payments,Residential - Drugs & Alcohol,583,15-Aug-2016,1608-00245,0.00,1571.43,R,Acorn Treatment & Housing,No
Http://opendatacommunities.org/id/metropolitan-district-council/leeds,Leeds City Council,31/08/2016,Adult Social Care,Other Adult Services,Third Party Payments,Residential - Drugs & Alcohol,583,15-Aug-2016,1608-00246,0.00,2435.71,R,Acorn Treatment & Housing,No
Http://opendatacommunities.org/id/metropolitan-district-council/leeds,Leeds City Council,31/08/2016,Adult Social Care,Assessment And Care Management,Third Party Payments,Residential,580,24-Aug-2016,1608-00247,0.00,2489.32,R,Acre Green,No
Http://opendatacommunities.org/id/metropolitan-district-council/leeds,Leeds City Council,31/08/2016,Adult Social Care,Services For Adults Under 65 Mental/Dis,Third Party Payments,Residential,580,24-Aug-2016,1608-00248,0.00,1459.20,R,Acre Green,No
Http://opendatacommunities.org/id/metropolitan-district-council/leeds,Leeds City Council,31/08/2016,Adult Social Care,Services For Older People - 65 And Over,Third Party Payments,Nursing Home,570,24-Aug-2016,1608-00249,0.00,24483.59,R,Acre Green,No
Http://opendatacommunities.org/id/metropolitan-district-council/leeds,Leeds City Council,31/08/2016,Adult Social Care,Services For Older People - 65 And Over,Third Party Payments,Nursing Care Dementia,574,24-Aug-2016,1608-00250,0.00,1122.48,R,Acre Green,No
Http://opendatacommunities.org/id/metropolitan-district-council/leeds,Leeds City Council,31/08/2016,Adult Social Care,Services For Older People - 65 And Over,Third Party Payments,Residential,580,24-Aug-2016,1608-00251,0.00,9757.88,R,Acre Green,No
Http://opendatacommunities.org/id/metropolitan-district-council/leeds,Leeds City Council,31/08/2016,Adult Social Care,Services For Older People Under 65 P/Dis,Third Party Payments,Nursing Home,570,24-Aug-2016,1608-00252,0.00,5159.84,R,Acre Green,No
Http://opendatacommunities.org/id/metropolitan-district-council/leeds,Leeds City Council,31/08/2016,Adult Social Care,Services For Older People Under 65 P/Dis,Third Party Payments,Residential,580,24-Aug-2016,1608-00253,0.00,2748.51,R,Acre Green,No
Http://opendatacommunities.org/id/metropolitan-district-council/leeds,Leeds City Council,31/08/2016,City Development,Libraries  Arts & Heritage,Supplies and Services,Consultancy Services,259,19-Aug-2016,1608-00254,0.00,1550.00,R,Act (National) Ltd,No
Http://opendatacommunities.org/id/metropolitan-district-council/leeds,Leeds City Council,31/08/2016,Environment & Housing,Leeds Building Services,Supplies and Services,Operational Materials,205,12-Aug-2016,1608-00255,0.00,50.00,R,Actavo Uk Limited,No
Http://opendatacommunities.org/id/metropolitan-district-council/leeds,Leeds City Council,31/08/2016,Adult Social Care,Services For Adults Under 65 Mental/Dis,Third Party Payments,Fees - Level 4,520,12-Aug-2016,1608-00256,0.00,1400.00,R,Action First Recruitment Ltd,No
Http://opendatacommunities.org/id/metropolitan-district-council/leeds,Leeds City Council,31/08/2016,Adult Social Care,Services For Adults Under 65 Mental/Dis,Third Party Payments,Fees - Level 4,520,12-Aug-2016,1608-00257,0.00,350.00,R,Action First Recruitment Ltd,No
Http://opendatacommunities.org/id/metropolitan-district-council/leeds,Leeds City Council,31/08/2016,Adult Social Care,Services For Adults Under 65 Mental/Dis,Third Party Payments,Fees - Level 4,520,19-Aug-2016,1608-00258,0.00,1400.00,R,Action First Recruitment Ltd,No
Http://opendatacommunities.org/id/metropolitan-district-council/leeds,Leeds City Council,31/08/2016,Adult Social Care,Services For Adults Under 65 Mental/Dis,Third Party Payments,Fees - Level 4,520,19-Aug-2016,1608-00259,0.00,1400.00,R,Action First Recruitment Ltd,No
Http://opendatacommunities.org/id/metropolitan-district-council/leeds,Leeds City Council,31/08/2016,Adult Social Care,Services For Adults Under 65 Mental/Dis,Third Party Payments,Fees - Level 4,520,19-Aug-2016,1608-00260,0.00,700.00,R,Action First Recruitment Ltd,No
Http://opendatacommunities.org/id/metropolitan-district-council/leeds,Leeds City Council,31/08/2016,Adult Social Care,Services For Adults Under 65 Mental/Dis,Third Party Payments,Fees - Level 4,520,19-Aug-2016,1608-00261,0.00,3500.00,R,Action First Recruitment Ltd,No
Http://opendatacommunities.org/id/metropolitan-district-council/leeds,Leeds City Council,31/08/2016,Adult Social Care,Services For Adults Under 65 Mental/Dis,Third Party Payments,Fees - Level 4,520,19-Aug-2016,1608-00262,0.00,700.00,R,Action First Recruitment Ltd,No
Http://opendatacommunities.org/id/metropolitan-district-council/leeds,Leeds City Council,31/08/2016,Adult Social Care,Services For Adults Under 65 Mental/Dis,Third Party Payments,Fees - Level 4,520,19-Aug-2016,1608-00263,0.00,1750.00,R,Action First Recruitment Ltd,No
Http://opendatacommunities.org/id/metropolitan-district-council/leeds,Leeds City Council,31/08/2016,Adult Social Care,Services For Adults Under 65 Mental/Dis,Third Party Payments,Fees - Level 4,520,19-Aug-2016,1608-00264,0.00,700.00,R,Action First Recruitment Ltd,No
Http://opendatacommunities.org/id/metropolitan-district-council/leeds,Leeds City Council,31/08/2016,Adult Social Care,Services For Adults Under 65 Mental/Dis,Third Party Payments,Fees - Level 4,520,19-Aug-2016,1608-00265,0.00,1050.00,R,Action First Recruitment Ltd,No
Http://opendatacommunities.org/id/metropolitan-district-council/leeds,Leeds City Council,31/08/2016,Adult Social Care,Services For Adults Under 65 Mental/Dis,Third Party Payments,Fees - Level 4,520,19-Aug-2016,1608-00266,0.00,2800.00,R,Action First Recruitment Ltd,No
Http://opendatacommunities.org/id/metropolitan-district-council/leeds,Leeds City Council,31/08/2016,Adult Social Care,Services For Adults Under 65 Mental/Dis,Third Party Payments,Fees - Level 4,520,19-Aug-2016,1608-00267,0.00,350.00,R,Action First Recruitment Ltd,No
Http://opendatacommunities.org/id/metropolitan-district-council/leeds,Leeds City Council,31/08/2016,Adult Social Care,Services For Adults Under 65 Mental/Dis,Third Party Payments,Fees - Level 4,520,19-Aug-2016,1608-00268,0.00,350.00,R,Action First Recruitment Ltd,No
Http://opendatacommunities.org/id/metropolitan-district-council/leeds,Leeds City Council,31/08/2016,Adult Social Care,Services For Adults Under 65 Mental/Dis,Third Party Payments,Fees - Level 4,520,19-Aug-2016,1608-00269,0.00,350.00,R,Action First Recruitment Ltd,No
Http://opendatacommunities.org/id/metropolitan-district-council/leeds,Leeds City Council,31/08/2016,Adult Social Care,Services For Adults Under 65 Mental/Dis,Third Party Payments,Fees - Level 4,520,19-Aug-2016,1608-00270,0.00,350.00,R,Action First Recruitment Ltd,No
Http://opendatacommunities.org/id/metropolitan-district-council/leeds,Leeds City Council,31/08/2016,Adult Social Care,Services For Adults Under 65 Mental/Dis,Third Party Payments,Fees - Level 4,520,19-Aug-2016,1608-00271,0.00,350.00,R,Action First Recruitment Ltd,No
Http://opendatacommunities.org/id/metropolitan-district-council/leeds,Leeds City Council,31/08/2016,Adult Social Care,Services For Adults Under 65 Mental/Dis,Third Party Payments,Fees - Level 4,520,19-Aug-2016,1608-00272,0.00,1750.00,R,Action First Recruitment Ltd,No
Http://opendatacommunities.org/id/metropolitan-district-council/leeds,Leeds City Council,31/08/2016,Adult Social Care,Services For Adults Under 65 Mental/Dis,Third Party Payments,Fees - Level 4,520,19-Aug-2016,1608-00273,0.00,350.00,R,Action First Recruitment Ltd,No
Http://opendatacommunities.org/id/metropolitan-district-council/leeds,Leeds City Council,31/08/2016,Adult Social Care,Services For Adults Under 65 Mental/Dis,Third Party Payments,Fees - Level 4,520,19-Aug-2016,1608-00274,0.00,700.00,R,Action First Recruitment Ltd,No
Http://opendatacommunities.org/id/metropolitan-district-council/leeds,Leeds City Council,31/08/2016,Adult Social Care,Services For Adults Under 65 Mental/Dis,Third Party Payments,Fees - Level 4,520,19-Aug-2016,1608-00275,0.00,1050.00,R,Action First Recruitment Ltd,No
Http://opendatacommunities.org/id/metropolitan-district-council/leeds,Leeds City Council,31/08/2016,Adult Social Care,Services For Adults Under 65 Mental/Dis,Third Party Payments,Fees - Level 4,520,19-Aug-2016,1608-00276,0.00,2450.00,R,Action First Recruitment Ltd,No
Http://opendatacommunities.org/id/metropolitan-district-council/leeds,Leeds City Council,31/08/2016,Adult Social Care,Services For Adults Under 65 Mental/Dis,Third Party Payments,Fees - Level 4,520,19-Aug-2016,1608-00277,0.00,350.00,R,Action First Recruitment Ltd,No
Http://opendatacommunities.org/id/metropolitan-district-council/leeds,Leeds City Council,31/08/2016,Adult Social Care,Services For Adults Under 65 Mental/Dis,Third Party Payments,Fees - Level 4,520,19-Aug-2016,1608-00278,0.00,1750.00,R,Action First Recruitment Ltd,No
Http://opendatacommunities.org/id/metropolitan-district-council/leeds,Leeds City Council,31/08/2016,Adult Social Care,Services For Adults Under 65 Mental/Dis,Third Party Payments,Fees - Level 4,520,19-Aug-2016,1608-00279,0.00,350.00,R,Action First Recruitment Ltd,No
Http://opendatacommunities.org/id/metropolitan-district-council/leeds,Leeds City Council,31/08/2016,Adult Social Care,Services For Adults Under 65 Mental/Dis,Third Party Payments,Fees - Level 4,520,19-Aug-2016,1608-00280,0.00,1050.00,R,Action First Recruitment Ltd,No
Http://opendatacommunities.org/id/metropolitan-district-council/leeds,Leeds City Council,31/08/2016,Adult Social Care,Services For Adults Under 65 Mental/Dis,Third Party Payments,Fees - Level 4,520,19-Aug-2016,1608-00281,0.00,1050.00,R,Action First Recruitment Ltd,No
Http://opendatacommunities.org/id/metropolitan-district-council/leeds,Leeds City Council,31/08/2016,Adult Social Care,Services For Adults Under 65 Mental/Dis,Third Party Payments,Fees - Level 4,520,19-Aug-2016,1608-00282,0.00,350.00,R,Action First Recruitment Ltd,No
Http://opendatacommunities.org/id/metropolitan-district-council/leeds,Leeds City Council,31/08/2016,Adult Social Care,Services For Adults Under 65 Mental/Dis,Third Party Payments,Fees - Level 4,520,19-Aug-2016,1608-00283,0.00,1400.00,R,Action First Recruitment Ltd,No
Http://opendatacommunities.org/id/metropolitan-district-council/leeds,Leeds City Council,31/08/2016,Adult Social Care,Services For Adults Under 65 Mental/Dis,Third Party Payments,Fees - Level 4,520,19-Aug-2016,1608-00284,0.00,700.00,R,Action First Recruitment Ltd,No
Http://opendatacommunities.org/id/metropolitan-district-council/leeds,Leeds City Council,31/08/2016,Adult Social Care,Services For Adults Under 65 Mental/Dis,Third Party Payments,Fees - Level 4,520,19-Aug-2016,1608-00285,0.00,350.00,R,Action First Recruitment Ltd,No
Http://opendatacommunities.org/id/metropolitan-district-council/leeds,Leeds City Council,31/08/2016,Adult Social Care,Services For Adults Under 65 Mental/Dis,Third Party Payments,Fees - Level 4,520,19-Aug-2016,1608-00286,0.00,350.00,R,Action First Recruitment Ltd,No
Http://opendatacommunities.org/id/metropolitan-district-council/leeds,Leeds City Council,31/08/2016,Adult Social Care,Services For Adults Under 65 Mental/Dis,Third Party Payments,Fees - Level 4,520,19-Aug-2016,1608-00287,0.00,1050.00,R,Action First Recruitment Ltd,No
Http://opendatacommunities.org/id/metropolitan-district-council/leeds,Leeds City Council,31/08/2016,Adult Social Care,Services For Adults Under 65 Mental/Dis,Third Party Payments,Fees - Level 4,520,19-Aug-2016,1608-00288,0.00,700.00,R,Action First Recruitment Ltd,No
Http://opendatacommunities.org/id/metropolitan-district-council/leeds,Leeds City Council,31/08/2016,Adult Social Care,Services For Adults Under 65 Mental/Dis,Third Party Payments,Fees - Level 4,520,19-Aug-2016,1608-00289,0.00,700.00,R,Action First Recruitment Ltd,No
Http://opendatacommunities.org/id/metropolitan-district-council/leeds,Leeds City Council,31/08/2016,Adult Social Care,Services For Adults Under 65 Mental/Dis,Third Party Payments,Fees - Level 4,520,19-Aug-2016,1608-00290,0.00,350.00,R,Action First Recruitment Ltd,No
Http://opendatacommunities.org/id/metropolitan-district-council/leeds,Leeds City Council,31/08/2016,Adult Social Care,Services For Adults Under 65 Mental/Dis,Third Party Payments,Fees - Level 4,520,19-Aug-2016,1608-00291,0.00,350.00,R,Action First Recruitment Ltd,No
Http://opendatacommunities.org/id/metropolitan-district-council/leeds,Leeds City Council,31/08/2016,Adult Social Care,Services For Adults Under 65 Mental/Dis,Third Party Payments,Fees - Level 4,520,19-Aug-2016,1608-00292,0.00,700.00,R,Action First Recruitment Ltd,No
Http://opendatacommunities.org/id/metropolitan-district-council/leeds,Leeds City Council,31/08/2016,Adult Social Care,Services For Adults Under 65 Mental/Dis,Third Party Payments,Fees - Level 4,520,19-Aug-2016,1608-00293,0.00,350.00,R,Action First Recruitment Ltd,No
Http://opendatacommunities.org/id/metropolitan-district-council/leeds,Leeds City Council,31/08/2016,Adult Social Care,Services For Adults Under 65 Mental/Dis,Third Party Payments,Fees - Level 4,520,19-Aug-2016,1608-00294,0.00,350.00,R,Action First Recruitment Ltd,No
Http://opendatacommunities.org/id/metropolitan-district-council/leeds,Leeds City Council,31/08/2016,Adult Social Care,Services For Adults Under 65 Mental/Dis,Third Party Payments,Fees - Level 4,520,19-Aug-2016,1608-00295,0.00,1400.00,R,Action First Recruitment Ltd,No
Http://opendatacommunities.org/id/metropolitan-district-council/leeds,Leeds City Council,31/08/2016,Adult Social Care,Services For Adults Under 65 Mental/Dis,Third Party Payments,Fees - Level 4,520,19-Aug-2016,1608-00296,0.00,350.00,R,Action First Recruitment Ltd,No
Http://opendatacommunities.org/id/metropolitan-district-council/leeds,Leeds City Council,31/08/2016,Adult Social Care,Services For Adults Under 65 Mental/Dis,Third Party Payments,Fees - Level 4,520,24-Aug-2016,1608-00297,0.00,1050.00,R,Action First Recruitment Ltd,No
Http://opendatacommunities.org/id/metropolitan-district-council/leeds,Leeds City Council,31/08/2016,Adult Social Care,Services For Adults Under 65 Mental/Dis,Third Party Payments,Fees - Level 4,520,26-Aug-2016,1608-00298,0.00,350.00,R,Action First Recruitment Ltd,No
Http://opendatacommunities.org/id/metropolitan-district-council/leeds,Leeds City Council,31/08/2016,Adult Social Care,Services For Adults Under 65 Mental/Dis,Third Party Payments,Fees - Level 4,520,26-Aug-2016,1608-00299,0.00,700.00,R,Action First Recruitment Ltd,No
Http://opendatacommunities.org/id/metropolitan-district-council/leeds,Leeds City Council,31/08/2016,Adult Social Care,Services For Adults Under 65 Mental/Dis,Third Party Payments,Fees - Level 4,520,26-Aug-2016,1608-00300,0.00,1400.00,R,Action First Recruitment Ltd,No
Http://opendatacommunities.org/id/metropolitan-district-council/leeds,Leeds City Council,31/08/2016,Adult Social Care,Services For Adults Under 65 Mental/Dis,Third Party Payments,Fees - Level 4,520,26-Aug-2016,1608-00301,0.00,700.00,R,Action First Recruitment Ltd,No
Http://opendatacommunities.org/id/metropolitan-district-council/leeds,Leeds City Council,31/08/2016,Adult Social Care,Services For Adults Under 65 Mental/Dis,Third Party Payments,Fees - Level 4,520,26-Aug-2016,1608-00302,0.00,350.00,R,Action First Recruitment Ltd,No
Http://opendatacommunities.org/id/metropolitan-district-council/leeds,Leeds City Council,31/08/2016,Adult Social Care,Services For Adults Under 65 Mental/Dis,Third Party Payments,Fees - Level 4,520,26-Aug-2016,1608-00303,0.00,1050.00,R,Action First Recruitment Ltd,No
Http://opendatacommunities.org/id/metropolitan-district-council/leeds,Leeds City Council,31/08/2016,Adult Social Care,Services For Adults Under 65 Mental/Dis,Third Party Payments,Fees - Level 4,520,26-Aug-2016,1608-00304,0.00,700.00,R,Action First Recruitment Ltd,No
Http://opendatacommunities.org/id/metropolitan-district-council/leeds,Leeds City Council,31/08/2016,Adult Social Care,Services For Adults Under 65 Mental/Dis,Third Party Payments,Fees - Level 4,520,26-Aug-2016,1608-00305,0.00,700.00,R,Action First Recruitment Ltd,No
Http://opendatacommunities.org/id/metropolitan-district-council/leeds,Leeds City Council,31/08/2016,Adult Social Care,Services For Adults Under 65 Mental/Dis,Third Party Payments,Fees - Level 4,520,26-Aug-2016,1608-00306,0.00,1400.00,R,Action First Recruitment Ltd,No
Http://opendatacommunities.org/id/metropolitan-district-council/leeds,Leeds City Council,31/08/2016,Adult Social Care,Services For Adults Under 65 Mental/Dis,Third Party Payments,Fees - Level 4,520,26-Aug-2016,1608-00307,0.00,2100.00,R,Action First Recruitment Ltd,No
Http://opendatacommunities.org/id/metropolitan-district-council/leeds,Leeds City Council,31/08/2016,Adult Social Care,Services For Adults Under 65 Mental/Dis,Third Party Payments,Fees - Level 4,520,26-Aug-2016,1608-00308,0.00,350.00,R,Action First Recruitment Ltd,No
Http://opendatacommunities.org/id/metropolitan-district-council/leeds,Leeds City Council,31/08/2016,Adult Social Care,Services For Adults Under 65 Mental/Dis,Third Party Payments,Fees - Level 4,520,26-Aug-2016,1608-00309,0.00,700.00,R,Action First Recruitment Ltd,No
Http://opendatacommunities.org/id/metropolitan-district-council/leeds,Leeds City Council,31/08/2016,Adult Social Care,Services For Adults Under 65 Mental/Dis,Third Party Payments,Fees - Level 4,520,26-Aug-2016,1608-00310,0.00,1400.00,R,Action First Recruitment Ltd,No
Http://opendatacommunities.org/id/metropolitan-district-council/leeds,Leeds City Council,31/08/2016,Adult Social Care,Services For Adults Under 65 Mental/Dis,Third Party Payments,Fees - Level 4,520,26-Aug-2016,1608-00311,0.00,350.00,R,Action First Recruitment Ltd,No
Http://opendatacommunities.org/id/metropolitan-district-council/leeds,Leeds City Council,31/08/2016,Adult Social Care,Services For Adults Under 65 Mental/Dis,Third Party Payments,Fees - Level 4,520,26-Aug-2016,1608-00312,0.00,1050.00,R,Action First Recruitment Ltd,No
Http://opendatacommunities.org/id/metropolitan-district-council/leeds,Leeds City Council,31/08/2016,Adult Social Care,Services For Adults Under 65 Mental/Dis,Third Party Payments,Fees - Level 4,520,26-Aug-2016,1608-00313,0.00,1750.00,R,Action First Recruitment Ltd,No
Http://opendatacommunities.org/id/metropolitan-district-council/leeds,Leeds City Council,31/08/2016,Adult Social Care,Services For Adults Under 65 Mental/Dis,Third Party Payments,Fees - Level 4,520,26-Aug-2016,1608-00314,0.00,350.00,R,Action First Recruitment Ltd,No
Http://opendatacommunities.org/id/metropolitan-district-council/leeds,Leeds City Council,31/08/2016,Adult Social Care,Services For Adults Under 65 Mental/Dis,Third Party Payments,Fees - Level 4,520,26-Aug-2016,1608-00315,0.00,700.00,R,Action First Recruitment Ltd,No
Http://opendatacommunities.org/id/metropolitan-district-council/leeds,Leeds City Council,31/08/2016,Adult Social Care,Services For Adults Under 65 Mental/Dis,Third Party Payments,Fees - Level 4,520,26-Aug-2016,1608-00316,0.00,350.00,R,Action First Recruitment Ltd,No
Http://opendatacommunities.org/id/metropolitan-district-council/leeds,Leeds City Council,31/08/2016,Childrens Services,Safeguarding Targeted & Specialist,Third Party Payments,Independent Fostering Agencies,509,19-Aug-2016,1608-00317,0.00,4776.48,R,Action For Children,No
Http://opendatacommunities.org/id/metropolitan-district-council/leeds,Leeds City Council,31/08/2016,Childrens Services,Safeguarding Targeted & Specialist,Third Party Payments,Independent Fostering Agencies,509,19-Aug-2016,1608-00318,0.00,5163.67,R,Action For Children,No
Http://opendatacommunities.org/id/metropolitan-district-council/leeds,Leeds City Council,31/08/2016,Childrens Services,Safeguarding Targeted & Specialist,Third Party Payments,Independent Fostering Agencies,509,19-Aug-2016,1608-00319,0.00,4776.48,R,Action For Children,No
Http://opendatacommunities.org/id/metropolitan-district-council/leeds,Leeds City Council,31/08/2016,Childrens Services,Safeguarding Targeted & Specialist,Third Party Payments,Independent Fostering Agencies,509,19-Aug-2016,1608-00320,0.00,5163.67,R,Action For Children,No
Http://opendatacommunities.org/id/metropolitan-district-council/leeds,Leeds City Council,31/08/2016,Childrens Services,Safeguarding Targeted & Specialist,Third Party Payments,Independent Fostering Agencies,509,19-Aug-2016,1608-00321,0.00,4776.48,R,Action For Children,No
Http://opendatacommunities.org/id/metropolitan-district-council/leeds,Leeds City Council,31/08/2016,Strategic Landlord,Housing Management  ,Supplies and Services,Other Hired And Contracted Services,265,08-Jul-2016,1608-00322,0.00,275.00,R,Active Hire (Leeds) Lt,Yes
Http://opendatacommunities.org/id/metropolitan-district-council/leeds,Leeds City Council,31/08/2016,Strategic Landlord,Housing Management,Supplies and Services,Grants To Voluntary Organisations,293,09-Aug-2016,1608-00323,0.00,456.00,R,Active Hire (Leeds) Ltd,No
Http://opendatacommunities.org/id/metropolitan-district-council/leeds,Leeds City Council,31/08/2016,Strategic Landlord,Housing Management,Supplies and Services,Grants To Voluntary Organisations,293,12-Aug-2016,1608-00324,0.00,503.33,R,Active Hire (Leeds) Ltd,No
Http://opendatacommunities.org/id/metropolitan-district-council/leeds,Leeds City Council,31/08/2016,Strategic Landlord,Housing Management,Supplies and Services,Grants To Voluntary Organisations,293,26-Aug-2016,1608-00325,0.00,300.00,R,Active Hire (Leeds) Ltd,No
Http://opendatacommunities.org/id/metropolitan-district-council/leeds,Leeds City Council,31/08/2016,Strategic Landlord,Housing Management,Supplies and Services,Grants To Voluntary Organisations,293,26-Aug-2016,1608-00326,0.00,170.00,R,Active Hire (Leeds) Ltd,No
Http://opendatacommunities.org/id/metropolitan-district-council/leeds,Leeds City Council,31/08/2016,Strategic Landlord,Housing Management,Supplies and Services,Grants To Voluntary Organisations,293,26-Aug-2016,1608-00327,0.00,300.00,R,Active Hire (Leeds) Ltd,No
Http://opendatacommunities.org/id/metropolitan-district-council/leeds,Leeds City Council,31/08/2016,Citizens and Communities,Communities,Supplies and Services,'Well Being' Large Grants Projects,230,26-Aug-2016,1608-00328,0.00,690.00,R,Active Hire (Leeds) Ltd,No
Http://opendatacommunities.org/id/metropolitan-district-council/leeds,Leeds City Council,31/08/2016,Childrens Services,Safeguarding Targeted & Specialist,Third Party Payments,Section 17,551,10-Aug-2016,1608-00329,0.00,274.13,R,Active Kids Day Nursery,No
Http://opendatacommunities.org/id/metropolitan-district-council/leeds,Leeds City Council,31/08/2016,Childrens Services,Safeguarding Targeted & Specialist,Third Party Payments,Section 17,551,16-Aug-2016,1608-00330,0.00,274.13,R,Active Kids Day Nursery,No
Http://opendatacommunities.org/id/metropolitan-district-council/leeds,Leeds City Council,31/08/2016,Childrens Services,Safeguarding Targeted & Specialist,Third Party Payments,Section 17,551,17-Aug-2016,1608-00331,0.00,129.00,R,Active Kids Day Nursery,No
Http://opendatacommunities.org/id/metropolitan-district-council/leeds,Leeds City Council,31/08/2016,Childrens Services,Safeguarding Targeted & Specialist,Third Party Payments,Section 17,551,23-Aug-2016,1608-00332,0.00,378.00,R,Active Kids Day Nursery,No
Http://opendatacommunities.org/id/metropolitan-district-council/leeds,Leeds City Council,31/08/2016,Environment & Housing,Waste Management,Supplies and Services,Recycling & Reuse Charges,234,04-Aug-2016,1608-00333,0.00,110.00,R,Acumen Waste Services Ltd,No
Http://opendatacommunities.org/id/metropolitan-district-council/leeds,Leeds City Council,31/08/2016,Environment & Housing,Waste Management,Supplies and Services,Recycling & Reuse Charges,234,04-Aug-2016,1608-00334,0.00,110.00,R,Acumen Waste Services Ltd,No
Http://opendatacommunities.org/id/metropolitan-district-council/leeds,Leeds City Council,31/08/2016,Environment & Housing,Waste Management,Supplies and Services,Recycling & Reuse Charges,234,12-Aug-2016,1608-00335,0.00,7077.88,R,Acumen Waste Services Ltd,No
Http://opendatacommunities.org/id/metropolitan-district-council/leeds,Leeds City Council,31/08/2016,Environment & Housing,Waste Management,Supplies and Services,Recycling & Reuse Charges,234,12-Aug-2016,1608-00336,0.00,4726.85,R,Acumen Waste Services Ltd,No
Http://opendatacommunities.org/id/metropolitan-district-council/leeds,Leeds City Council,31/08/2016,Environment & Housing,Waste Management,Supplies and Services,Recycling & Reuse Charges,234,12-Aug-2016,1608-00337,0.00,1899.45,R,Acumen Waste Services Ltd,No
Http://opendatacommunities.org/id/metropolitan-district-council/leeds,Leeds City Council,31/08/2016,Environment & Housing,Waste Management,Supplies and Services,Recycling & Reuse Charges,234,12-Aug-2016,1608-00338,0.00,550.00,R,Acumen Waste Services Ltd,No
Http://opendatacommunities.org/id/metropolitan-district-council/leeds,Leeds City Council,31/08/2016,Environment & Housing,Waste Management,Supplies and Services,Recycling & Reuse Charges,234,19-Aug-2016,1608-00339,0.00,220.00,R,Acumen Waste Services Ltd,No
Http://opendatacommunities.org/id/metropolitan-district-council/leeds,Leeds City Council,31/08/2016,Environment & Housing,Waste Management,Supplies and Services,Recycling & Reuse Charges,234,19-Aug-2016,1608-00340,0.00,220.00,R,Acumen Waste Services Ltd,No
Http://opendatacommunities.org/id/metropolitan-district-council/leeds,Leeds City Council,31/08/2016,Environment & Housing,Waste Management,Supplies and Services,Recycling & Reuse Charges,234,19-Aug-2016,1608-00341,0.00,110.00,R,Acumen Waste Services Ltd,No
Http://opendatacommunities.org/id/metropolitan-district-council/leeds,Leeds City Council,31/08/2016,Environment & Housing,Waste Management,Supplies and Services,Recycling & Reuse Charges,234,19-Aug-2016,1608-00342,0.00,6713.40,R,Acumen Waste Services Ltd,No
Http://opendatacommunities.org/id/metropolitan-district-council/leeds,Leeds City Council,31/08/2016,Environment & Housing,Environmental Health,Capital,Construction,3,01-Aug-2016,1608-00343,0.00,9000.00,C,Ad Builders,No
Http://opendatacommunities.org/id/metropolitan-district-council/leeds,Leeds City Council,31/08/2016,Civic Enterprise Leeds,Business Support Centre,Supplies and Services,Operational Materials,205,03-Aug-2016,1608-00344,0.00,645.00,R,Ad3 Envelope Printers Limited,No
Http://opendatacommunities.org/id/metropolitan-district-council/leeds,Leeds City Council,31/08/2016,Civic Enterprise Leeds,Business Support Centre,Supplies and Services,Operational Materials,205,31-Aug-2016,1608-00345,0.00,645.00,R,Ad3 Envelope Printers Limited,No
Http://opendatacommunities.org/id/metropolitan-district-council/leeds,Leeds City Council,31/08/2016,Adult Social Care,Services For Older People - 65 And Over,Third Party Payments,Nursing Home,570,24-Aug-2016,1608-00346,0.00,2120.00,R,Adbolton Hall,No
Http://opendatacommunities.org/id/metropolitan-district-council/leeds,Leeds City Council,31/08/2016,Public Health,Public Health,Third Party Payments,Public Health Commissioned Services,526,03-Aug-2016,1608-00347,0.00,105.00,R,Addlestone & Partners,No
Http://opendatacommunities.org/id/metropolitan-district-council/leeds,Leeds City Council,31/08/2016,Central & Corporate,Human Resources,Employees,Occupational Health,85,11-Aug-2016,1608-00348,0.00,50.00,R,Addlestone & Partners,No
Http://opendatacommunities.org/id/metropolitan-district-council/leeds,Leeds City Council,31/08/2016,Environment & Housing,Parks and Countryside,Supplies and Services,Other Hired And Contracted Services,265,23-Aug-2016,1608-00349,0.00,7294.00,R,Addlestone & Partners,No
Http://opendatacommunities.org/id/metropolitan-district-council/leeds,Leeds City Council,31/08/2016,Public Health,Public Health,Third Party Payments,Public Health Commissioned Services,526,25-Aug-2016,1608-00350,0.00,112.00,R,Addlestone & Partners,No
Http://opendatacommunities.org/id/metropolitan-district-council/leeds,Leeds City Council,31/08/2016,Central & Corporate,Technology  ,Employees,Agency Staff,8,30-Jun-2016,1608-00351,0.00,2300.00,R,Adecco Alfred Marks,Yes
Http://opendatacommunities.org/id/metropolitan-district-council/leeds,Leeds City Council,31/08/2016,Central & Corporate,Technology  ,Employees,Agency Staff,8,14-Jul-2016,1608-00352,0.00,2300.00,R,Adecco Alfred Marks,Yes
Http://opendatacommunities.org/id/metropolitan-district-council/leeds,Leeds City Council,31/08/2016,Central & Corporate,Technology  ,Employees,Agency Staff,8,28-Jul-2016,1608-00353,0.00,1380.00,R,Adecco Alfred Marks,Yes
Http://opendatacommunities.org/id/metropolitan-district-council/leeds,Leeds City Council,31/08/2016,Central & Corporate,Technology  ,Employees,Agency Staff,8,28-Jul-2016,1608-00354,0.00,2320.00,R,Adecco Alfred Marks,Yes
Http://opendatacommunities.org/id/metropolitan-district-council/leeds,Leeds City Council,31/08/2016,Central & Corporate,Technology  ,Employees,Agency Staff,8,28-Jul-2016,1608-00355,0.00,2900.00,R,Adecco Alfred Marks,Yes
Http://opendatacommunities.org/id/metropolitan-district-council/leeds,Leeds City Council,31/08/2016,Central & Corporate,Technology  ,Employees,Agency Staff,8,28-Jul-2016,1608-00356,0.00,2900.00,R,Adecco Alfred Marks,Yes
Http://opendatacommunities.org/id/metropolitan-district-council/leeds,Leeds City Council,31/08/2016,Central & Corporate,Technology  ,Employees,Agency Staff,8,28-Jul-2016,1608-00357,0.00,2320.00,R,Adecco Alfred Marks,Yes
Http://opendatacommunities.org/id/metropolitan-district-council/leeds,Leeds City Council,31/08/2016,Central & Corporate,Technology  ,Employees,Agency Staff,8,28-Jul-2016,1608-00358,0.00,2320.00,R,Adecco Alfred Marks,Yes
Http://opendatacommunities.org/id/metropolitan-district-council/leeds,Leeds City Council,31/08/2016,Central & Corporate,Technology  ,Employees,Agency Staff,8,28-Jul-2016,1608-00359,0.00,2900.00,R,Adecco Alfred Marks,Yes
Http://opendatacommunities.org/id/metropolitan-district-council/leeds,Leeds City Council,31/08/2016,Central & Corporate,Technology  ,Employees,Agency Staff,8,28-Jul-2016,1608-00360,0.00,2900.00,R,Adecco Alfred Marks,Yes
Http://opendatacommunities.org/id/metropolitan-district-council/leeds,Leeds City Council,31/08/2016,Central & Corporate,Technology  ,Employees,Agency Staff,8,28-Jul-2016,1608-00361,0.00,1840.00,R,Adecco Alfred Marks,Yes
Http://opendatacommunities.org/id/metropolitan-district-council/leeds,Leeds City Council,31/08/2016,Central & Corporate,Technology  ,Employees,Agency Staff,8,28-Jul-2016,1608-00362,0.00,2900.00,R,Adecco Alfred Marks,Yes
Http://opendatacommunities.org/id/metropolitan-district-council/leeds,Leeds City Council,31/08/2016,Public Health,Public Health,Third Party Payments,Public Health Commissioned Services,526,02-Aug-2016,1608-00363,0.00,91.36,R,Adel Pharmacy,No
Http://opendatacommunities.org/id/metropolitan-district-council/leeds,Leeds City Council,31/08/2016,Insurance,Insurance,Supplies and Services,Insurance Claims,248,03-Aug-2016,1608-00364,0.00,300.00,R,REDACTED PERSONAL DATA,No
Http://opendatacommunities.org/id/metropolitan-district-council/leeds,Leeds City Council,31/08/2016,Adult Social Care,Services For Older People - 65 And Over,Third Party Payments,Residential,580,24-Aug-2016,1608-00365,0.00,1173.68,R,Adeline Lodge,No
Http://opendatacommunities.org/id/metropolitan-district-council/leeds,Leeds City Council,31/08/2016,Adult Social Care,Services For Older People - 65 And Over,Third Party Payments,Nursing Home,570,24-Aug-2016,1608-00366,0.00,1056.32,R,Aden House,No
Http://opendatacommunities.org/id/metropolitan-district-council/leeds,Leeds City Council,31/08/2016,Environment & Housing,Leeds Building Services,Supplies and Services,Operational Materials,205,01-Aug-2016,1608-00367,0.00,235.06,R,Adi Global,No
Http://opendatacommunities.org/id/metropolitan-district-council/leeds,Leeds City Council,31/08/2016,Environment & Housing,Leeds Building Services,Supplies and Services,Operational Materials,205,02-Aug-2016,1608-00368,0.00,0.72,R,Adi Global,No
Http://opendatacommunities.org/id/metropolitan-district-council/leeds,Leeds City Council,31/08/2016,Environment & Housing,Leeds Building Services,Supplies and Services,Operational Materials,205,02-Aug-2016,1608-00369,0.00,49.88,R,Adi Global,No
Http://opendatacommunities.org/id/metropolitan-district-council/leeds,Leeds City Council,31/08/2016,Environment & Housing,Leeds Building Services,Supplies and Services,Operational Materials,205,02-Aug-2016,1608-00370,0.00,183.00,R,Adi Global,No
Http://opendatacommunities.org/id/metropolitan-district-council/leeds,Leeds City Council,31/08/2016,Environment & Housing,Leeds Building Services,Supplies and Services,Operational Materials,205,03-Aug-2016,1608-00371,0.00,47.64,R,Adi Global,No
Http://opendatacommunities.org/id/metropolitan-district-council/leeds,Leeds City Council,31/08/2016,Environment & Housing,Leeds Building Services,Supplies and Services,Operational Materials,205,03-Aug-2016,1608-00372,0.00,20.58,R,Adi Global,No
Http://opendatacommunities.org/id/metropolitan-district-council/leeds,Leeds City Council,31/08/2016,Environment & Housing,Leeds Building Services,Supplies and Services,Operational Materials,205,03-Aug-2016,1608-00373,0.00,6.24,R,Adi Global,No
Http://opendatacommunities.org/id/metropolitan-district-council/leeds,Leeds City Council,31/08/2016,Environment & Housing,Leeds Building Services,Supplies and Services,Operational Materials,205,03-Aug-2016,1608-00374,0.00,32.30,R,Adi Global,No
Http://opendatacommunities.org/id/metropolitan-district-council/leeds,Leeds City Council,31/08/2016,Environment & Housing,Leeds Building Services,Supplies and Services,Operational Materials,205,10-Aug-2016,1608-00375,0.00,225.29,R,Adi Global,No
Http://opendatacommunities.org/id/metropolitan-district-council/leeds,Leeds City Council,31/08/2016,Environment & Housing,Leeds Building Services,Supplies and Services,Operational Materials,205,10-Aug-2016,1608-00376,0.00,57.38,R,Adi Global,No
Http://opendatacommunities.org/id/metropolitan-district-council/leeds,Leeds City Council,31/08/2016,Environment & Housing,Leeds Building Services,Supplies and Services,Operational Materials,205,12-Aug-2016,1608-00377,0.00,143.34,R,Adi Global,No
Http://opendatacommunities.org/id/metropolitan-district-council/leeds,Leeds City Council,31/08/2016,Environment & Housing,Leeds Building Services,Supplies and Services,Operational Materials,205,12-Aug-2016,1608-00378,0.00,371.84,R,Adi Global,No
Http://opendatacommunities.org/id/metropolitan-district-council/leeds,Leeds City Council,31/08/2016,Environment & Housing,Leeds Building Services,Supplies and Services,Operational Materials,205,15-Aug-2016,1608-00379,0.00,74.05,R,Adi Global,No
Http://opendatacommunities.org/id/metropolitan-district-council/leeds,Leeds City Council,31/08/2016,Environment & Housing,Leeds Building Services,Supplies and Services,Operational Materials,205,15-Aug-2016,1608-00380,0.00,61.59,R,Adi Global,No
Http://opendatacommunities.org/id/metropolitan-district-council/leeds,Leeds City Council,31/08/2016,Environment & Housing,Leeds Building Services,Supplies and Services,Operational Materials,205,15-Aug-2016,1608-00381,0.00,47.64,R,Adi Global,No
Http://opendatacommunities.org/id/metropolitan-district-council/leeds,Leeds City Council,31/08/2016,Environment & Housing,Leeds Building Services,Supplies and Services,Stores - Central And Other Depots,005,17-Aug-2016,1608-00382,0.00,90.00,R,Adi Global,No
Http://opendatacommunities.org/id/metropolitan-district-council/leeds,Leeds City Council,31/08/2016,Environment & Housing,Leeds Building Services,Supplies and Services,Stores - Central And Other Depots,005,17-Aug-2016,1608-00383,0.00,-90.00,R,Adi Global,No
Http://opendatacommunities.org/id/metropolitan-district-council/leeds,Leeds City Council,31/08/2016,Environment & Housing,Leeds Building Services,Supplies and Services,Operational Materials,205,22-Aug-2016,1608-00384,0.00,17.50,R,Adi Global,No
Http://opendatacommunities.org/id/metropolitan-district-council/leeds,Leeds City Council,31/08/2016,Environment & Housing,Leeds Building Services,Supplies and Services,Operational Materials,205,22-Aug-2016,1608-00385,0.00,60.59,R,Adi Global,No
Http://opendatacommunities.org/id/metropolitan-district-council/leeds,Leeds City Council,31/08/2016,Environment & Housing,Leeds Building Services,Supplies and Services,Operational Materials,205,22-Aug-2016,1608-00386,0.00,21.93,R,Adi Global,No
Http://opendatacommunities.org/id/metropolitan-district-council/leeds,Leeds City Council,31/08/2016,Environment & Housing,Leeds Building Services,Supplies and Services,Operational Materials,205,22-Aug-2016,1608-00387,0.00,0.72,R,Adi Global,No
Http://opendatacommunities.org/id/metropolitan-district-council/leeds,Leeds City Council,31/08/2016,Environment & Housing,Leeds Building Services,Supplies and Services,Operational Materials,205,22-Aug-2016,1608-00388,0.00,6.24,R,Adi Global,No
Http://opendatacommunities.org/id/metropolitan-district-council/leeds,Leeds City Council,31/08/2016,Environment & Housing,Leeds Building Services,Supplies and Services,Operational Materials,205,22-Aug-2016,1608-00389,0.00,47.64,R,Adi Global,No
Http://opendatacommunities.org/id/metropolitan-district-council/leeds,Leeds City Council,31/08/2016,Environment & Housing,Leeds Building Services,Supplies and Services,Operational Materials,205,24-Aug-2016,1608-00390,0.00,430.56,R,Adi Global,No
Http://opendatacommunities.org/id/metropolitan-district-council/leeds,Leeds City Council,31/08/2016,Childrens Services,Safeguarding Targeted & Specialist  ,Supplies and Services,Operational Furniture And Equipment,203,05-Jul-2016,1608-00391,0.00,90.00,R,Adi-Gardiner Ltd,Yes
Http://opendatacommunities.org/id/metropolitan-district-council/leeds,Leeds City Council,31/08/2016,Environment & Housing,Community Safety  ,Supplies and Services,Other Hired And Contracted Services,265,14-Jul-2016,1608-00392,0.00,75.88,R,Adi-Gardiner Ltd,Yes
Http://opendatacommunities.org/id/metropolitan-district-council/leeds,Leeds City Council,31/08/2016,Insurance,Insurance,Supplies and Services,Insurance Claims,248,24-Aug-2016,1608-00393,0.00,803.46,R,Admiral Insurance,No
Http://opendatacommunities.org/id/metropolitan-district-council/leeds,Leeds City Council,31/08/2016,Childrens Services,Safeguarding Targeted & Specialist,Third Party Payments,Independent Fostering Agencies,509,04-Aug-2016,1608-00394,0.00,2850.00,R,Adolescent And Childrens Trust,No
Http://opendatacommunities.org/id/metropolitan-district-council/leeds,Leeds City Council,31/08/2016,Childrens Services,Safeguarding Targeted & Specialist,Third Party Payments,Independent Fostering Agencies,509,04-Aug-2016,1608-00395,0.00,2850.00,R,Adolescent And Childrens Trust,No
Http://opendatacommunities.org/id/metropolitan-district-council/leeds,Leeds City Council,31/08/2016,Childrens Services,Safeguarding Targeted & Specialist,Third Party Payments,Independent Fostering Agencies,509,04-Aug-2016,1608-00396,0.00,3000.00,R,Adolescent And Childrens Trust,No
Http://opendatacommunities.org/id/metropolitan-district-council/leeds,Leeds City Council,31/08/2016,Childrens Services,Safeguarding Targeted & Specialist,Third Party Payments,Independent Fostering Agencies,509,04-Aug-2016,1608-00397,0.00,3000.00,R,Adolescent And Childrens Trust,No
Http://opendatacommunities.org/id/metropolitan-district-council/leeds,Leeds City Council,31/08/2016,Childrens Services,Safeguarding Targeted & Specialist,Third Party Payments,Independent Fostering Agencies,509,24-Aug-2016,1608-00398,0.00,2850.00,R,Adolescent And Childrens Trust,No
Http://opendatacommunities.org/id/metropolitan-district-council/leeds,Leeds City Council,31/08/2016,Childrens Services,Safeguarding Targeted & Specialist,Third Party Payments,Independent Fostering Agencies,509,24-Aug-2016,1608-00399,0.00,3000.00,R,Adolescent And Childrens Trust,No
Http://opendatacommunities.org/id/metropolitan-district-council/leeds,Leeds City Council,31/08/2016,Childrens Services,Safeguarding Targeted & Specialist,Third Party Payments,Independent Fostering Agencies,509,24-Aug-2016,1608-00400,0.00,3000.00,R,Adolescent And Childrens Trust,No
Http://opendatacommunities.org/id/metropolitan-district-council/leeds,Leeds City Council,31/08/2016,Childrens Services,Safeguarding Targeted & Specialist,Third Party Payments,Independent Fostering Agencies,509,24-Aug-2016,1608-00401,0.00,3000.00,R,Adolescent And Childrens Trust,No
Http://opendatacommunities.org/id/metropolitan-district-council/leeds,Leeds City Council,31/08/2016,Childrens Services,Safeguarding Targeted & Specialist,Supplies and Services,Memberships,226,30-Aug-2016,1608-00402,0.00,312.00,R,Adoption Uk,No
Http://opendatacommunities.org/id/metropolitan-district-council/leeds,Leeds City Council as Accountable Body,31/08/2016,Social Services Pooled Budgets,Jcs For People With Learning Disabilitie,Third Party Payments,Residential,580,11-Aug-2016,1608-00403,0.00,2609.36,R,Adrian House,No
Http://opendatacommunities.org/id/metropolitan-district-council/leeds,Leeds City Council,31/08/2016,Civic Enterprise Leeds,Corporate Property Management,Premises,Maintenance Of Buildings,101,03-Aug-2016,1608-00404,0.00,140.00,R,Adt Fire And Security Plc,No
Http://opendatacommunities.org/id/metropolitan-district-council/leeds,Leeds City Council,31/08/2016,Strategic Landlord,Housing Management,Premises,Premises Security Services,162,09-Aug-2016,1608-00405,0.00,136.47,R,Adt Fire And Security Plc,No
Http://opendatacommunities.org/id/metropolitan-district-council/leeds,Leeds City Council,31/08/2016,Civic Enterprise Leeds,Corporate Property Management,Premises,Maintenance Of Buildings,101,24-Aug-2016,1608-00406,0.00,148.44,R,Adt Fire And Security Plc,No
Http://opendatacommunities.org/id/metropolitan-district-council/leeds,Leeds City Council as Accountable Body,31/08/2016,Social Services Pooled Budgets,Jcs For People With Learning Disabilitie,Third Party Payments,Sheltered Accommodation,569,24-Aug-2016,1608-00407,0.00,1332.20,R,Adult Placement Services,No
Http://opendatacommunities.org/id/metropolitan-district-council/leeds,Leeds City Council,31/08/2016,Adult Social Care,Services For Adults Under 65 Mental/Dis,Third Party Payments,Nursing Home,570,24-Aug-2016,1608-00408,0.00,1541.96,R,Adult Supported Living Ltd,No
Http://opendatacommunities.org/id/metropolitan-district-council/leeds,Leeds City Council,31/08/2016,City Development,Recreation,Supplies and Services,External Audit Fees,261,02-Aug-2016,1608-00409,0.00,235.00,R,Advance Stocks Ltd,No
Http://opendatacommunities.org/id/metropolitan-district-council/leeds,Leeds City Council,31/08/2016,City Development,Recreation,Supplies and Services,External Audit Fees,261,02-Aug-2016,1608-00410,0.00,85.00,R,Advance Stocks Ltd,No
Http://opendatacommunities.org/id/metropolitan-district-council/leeds,Leeds City Council,31/08/2016,City Development,Libraries  Arts & Heritage,Supplies and Services,External Audit Fees,261,03-Aug-2016,1608-00411,0.00,85.00,R,Advance Stocks Ltd,No
Http://opendatacommunities.org/id/metropolitan-district-council/leeds,Leeds City Council,31/08/2016,City Development,Libraries  Arts & Heritage,Supplies and Services,External Audit Fees,261,11-Aug-2016,1608-00412,0.00,85.00,R,Advance Stocks Ltd,No
Http://opendatacommunities.org/id/metropolitan-district-council/leeds,Leeds City Council,31/08/2016,City Development,Libraries  Arts & Heritage,Supplies and Services,External Audit Fees,261,18-Aug-2016,1608-00413,0.00,85.00,R,Advance Stocks Ltd,No
Http://opendatacommunities.org/id/metropolitan-district-council/leeds,Leeds City Council,31/08/2016,City Development,Libraries  Arts & Heritage,Supplies and Services,External Audit Fees,261,26-Aug-2016,1608-00414,0.00,85.00,R,Advance Stocks Ltd,No
Http://opendatacommunities.org/id/metropolitan-district-council/leeds,Leeds City Council,31/08/2016,City Development,Libraries  Arts & Heritage,Supplies and Services,External Audit Fees,261,31-Aug-2016,1608-00415,0.00,85.00,R,Advance Stocks Ltd,No
Http://opendatacommunities.org/id/metropolitan-district-council/leeds,Leeds City Council,31/08/2016,City Development,Recreation,Supplies and Services,External Audit Fees,261,31-Aug-2016,1608-00416,0.00,85.00,R,Advance Stocks Ltd,No
Http://opendatacommunities.org/id/metropolitan-district-council/leeds,Leeds City Council,31/08/2016,Civic Enterprise Leeds,Corporate Property Management,Premises,Plant and Machinery,102,31-Aug-2016,1608-00417,0.00,280.00,R,Advanced Diesel Engineering,No
Http://opendatacommunities.org/id/metropolitan-district-council/leeds,Leeds City Council as Accountable Body,31/08/2016,Social Services Pooled Budgets,Jcs For People With Learning Disabilitie,Third Party Payments,Residential,580,24-Aug-2016,1608-00418,0.00,20213.48,R,Advitam Ltd,No
Http://opendatacommunities.org/id/metropolitan-district-council/leeds,Leeds City Council,31/08/2016,Adult Social Care,Services For Adults Under 65 Mental/Dis,Third Party Payments,Payments To Voluntary Organisations,561,19-Aug-2016,1608-00419,0.00,3036.15,R,Advonet,No
Http://opendatacommunities.org/id/metropolitan-district-council/leeds,Leeds City Council,31/08/2016,Adult Social Care,Services For Adults Under 65 Mental/Dis,Third Party Payments,Payments To Voluntary Organisations,561,19-Aug-2016,1608-00420,0.00,3997.74,R,Advonet,No
Http://opendatacommunities.org/id/metropolitan-district-council/leeds,Leeds City Council,31/08/2016,Adult Social Care,Services For Older People - 65 And Over,Third Party Payments,Payments To Voluntary Organisations,561,19-Aug-2016,1608-00421,0.00,83435.70,R,Advonet,No
Http://opendatacommunities.org/id/metropolitan-district-council/leeds,Leeds City Council,31/08/2016,Adult Social Care,Services For Adults Under 65 Mental/Dis,Third Party Payments,Payments To Voluntary Organisations,561,19-Aug-2016,1608-00422,0.00,9835.02,R,Advonet,No
Http://opendatacommunities.org/id/metropolitan-district-council/leeds,Leeds City Council,31/08/2016,Adult Social Care,Services For Adults Under 65 Mental/Dis,Third Party Payments,Payments To Voluntary Organisations,561,19-Aug-2016,1608-00423,0.00,3296.18,R,Advonet,No
Http://opendatacommunities.org/id/metropolitan-district-council/leeds,Leeds City Council,31/08/2016,Adult Social Care,Services For Adults Under 65 Mental/Dis,Third Party Payments,Payments To Voluntary Organisations,561,19-Aug-2016,1608-00424,0.00,5460.82,R,Advonet,No
Http://opendatacommunities.org/id/metropolitan-district-council/leeds,Leeds City Council,31/08/2016,Adult Social Care,Services For Adults Under 65 Mental/Dis,Third Party Payments,Payments To Voluntary Organisations,561,22-Aug-2016,1608-00425,0.00,11712.75,R,Advonet,No
Http://opendatacommunities.org/id/metropolitan-district-council/leeds,Leeds City Council,31/08/2016,City Development,Economic Development,Capital,Other Costs,7,10-Aug-2016,1608-00426,0.00,12848.00,C,Aecom Limited,No
Http://opendatacommunities.org/id/metropolitan-district-council/leeds,Leeds City Council,31/08/2016,City Development,Economic Development,Premises,Maintenance Of Buildings,101,11-Aug-2016,1608-00427,0.00,1100.66,R,Aecom Limited,No
Http://opendatacommunities.org/id/metropolitan-district-council/leeds,Leeds City Council,31/08/2016,City Development,Economic Development,Capital,Other Costs,7,19-Aug-2016,1608-00428,0.00,10033.00,C,Aecom Limited,No
Http://opendatacommunities.org/id/metropolitan-district-council/leeds,Leeds City Council,31/08/2016,City Development,Economic Development,Premises,Maintenance Of Buildings,101,26-Aug-2016,1608-00429,0.00,2938.00,R,Aecom Limited,No
Http://opendatacommunities.org/id/metropolitan-district-council/leeds,Leeds City Council,31/08/2016,City Development,Economic Development,Premises,Maintenance Of Buildings,101,31-Aug-2016,1608-00430,0.00,550.00,R,Aecom Limited,No
Http://opendatacommunities.org/id/metropolitan-district-council/leeds,Leeds City Council,31/08/2016,Environment & Housing,Leeds Building Services,Supplies and Services,Other Hired And Contracted Services,265,17-Aug-2016,1608-00431,0.00,480.00,R,Aerial Satellite Link,No
Http://opendatacommunities.org/id/metropolitan-district-council/leeds,Leeds City Council as Accountable Body,31/08/2016,Social Services Pooled Budgets,Jcs For People With Learning Disabilitie,Third Party Payments,Home Care,568,01-Aug-2016,1608-00432,0.00,270.00,R,Affinity Trust,No
Http://opendatacommunities.org/id/metropolitan-district-council/leeds,Leeds City Council as Accountable Body,31/08/2016,Social Services Pooled Budgets,Jcs For People With Learning Disabilitie,Third Party Payments,Home Care,568,02-Aug-2016,1608-00433,0.00,990.00,R,Affinity Trust,No
Http://opendatacommunities.org/id/metropolitan-district-council/leeds,Leeds City Council as Accountable Body,31/08/2016,Social Services Pooled Budgets,Jcs For People With Learning Disabilitie,Third Party Payments,Residential,580,02-Aug-2016,1608-00434,0.00,635.80,R,Affinity Trust,No
Http://opendatacommunities.org/id/metropolitan-district-council/leeds,Leeds City Council,31/08/2016,Adult Social Care,Services For Older People Under 65 P/Dis,Third Party Payments,Home Care,568,05-Aug-2016,1608-00435,0.00,526.68,R,Affinity Trust,No
Http://opendatacommunities.org/id/metropolitan-district-council/leeds,Leeds City Council,31/08/2016,Adult Social Care,Services For Older People Under 65 P/Dis,Third Party Payments,Home Care,568,05-Aug-2016,1608-00436,0.00,703.12,R,Affinity Trust,No
Http://opendatacommunities.org/id/metropolitan-district-council/leeds,Leeds City Council,31/08/2016,Adult Social Care,Services For Older People Under 65 P/Dis,Third Party Payments,Home Care,568,05-Aug-2016,1608-00437,0.00,191.76,R,Affinity Trust,No
Http://opendatacommunities.org/id/metropolitan-district-council/leeds,Leeds City Council,31/08/2016,Adult Social Care,Services For Older People Under 65 P/Dis,Third Party Payments,Home Care,568,05-Aug-2016,1608-00438,0.00,2109.47,R,Affinity Trust,No
Http://opendatacommunities.org/id/metropolitan-district-council/leeds,Leeds City Council,31/08/2016,Adult Social Care,Services For Adults Under 65 Mental/Dis,Third Party Payments,Home Care,568,05-Aug-2016,1608-00439,0.00,319.60,R,Affinity Trust,No
Http://opendatacommunities.org/id/metropolitan-district-council/leeds,Leeds City Council,31/08/2016,Adult Social Care,Services For Older People Under 65 P/Dis,Third Party Payments,Home Care,568,05-Aug-2016,1608-00440,0.00,319.60,R,Affinity Trust,No
Http://opendatacommunities.org/id/metropolitan-district-council/leeds,Leeds City Council,31/08/2016,Adult Social Care,Services For Older People Under 65 P/Dis,Third Party Payments,Home Care,568,05-Aug-2016,1608-00441,0.00,396.00,R,Affinity Trust,No
Http://opendatacommunities.org/id/metropolitan-district-council/leeds,Leeds City Council,31/08/2016,Adult Social Care,Services For Older People Under 65 P/Dis,Third Party Payments,Home Care,568,05-Aug-2016,1608-00442,0.00,423.56,R,Affinity Trust,No
Http://opendatacommunities.org/id/metropolitan-district-council/leeds,Leeds City Council,31/08/2016,Adult Social Care,Services For Older People Under 65 P/Dis,Third Party Payments,Home Care,568,05-Aug-2016,1608-00443,0.00,191.76,R,Affinity Trust,No
Http://opendatacommunities.org/id/metropolitan-district-council/leeds,Leeds City Council,31/08/2016,Adult Social Care,Services For Older People - 65 And Over,Third Party Payments,Home Care,568,05-Aug-2016,1608-00444,0.00,1076.48,R,Affinity Trust,No
Http://opendatacommunities.org/id/metropolitan-district-council/leeds,Leeds City Council,31/08/2016,Adult Social Care,Services For Older People Under 65 P/Dis,Third Party Payments,Home Care,568,05-Aug-2016,1608-00445,0.00,403.68,R,Affinity Trust,No
Http://opendatacommunities.org/id/metropolitan-district-council/leeds,Leeds City Council as Accountable Body,31/08/2016,Social Services Pooled Budgets,Jcs For People With Learning Disabilitie,Third Party Payments,Home Care,568,10-Aug-2016,1608-00446,0.00,1267.50,R,Affinity Trust,No
Http://opendatacommunities.org/id/metropolitan-district-council/leeds,Leeds City Council as Accountable Body,31/08/2016,Social Services Pooled Budgets,Jcs For People With Learning Disabilitie,Third Party Payments,Day Centre,564,10-Aug-2016,1608-00447,0.00,938.56,R,Affinity Trust,No
Http://opendatacommunities.org/id/metropolitan-district-council/leeds,Leeds City Council,31/08/2016,Adult Social Care,Services For Older People Under 65 P/Dis,Third Party Payments,Home Care,568,10-Aug-2016,1608-00448,0.00,134.56,R,Affinity Trust,No
Http://opendatacommunities.org/id/metropolitan-district-council/leeds,Leeds City Council as Accountable Body,31/08/2016,Social Services Pooled Budgets,Jcs For People With Learning Disabilitie,Third Party Payments,Home Care,568,12-Aug-2016,1608-00449,0.00,447.44,R,Affinity Trust,No
Http://opendatacommunities.org/id/metropolitan-district-council/leeds,Leeds City Council as Accountable Body,31/08/2016,Social Services Pooled Budgets,Jcs For People With Learning Disabilitie,Third Party Payments,Home Care,568,15-Aug-2016,1608-00450,0.00,360.00,R,Affinity Trust,No
Http://opendatacommunities.org/id/metropolitan-district-council/leeds,Leeds City Council as Accountable Body,31/08/2016,Social Services Pooled Budgets,Jcs For People With Learning Disabilitie,Third Party Payments,Home Care,568,15-Aug-2016,1608-00451,0.00,767.04,R,Affinity Trust,No
Http://opendatacommunities.org/id/metropolitan-district-council/leeds,Leeds City Council as Accountable Body,31/08/2016,Social Services Pooled Budgets,Jcs For People With Learning Disabilitie,Third Party Payments,Home Care,568,15-Aug-2016,1608-00452,0.00,270.00,R,Affinity Trust,No
Http://opendatacommunities.org/id/metropolitan-district-council/leeds,Leeds City Council as Accountable Body,31/08/2016,Social Services Pooled Budgets,Jcs For People With Learning Disabilitie,Third Party Payments,Home Care,568,15-Aug-2016,1608-00453,0.00,14162.33,R,Affinity Trust,No
Http://opendatacommunities.org/id/metropolitan-district-council/leeds,Leeds City Council as Accountable Body,31/08/2016,Social Services Pooled Budgets,Jcs For People With Learning Disabilitie,Third Party Payments,Day Centre,564,15-Aug-2016,1608-00454,0.00,17538.00,R,Affinity Trust,No
Http://opendatacommunities.org/id/metropolitan-district-council/leeds,Leeds City Council,31/08/2016,Adult Social Care,Services For Older People Under 65 P/Dis,Third Party Payments,Home Care,568,19-Aug-2016,1608-00455,0.00,134.56,R,Affinity Trust,No
Http://opendatacommunities.org/id/metropolitan-district-council/leeds,Leeds City Council,31/08/2016,Adult Social Care,Services For Older People Under 65 P/Dis,Third Party Payments,Home Care,568,19-Aug-2016,1608-00456,0.00,403.68,R,Affinity Trust,No
Http://opendatacommunities.org/id/metropolitan-district-council/leeds,Leeds City Council,31/08/2016,Adult Social Care,Services For Older People Under 65 P/Dis,Third Party Payments,Home Care,568,19-Aug-2016,1608-00457,0.00,526.68,R,Affinity Trust,No
Http://opendatacommunities.org/id/metropolitan-district-council/leeds,Leeds City Council as Accountable Body,31/08/2016,Social Services Pooled Budgets,Jcs For People With Learning Disabilitie,Third Party Payments,Home Care,568,19-Aug-2016,1608-00458,0.00,360.00,R,Affinity Trust,No
Http://opendatacommunities.org/id/metropolitan-district-council/leeds,Leeds City Council,31/08/2016,Childrens Services,Safeguarding Targeted & Specialist,Third Party Payments,Section 17,551,22-Aug-2016,1608-00459,0.00,1773.75,R,Affinity Trust,No
Http://opendatacommunities.org/id/metropolitan-district-council/leeds,Leeds City Council,31/08/2016,Childrens Services,Safeguarding Targeted & Specialist,Third Party Payments,Section 17,551,22-Aug-2016,1608-00460,0.00,1290.00,R,Affinity Trust,No
Http://opendatacommunities.org/id/metropolitan-district-council/leeds,Leeds City Council,31/08/2016,Adult Social Care,Services For Older People Under 65 P/Dis,Third Party Payments,Home Care,568,25-Aug-2016,1608-00461,0.00,703.12,R,Affinity Trust,No
Http://opendatacommunities.org/id/metropolitan-district-council/leeds,Leeds City Council,31/08/2016,Adult Social Care,Services For Older People Under 65 P/Dis,Third Party Payments,Home Care,568,25-Aug-2016,1608-00462,0.00,127.84,R,Affinity Trust,No
Http://opendatacommunities.org/id/metropolitan-district-council/leeds,Leeds City Council,31/08/2016,Adult Social Care,Services For Older People Under 65 P/Dis,Third Party Payments,Home Care,568,25-Aug-2016,1608-00463,0.00,2067.95,R,Affinity Trust,No
Http://opendatacommunities.org/id/metropolitan-district-council/leeds,Leeds City Council,31/08/2016,Adult Social Care,Services For Older People Under 65 P/Dis,Third Party Payments,Home Care,568,25-Aug-2016,1608-00464,0.00,239.70,R,Affinity Trust,No
Http://opendatacommunities.org/id/metropolitan-district-council/leeds,Leeds City Council,31/08/2016,Adult Social Care,Services For Older People Under 65 P/Dis,Third Party Payments,Home Care,568,25-Aug-2016,1608-00465,0.00,319.60,R,Affinity Trust,No
Http://opendatacommunities.org/id/metropolitan-district-council/leeds,Leeds City Council,31/08/2016,Adult Social Care,Services For Older People Under 65 P/Dis,Third Party Payments,Home Care,568,25-Aug-2016,1608-00466,0.00,297.00,R,Affinity Trust,No
Http://opendatacommunities.org/id/metropolitan-district-council/leeds,Leeds City Council,31/08/2016,Adult Social Care,Services For Older People - 65 And Over,Third Party Payments,Home Care,568,25-Aug-2016,1608-00467,0.00,1009.20,R,Affinity Trust,No
Http://opendatacommunities.org/id/metropolitan-district-council/leeds,Leeds City Council as Accountable Body,31/08/2016,Social Services Pooled Budgets,Jcs For People With Learning Disabilitie,Third Party Payments,Sheltered Accommodation,569,24-Aug-2016,1608-00468,0.00,99222.08,R,Affinity Trust North Divisional Office,No
Http://opendatacommunities.org/id/metropolitan-district-council/leeds,Leeds City Council,31/08/2016,Childrens Services,Safeguarding Targeted & Specialist  ,Supplies and Services,Teaching Materials,202,28-Jul-2016,1608-00469,0.00,104.00,R,Affordable Webbs,Yes
Http://opendatacommunities.org/id/metropolitan-district-council/leeds,Leeds City Council,31/08/2016,City Development,Libraries  Arts & Heritage,Supplies and Services,Other Hired And Contracted Services,265,18-Aug-2016,1608-00470,0.00,400.00,R,After Hours,No
Http://opendatacommunities.org/id/metropolitan-district-council/leeds,Leeds City Council,31/08/2016,Environment & Housing,SP Contracts & SECC,Third Party Payments,Supporting Ppl - Block Gross Chargeable,514,05-Aug-2016,1608-00471,0.00,3957.68,R,Age Uk Leeds,No
Http://opendatacommunities.org/id/metropolitan-district-council/leeds,Leeds City Council,31/08/2016,Public Health,Public Health,Third Party Payments,Services Rendered By Voluntary Sector,505,15-Aug-2016,1608-00472,0.00,2710.00,R,Age Uk Leeds,No
Http://opendatacommunities.org/id/metropolitan-district-council/leeds,Leeds City Council,31/08/2016,City Development,Libraries  Arts & Heritage,Supplies and Services,Bought In Professional Services,277,12-Aug-2016,1608-00473,0.00,2000.00,R,Agere Learning,No
Http://opendatacommunities.org/id/metropolitan-district-council/leeds,Leeds City Council,31/08/2016,City Development,Libraries  Arts & Heritage,Supplies and Services,Bought In Professional Services,277,19-Aug-2016,1608-00474,0.00,54.02,R,Agnis Smallwood,No
Http://opendatacommunities.org/id/metropolitan-district-council/leeds,Leeds City Council,31/08/2016,Adult Social Care,Services For Older People Under 65 P/Dis,Third Party Payments,Residential,580,24-Aug-2016,1608-00475,0.00,5598.40,R,Agricola House,No
Http://opendatacommunities.org/id/metropolitan-district-council/leeds,Leeds City Council as Accountable Body,31/08/2016,Social Services Pooled Budgets,Leeds Community Equip Store Pooled Budgt,Supplies and Services,Other Equipment,203,09-Aug-2016,1608-00476,0.00,3557.00,R,Aidapt Bathrooms Ltd,No
Http://opendatacommunities.org/id/metropolitan-district-council/leeds,Leeds City Council as Accountable Body,31/08/2016,Social Services Pooled Budgets,Leeds Community Equip Store Pooled Budgt,Supplies and Services,Other Equipment,203,25-Aug-2016,1608-00477,0.00,-112.00,R,Aidapt Bathrooms Ltd,No
Http://opendatacommunities.org/id/metropolitan-district-council/leeds,Leeds City Council as Accountable Body,31/08/2016,Social Services Pooled Budgets,Leeds Community Equip Store Pooled Budgt,Supplies and Services,Other Equipment,203,25-Aug-2016,1608-00478,0.00,-210.00,R,Aidapt Bathrooms Ltd,No
Http://opendatacommunities.org/id/metropolitan-district-council/leeds,Leeds City Council as Accountable Body,31/08/2016,Social Services Pooled Budgets,Leeds Community Equip Store Pooled Budgt,Supplies and Services,Other Equipment,203,25-Aug-2016,1608-00479,0.00,3899.00,R,Aidapt Bathrooms Ltd,No
Http://opendatacommunities.org/id/metropolitan-district-council/leeds,Leeds City Council as Accountable Body,31/08/2016,Social Services Pooled Budgets,Leeds Community Equip Store Pooled Budgt,Supplies and Services,Other Equipment,203,25-Aug-2016,1608-00480,0.00,1075.00,R,Aidapt Bathrooms Ltd,No
Http://opendatacommunities.org/id/metropolitan-district-council/leeds,Leeds City Council as Accountable Body,31/08/2016,Social Services Pooled Budgets,Jcs For People With Learning Disabilitie,Supplies and Services,Other Equipment,203,03-Aug-2016,1608-00481,0.00,320.00,R,Aidservice Ltd,No
Http://opendatacommunities.org/id/metropolitan-district-council/leeds,Leeds City Council as Accountable Body,31/08/2016,Social Services Pooled Budgets,Jcs For People With Learning Disabilitie,Supplies and Services,Other Equipment,203,03-Aug-2016,1608-00482,0.00,180.00,R,Aidservice Ltd,No
Http://opendatacommunities.org/id/metropolitan-district-council/leeds,Leeds City Council,31/08/2016,City Development,Libraries  Arts & Heritage,Supplies and Services,Operational Materials,205,26-Aug-2016,1608-00483,0.00,3150.00,R,Aimee Grundell,No
Http://opendatacommunities.org/id/metropolitan-district-council/leeds,Leeds City Council,31/08/2016,Environment & Housing,Leeds Building Services,Supplies and Services,Operational Materials,205,01-Aug-2016,1608-00484,0.00,74.22,R,Air Conditioning Accessories,No
Http://opendatacommunities.org/id/metropolitan-district-council/leeds,Leeds City Council,31/08/2016,Environment & Housing,Leeds Building Services,Supplies and Services,Operational Materials,205,01-Aug-2016,1608-00485,0.00,23.61,R,Air Conditioning Accessories,No
Http://opendatacommunities.org/id/metropolitan-district-council/leeds,Leeds City Council,31/08/2016,Environment & Housing,Leeds Building Services,Supplies and Services,Operational Materials,205,05-Aug-2016,1608-00486,0.00,39.10,R,Air Conditioning Accessories,No
Http://opendatacommunities.org/id/metropolitan-district-council/leeds,Leeds City Council,31/08/2016,Environment & Housing,Leeds Building Services,Supplies and Services,Operational Materials,205,05-Aug-2016,1608-00487,0.00,240.92,R,Air Conditioning Accessories,No
Http://opendatacommunities.org/id/metropolitan-district-council/leeds,Leeds City Council,31/08/2016,Environment & Housing,Leeds Building Services,Supplies and Services,Operational Materials,205,12-Aug-2016,1608-00488,0.00,94.92,R,Air Conditioning Accessories,No
Http://opendatacommunities.org/id/metropolitan-district-council/leeds,Leeds City Council,31/08/2016,Environment & Housing,Leeds Building Services,Supplies and Services,Operational Materials,205,12-Aug-2016,1608-00489,0.00,129.75,R,Air Conditioning Accessories,No
Http://opendatacommunities.org/id/metropolitan-district-council/leeds,Leeds City Council,31/08/2016,Environment & Housing,Leeds Building Services,Supplies and Services,Operational Materials,205,12-Aug-2016,1608-00490,0.00,9.75,R,Air Conditioning Accessories,No
Http://opendatacommunities.org/id/metropolitan-district-council/leeds,Leeds City Council,31/08/2016,Environment & Housing,Leeds Building Services,Supplies and Services,Operational Materials,205,12-Aug-2016,1608-00491,0.00,125.30,R,Air Conditioning Accessories,No
Http://opendatacommunities.org/id/metropolitan-district-council/leeds,Leeds City Council,31/08/2016,Environment & Housing,Leeds Building Services,Supplies and Services,Operational Materials,205,15-Aug-2016,1608-00492,0.00,30.10,R,Air Conditioning Accessories,No
Http://opendatacommunities.org/id/metropolitan-district-council/leeds,Leeds City Council,31/08/2016,Environment & Housing,Leeds Building Services,Supplies and Services,Operational Materials,205,19-Aug-2016,1608-00493,0.00,300.00,R,Air Conditioning Accessories,No
Http://opendatacommunities.org/id/metropolitan-district-council/leeds,Leeds City Council,31/08/2016,Environment & Housing,Leeds Building Services,Supplies and Services,Operational Materials,205,19-Aug-2016,1608-00494,0.00,225.00,R,Air Conditioning Accessories,No
Http://opendatacommunities.org/id/metropolitan-district-council/leeds,Leeds City Council,31/08/2016,Environment & Housing,Leeds Building Services,Supplies and Services,Operational Materials,205,19-Aug-2016,1608-00495,0.00,28.72,R,Air Conditioning Accessories,No
Http://opendatacommunities.org/id/metropolitan-district-council/leeds,Leeds City Council,31/08/2016,Environment & Housing,Leeds Building Services,Supplies and Services,Operational Materials,205,25-Aug-2016,1608-00496,0.00,56.80,R,Air Conditioning Accessories,No
Http://opendatacommunities.org/id/metropolitan-district-council/leeds,Leeds City Council,31/08/2016,Environment & Housing,Leeds Building Services,Supplies and Services,Operational Materials,205,25-Aug-2016,1608-00497,0.00,52.28,R,Air Conditioning Accessories,No
Http://opendatacommunities.org/id/metropolitan-district-council/leeds,Leeds City Council,31/08/2016,Environment & Housing,Leeds Building Services,Supplies and Services,Operational Materials,205,25-Aug-2016,1608-00498,0.00,159.05,R,Air Conditioning Accessories,No
Http://opendatacommunities.org/id/metropolitan-district-council/leeds,Leeds City Council,31/08/2016,Environment & Housing,Leeds Building Services,Supplies and Services,Operational Materials,205,25-Aug-2016,1608-00499,0.00,48.10,R,Air Conditioning Accessories,No
Http://opendatacommunities.org/id/metropolitan-district-council/leeds,Leeds City Council,31/08/2016,Environment & Housing,Leeds Building Services,Supplies and Services,Operational Furniture And Equipment,203,25-Aug-2016,1608-00500,0.00,37.83,R,Air Conditioning Accessories,No
Http://opendatacommunities.org/id/metropolitan-district-council/leeds,Leeds City Council,31/08/2016,Environment & Housing,Leeds Building Services,Supplies and Services,Operational Materials,205,25-Aug-2016,1608-00501,0.00,97.38,R,Air Conditioning Accessories,No
Http://opendatacommunities.org/id/metropolitan-district-council/leeds,Leeds City Council,31/08/2016,Civic Enterprise Leeds,Commercial Services  ,Supplies and Services,Operational Materials,205,12-Jul-2016,1608-00502,0.00,70.00,R,Air Force Pneumati,Yes
Http://opendatacommunities.org/id/metropolitan-district-council/leeds,Leeds City Council,31/08/2016,Civic Enterprise Leeds,Commercial Services  ,Supplies and Services,Operational Materials,205,12-Jul-2016,1608-00503,0.00,80.59,R,Air Force Pneumati,Yes
Http://opendatacommunities.org/id/metropolitan-district-council/leeds,Leeds City Council,31/08/2016,Civic Enterprise Leeds,Commercial Services  ,Supplies and Services,Operational Materials,205,12-Jul-2016,1608-00504,0.00,192.00,R,Air Force Pneumati,Yes
Http://opendatacommunities.org/id/metropolitan-district-council/leeds,Leeds City Council,31/08/2016,Civic Enterprise Leeds,Commercial Services  ,Supplies and Services,Operational Materials,205,19-Jul-2016,1608-00505,0.00,246.87,R,Air Force Pneumati,Yes
Http://opendatacommunities.org/id/metropolitan-district-council/leeds,Leeds City Council,31/08/2016,Citizens and Communities,Communities,Transport,Private Hire,360,22-Aug-2016,1608-00506,0.00,144.00,R,Air Line Connections,No
Http://opendatacommunities.org/id/metropolitan-district-council/leeds,Leeds City Council,31/08/2016,Environment & Housing,Leeds Building Services,Supplies and Services,Operational Materials,205,03-Aug-2016,1608-00507,0.00,152.40,R,Air Liquide Uk,No
Http://opendatacommunities.org/id/metropolitan-district-council/leeds,Leeds City Council,31/08/2016,Environment & Housing,Environmental Health,Supplies and Services,Other Hired And Contracted Services,265,18-Aug-2016,1608-00508,0.00,13.63,R,Air Liquide Uk,No
Http://opendatacommunities.org/id/metropolitan-district-council/leeds,Leeds City Council,31/08/2016,Environment & Housing,Environmental Health,Supplies and Services,Other Hired And Contracted Services,265,18-Aug-2016,1608-00509,0.00,13.63,R,Air Liquide Uk,No
Http://opendatacommunities.org/id/metropolitan-district-council/leeds,Leeds City Council,31/08/2016,Environment & Housing,Environmental Health,Supplies and Services,Other Hired And Contracted Services,265,18-Aug-2016,1608-00510,0.00,62.58,R,Air Liquide Uk,No
Http://opendatacommunities.org/id/metropolitan-district-council/leeds,Leeds City Council,31/08/2016,Adult Social Care,Services For Adults Under 65 Mental/Dis,Third Party Payments,Residential,580,24-Aug-2016,1608-00511,0.00,6028.00,R,Aire House,No
Http://opendatacommunities.org/id/metropolitan-district-council/leeds,Leeds City Council as Accountable Body,31/08/2016,Social Services Pooled Budgets,Jcs For People With Learning Disabilitie,Third Party Payments,Residential,580,24-Aug-2016,1608-00512,0.00,3059.84,R,Aire House,No
Http://opendatacommunities.org/id/metropolitan-district-council/leeds,Leeds City Council,31/08/2016,Adult Social Care,Services For Older People - 65 And Over,Third Party Payments,Residential Care Dementia,571,24-Aug-2016,1608-00513,0.00,42296.95,R,Aire View Residential Home,No
Http://opendatacommunities.org/id/metropolitan-district-council/leeds,Leeds City Council,31/08/2016,Adult Social Care,Services For Older People - 65 And Over,Third Party Payments,Residential,580,24-Aug-2016,1608-00514,0.00,19639.59,R,Aire View Residential Home,No
Http://opendatacommunities.org/id/metropolitan-district-council/leeds,Leeds City Council,31/08/2016,Citizens and Communities,Communities,Supplies and Services,'Well Being' Large Grants Projects,230,12-Aug-2016,1608-00515,0.00,372.00,R,Aireborough Supported Activities Scheme,No
Http://opendatacommunities.org/id/metropolitan-district-council/leeds,Leeds City Council,31/08/2016,Citizens and Communities,Communities,Supplies and Services,'Well Being' Large Grants Projects,230,12-Aug-2016,1608-00516,0.00,811.00,R,Aireborough Supported Activities Scheme,No
Http://opendatacommunities.org/id/metropolitan-district-council/leeds,Leeds City Council,31/08/2016,Adult Social Care,Services For Older People - 65 And Over,Third Party Payments,Residential Care Dementia,571,24-Aug-2016,1608-00517,0.00,2175.36,R,Airedale (Goldsborough),No
Http://opendatacommunities.org/id/metropolitan-district-council/leeds,Leeds City Council,31/08/2016,Adult Social Care,Services For Older People - 65 And Over,Third Party Payments,Residential,580,24-Aug-2016,1608-00518,0.00,15121.17,R,Airedale (Goldsborough),No
Http://opendatacommunities.org/id/metropolitan-district-council/leeds,Leeds City Council,31/08/2016,Adult Social Care,Services For Older People Under 65 P/Dis,Third Party Payments,Residential,580,24-Aug-2016,1608-00519,0.00,1999.68,R,Airedale (Goldsborough),No
Http://opendatacommunities.org/id/metropolitan-district-council/leeds,Leeds City Council,31/08/2016,Civic Enterprise Leeds,Commercial Services,Supplies and Services,Operational Furniture And Equipment,203,05-Aug-2016,1608-00520,0.00,805.00,R,Airedale Catering Equipment Ltd,No
Http://opendatacommunities.org/id/metropolitan-district-council/leeds,Leeds City Council,31/08/2016,Civic Enterprise Leeds,Commercial Services,Supplies and Services,Operational Materials,205,05-Aug-2016,1608-00521,0.00,12800.00,R,Airedale Catering Equipment Ltd,No
Http://opendatacommunities.org/id/metropolitan-district-council/leeds,Leeds City Council,31/08/2016,Adult Social Care,Services For Adults Under 65 Mental/Dis,Third Party Payments,Services Provided By Other NHS Bodies,522,05-Aug-2016,1608-00522,0.00,175.00,R,Ait Mitra,No
Http://opendatacommunities.org/id/metropolitan-district-council/leeds,Leeds City Council,31/08/2016,Adult Social Care,Services For Adults Under 65 Mental/Dis,Third Party Payments,Services Provided By Other NHS Bodies,522,05-Aug-2016,1608-00523,0.00,261.00,R,Ait Mitra,No
Http://opendatacommunities.org/id/metropolitan-district-council/leeds,Leeds City Council,31/08/2016,Adult Social Care,Services For Adults Under 65 Mental/Dis,Third Party Payments,Services Provided By Other NHS Bodies,522,12-Aug-2016,1608-00524,0.00,350.00,R,Ait Mitra,No
Http://opendatacommunities.org/id/metropolitan-district-council/leeds,Leeds City Council,31/08/2016,Adult Social Care,Services For Adults Under 65 Mental/Dis,Third Party Payments,Services Provided By Other NHS Bodies,522,12-Aug-2016,1608-00525,0.00,175.00,R,Ait Mitra,No
Http://opendatacommunities.org/id/metropolitan-district-council/leeds,Leeds City Council,31/08/2016,Adult Social Care,Services For Adults Under 65 Mental/Dis,Third Party Payments,Services Provided By Other NHS Bodies,522,12-Aug-2016,1608-00526,0.00,175.00,R,Ait Mitra,No
Http://opendatacommunities.org/id/metropolitan-district-council/leeds,Leeds City Council,31/08/2016,Adult Social Care,Services For Adults Under 65 Mental/Dis,Third Party Payments,Services Provided By Other NHS Bodies,522,17-Aug-2016,1608-00527,0.00,175.00,R,Ait Mitra,No
Http://opendatacommunities.org/id/metropolitan-district-council/leeds,Leeds City Council,31/08/2016,Adult Social Care,Services For Adults Under 65 Mental/Dis,Third Party Payments,Services Provided By Other NHS Bodies,522,17-Aug-2016,1608-00528,0.00,175.00,R,Ait Mitra,No
Http://opendatacommunities.org/id/metropolitan-district-council/leeds,Leeds City Council as Accountable Body,31/08/2016,Social Services Pooled Budgets,Jcs For People With Learning Disabilitie,Third Party Payments,Residential,580,24-Aug-2016,1608-00529,0.00,6173.24,R,Aitch Care Homes,No
Http://opendatacommunities.org/id/metropolitan-district-council/leeds,Leeds City Council,31/08/2016,Environment & Housing,Parks and Countryside,Supplies and Services,Operational Materials,205,09-Aug-2016,1608-00530,0.00,1410.81,R,Aitkens Sportsturf Ltd,No
Http://opendatacommunities.org/id/metropolitan-district-council/leeds,Leeds City Council,31/08/2016,City Development,Recreation,Supplies and Services,Operational Materials,205,09-Aug-2016,1608-00531,0.00,1231.50,R,Aitkens Sportsturf Ltd,No
Http://opendatacommunities.org/id/metropolitan-district-council/leeds,Leeds City Council,31/08/2016,Adult Social Care,Services For Older People - 65 And Over,Third Party Payments,Home Care,568,19-Aug-2016,1608-00532,0.00,14986.25,R,Aj Social Care,No
Http://opendatacommunities.org/id/metropolitan-district-council/leeds,Leeds City Council,31/08/2016,Adult Social Care,Services For Older People Under 65 P/Dis,Third Party Payments,Home Care,568,19-Aug-2016,1608-00533,0.00,3847.47,R,Aj Social Care,No
Http://opendatacommunities.org/id/metropolitan-district-council/leeds,Leeds City Council,31/08/2016,Adult Social Care,Services For Older People - 65 And Over,Third Party Payments,Home Care,568,26-Aug-2016,1608-00534,0.00,6188.26,R,Aj Social Care,No
Http://opendatacommunities.org/id/metropolitan-district-council/leeds,Leeds City Council,31/08/2016,Adult Social Care,Services For Older People Under 65 P/Dis,Third Party Payments,Home Care,568,26-Aug-2016,1608-00535,0.00,3172.35,R,Aj Social Care,No
Http://opendatacommunities.org/id/metropolitan-district-council/leeds,Leeds City Council,31/08/2016,Environment & Housing,Leeds Building Services,Supplies and Services,Operational Furniture And Equipment,203,04-Aug-2016,1608-00536,0.00,69.50,R,Ajm Fixings & Power Tools Ltd,No
Http://opendatacommunities.org/id/metropolitan-district-council/leeds,Leeds City Council,31/08/2016,Environment & Housing,Leeds Building Services,Supplies and Services,Stores - Central And Other Depots,005,04-Aug-2016,1608-00537,0.00,574.75,R,Ajm Fixings & Power Tools Ltd,No
Http://opendatacommunities.org/id/metropolitan-district-council/leeds,Leeds City Council,31/08/2016,Environment & Housing,Leeds Building Services,Supplies and Services,Stores - Central And Other Depots,005,12-Aug-2016,1608-00538,0.00,287.50,R,Ajm Fixings & Power Tools Ltd,No
Http://opendatacommunities.org/id/metropolitan-district-council/leeds,Leeds City Council,31/08/2016,Environment & Housing,Leeds Building Services,Supplies and Services,Operational Furniture And Equipment,203,12-Aug-2016,1608-00539,0.00,253.25,R,Ajm Fixings & Power Tools Ltd,No
Http://opendatacommunities.org/id/metropolitan-district-council/leeds,Leeds City Council,31/08/2016,Environment & Housing,Leeds Building Services,Supplies and Services,Stores - Central And Other Depots,005,26-Aug-2016,1608-00540,0.00,237.60,R,Ajm Fixings & Power Tools Ltd,No
Http://opendatacommunities.org/id/metropolitan-district-council/leeds,Leeds City Council,31/08/2016,Environment & Housing,Leeds Building Services,Supplies and Services,Operational Furniture And Equipment,203,30-Aug-2016,1608-00541,0.00,103.59,R,Ajm Fixings & Power Tools Ltd,No
Http://opendatacommunities.org/id/metropolitan-district-council/leeds,Leeds City Council,31/08/2016,Environment & Housing,Leeds Building Services,Supplies and Services,Operational Furniture And Equipment,203,30-Aug-2016,1608-00542,0.00,228.75,R,Ajm Fixings & Power Tools Ltd,No
Http://opendatacommunities.org/id/metropolitan-district-council/leeds,Leeds City Council,31/08/2016,Environment & Housing,Leeds Building Services,Supplies and Services,Clothing & Uniforms,241,31-Aug-2016,1608-00543,0.00,4509.00,R,Ajm Fixings & Power Tools Ltd,No
Http://opendatacommunities.org/id/metropolitan-district-council/leeds,Leeds City Council,31/08/2016,Environment & Housing,Leeds Building Services,Supplies and Services,Stores - Central And Other Depots,005,31-Aug-2016,1608-00544,0.00,357.50,R,Ajm Fixings & Power Tools Ltd,No
Http://opendatacommunities.org/id/metropolitan-district-council/leeds,Leeds City Council,31/08/2016,Environment & Housing,Leeds Building Services,Supplies and Services,Stores - Central And Other Depots,005,31-Aug-2016,1608-00545,0.00,423.35,R,Ajm Fixings & Power Tools Ltd,No
Http://opendatacommunities.org/id/metropolitan-district-council/leeds,Leeds City Council,31/08/2016,Environment & Housing,Leeds Building Services,Supplies and Services,Operational Furniture And Equipment,203,31-Aug-2016,1608-00546,0.00,130.00,R,Ajm Fixings & Power Tools Ltd,No
Http://opendatacommunities.org/id/metropolitan-district-council/leeds,Leeds City Council,31/08/2016,Environment & Housing,Leeds Building Services,Supplies and Services,Operational Materials,205,31-Aug-2016,1608-00547,0.00,32.74,R,Ajm Fixings & Power Tools Ltd,No
Http://opendatacommunities.org/id/metropolitan-district-council/leeds,Leeds City Council,31/08/2016,Environment & Housing,Leeds Building Services,Supplies and Services,Operational Materials,205,31-Aug-2016,1608-00548,0.00,65.58,R,Ajm Fixings & Power Tools Ltd,No
Http://opendatacommunities.org/id/metropolitan-district-council/leeds,Leeds City Council,31/08/2016,Adult Social Care,Services For Older People - 65 And Over,Third Party Payments,Nursing Home,570,24-Aug-2016,1608-00549,0.00,1261.04,R,Akari Care Ltd,No
Http://opendatacommunities.org/id/metropolitan-district-council/leeds,Leeds City Council,31/08/2016,Insurance,Insurance,Supplies and Services,Insurance Claims,248,30-Aug-2016,1608-00550,0.00,2754.67,R,REDACTED PERSONAL DATA,No
Http://opendatacommunities.org/id/metropolitan-district-council/leeds,Leeds City Council,31/08/2016,Insurance,Insurance,Supplies and Services,Insurance Claims,248,04-Aug-2016,1608-00551,0.00,2250.00,R,REDACTED PERSONAL DATA,No
Http://opendatacommunities.org/id/metropolitan-district-council/leeds,Leeds City Council,31/08/2016,Civic Enterprise Leeds,Commercial Services,Premises,Plant and Machinery,102,03-Aug-2016,1608-00552,0.00,133.10,R,Akua Uk Ltd,No
Http://opendatacommunities.org/id/metropolitan-district-council/leeds,Leeds City Council,31/08/2016,Civic Enterprise Leeds,Commercial Services,Premises,Plant and Machinery,102,03-Aug-2016,1608-00553,0.00,87.60,R,Akua Uk Ltd,No
Http://opendatacommunities.org/id/metropolitan-district-council/leeds,Leeds City Council,31/08/2016,Civic Enterprise Leeds,Commercial Services,Premises,Plant and Machinery,102,03-Aug-2016,1608-00554,0.00,2419.60,R,Akua Uk Ltd,No
Http://opendatacommunities.org/id/metropolitan-district-council/leeds,Leeds City Council,31/08/2016,Civic Enterprise Leeds,Commercial Services,Premises,Plant and Machinery,102,03-Aug-2016,1608-00555,0.00,199.50,R,Akua Uk Ltd,No
Http://opendatacommunities.org/id/metropolitan-district-council/leeds,Leeds City Council,31/08/2016,Civic Enterprise Leeds,Commercial Services,Premises,Plant and Machinery,102,09-Aug-2016,1608-00556,0.00,232.20,R,Akua Uk Ltd,No
Http://opendatacommunities.org/id/metropolitan-district-council/leeds,Leeds City Council,31/08/2016,Civic Enterprise Leeds,Commercial Services,Premises,Plant and Machinery,102,09-Aug-2016,1608-00557,0.00,700.00,R,Akua Uk Ltd,No
Http://opendatacommunities.org/id/metropolitan-district-council/leeds,Leeds City Council,31/08/2016,Civic Enterprise Leeds,Commercial Services,Premises,Plant and Machinery,102,12-Aug-2016,1608-00558,0.00,157.50,R,Akua Uk Ltd,No
Http://opendatacommunities.org/id/metropolitan-district-council/leeds,Leeds City Council,31/08/2016,Civic Enterprise Leeds,Commercial Services,Premises,Plant and Machinery,102,12-Aug-2016,1608-00559,0.00,168.00,R,Akua Uk Ltd,No
Http://opendatacommunities.org/id/metropolitan-district-council/leeds,Leeds City Council,31/08/2016,Citizens and Communities,Elections  Licensing and Registration,Premises,Rents,141,30-Aug-2016,1608-00560,0.00,120.00,R,REDACTED PERSONAL DATA,No
Http://opendatacommunities.org/id/metropolitan-district-council/leeds,Leeds City Council,31/08/2016,Childrens Services,Learning Skills & Universal,Supplies and Services,Bought In Professional Services,277,03-Aug-2016,1608-00561,0.00,500.00,R,Alan Pergusey,No
Http://opendatacommunities.org/id/metropolitan-district-council/leeds,Leeds City Council,31/08/2016,City Development,Libraries  Arts & Heritage,Supplies and Services,Art Galleries Total Stores,003,17-Aug-2016,1608-00562,0.00,180.00,R,Alastair Laurence,No
Http://opendatacommunities.org/id/metropolitan-district-council/leeds,Leeds City Council,31/08/2016,Citizens and Communities,Customer Access,Supplies and Services,Other Hired And Contracted Services,265,04-Aug-2016,1608-00563,0.00,15.00,R,Alazar Araya,No
Http://opendatacommunities.org/id/metropolitan-district-council/leeds,Leeds City Council as Accountable Body,31/08/2016,Social Services Pooled Budgets,Leeds Community Equip Store Pooled Budgt,Supplies and Services,Other Equipment,203,12-Aug-2016,1608-00564,0.00,244.60,R,Albion Electric Stores Ltd,No
Http://opendatacommunities.org/id/metropolitan-district-council/leeds,Leeds City Council,31/08/2016,Environment & Housing,Waste Management,Supplies and Services,Other Hired And Contracted Services,265,11-Aug-2016,1608-00565,0.00,122.90,R,Alcontrol Uk Ltd,No
Http://opendatacommunities.org/id/metropolitan-district-council/leeds,Leeds City Council,31/08/2016,City Development,Highways,Transport,Public Transport Expenses,310,16-Aug-2016,1608-00566,0.00,200.00,R,Aldercross,No
Http://opendatacommunities.org/id/metropolitan-district-council/leeds,Leeds City Council,31/08/2016,Childrens Services,Safeguarding Targeted & Specialist  ,Supplies and Services,Food & Drink,231,30-Jun-2016,1608-00567,0.00,43.64,R,Aldi,Yes
Http://opendatacommunities.org/id/metropolitan-district-council/leeds,Leeds City Council,31/08/2016,City Development,Recreation  ,Supplies and Services,Operational Materials,205,13-Jul-2016,1608-00568,0.00,8.32,R,Aldi,Yes
Http://opendatacommunities.org/id/metropolitan-district-council/leeds,Leeds City Council,31/08/2016,Childrens Services,Learning Skills & Universal,Employees,Basic Pay,1,26-Aug-2016,1608-00569,0.00,20.00,R,Alena Panasenka,No
Http://opendatacommunities.org/id/metropolitan-district-council/leeds,Leeds City Council,31/08/2016,Childrens Services,Safeguarding Targeted & Specialist,Support Services,Legal Disbursements,411,10-Aug-2016,1608-00570,0.00,216.05,R,Alere Toxicology Plc,No
Http://opendatacommunities.org/id/metropolitan-district-council/leeds,Leeds City Council,31/08/2016,Childrens Services,Safeguarding Targeted & Specialist,Support Services,Legal Disbursements,411,26-Aug-2016,1608-00571,0.00,100.00,R,Alere Toxicology Plc,No
Http://opendatacommunities.org/id/metropolitan-district-council/leeds,Leeds City Council,31/08/2016,Childrens Services,Safeguarding Targeted & Specialist,Support Services,Legal Disbursements,411,30-Aug-2016,1608-00572,0.00,210.00,R,Alere Toxicology Plc,No
Http://opendatacommunities.org/id/metropolitan-district-council/leeds,Leeds City Council,31/08/2016,Childrens Services,Safeguarding Targeted & Specialist,Support Services,Legal Disbursements,411,30-Aug-2016,1608-00573,0.00,157.45,R,Alere Toxicology Plc,No
Http://opendatacommunities.org/id/metropolitan-district-council/leeds,Leeds City Council,31/08/2016,Childrens Services,Safeguarding Targeted & Specialist,Support Services,Legal Disbursements,411,30-Aug-2016,1608-00574,0.00,146.05,R,Alere Toxicology Plc,No
Http://opendatacommunities.org/id/metropolitan-district-council/leeds,Leeds City Council,31/08/2016,Central & Corporate,Human Resources,Employees,Occupational Health,85,17-Aug-2016,1608-00575,0.00,207.00,R,Alessandro Brunelli,No
Http://opendatacommunities.org/id/metropolitan-district-council/leeds,Leeds City Council,31/08/2016,Childrens Services,Learning Skills & Universal,Supplies and Services,Training Allowances,257,04-Aug-2016,1608-00576,0.00,203.79,R,REDACTED PERSONAL DATA,No
Http://opendatacommunities.org/id/metropolitan-district-council/leeds,Leeds City Council,31/08/2016,Childrens Services,Learning Skills & Universal,Supplies and Services,Training Allowances,257,12-Aug-2016,1608-00577,0.00,155.40,R,REDACTED PERSONAL DATA,No
Http://opendatacommunities.org/id/metropolitan-district-council/leeds,Leeds City Council,31/08/2016,Childrens Services,Learning Skills & Universal,Supplies and Services,Training Allowances,257,12-Aug-2016,1608-00578,0.00,203.79,R,REDACTED PERSONAL DATA,No
Http://opendatacommunities.org/id/metropolitan-district-council/leeds,Leeds City Council,31/08/2016,Childrens Services,Learning Skills & Universal,Supplies and Services,Training Allowances,257,19-Aug-2016,1608-00579,0.00,255.59,R,REDACTED PERSONAL DATA,No
Http://opendatacommunities.org/id/metropolitan-district-council/leeds,Leeds City Council,31/08/2016,Childrens Services,Learning Skills & Universal,Supplies and Services,Training Allowances,257,26-Aug-2016,1608-00580,0.00,255.59,R,REDACTED PERSONAL DATA,No
Http://opendatacommunities.org/id/metropolitan-district-council/leeds,Leeds City Council,31/08/2016,Childrens Services,Safeguarding Targeted & Specialist,Support Services,Legal Disbursements,411,31-Aug-2016,1608-00581,0.00,713.00,R,Alex Taylor,No
Http://opendatacommunities.org/id/metropolitan-district-council/leeds,Leeds City Council,31/08/2016,Citizens and Communities,Elections  Licensing and Registration,Income,Admissions  Booking Fees & Ticket Sales,933,25-Aug-2016,1608-00582,0.00,185.00,R,REDACTED PERSONAL DATA,No
Http://opendatacommunities.org/id/metropolitan-district-council/leeds,Leeds City Council,31/08/2016,Adult Social Care,Services For Older People - 65 And Over,Third Party Payments,Residential Care Dementia,571,24-Aug-2016,1608-00583,0.00,8967.00,R,Alexander Residential Home,No
Http://opendatacommunities.org/id/metropolitan-district-council/leeds,Leeds City Council,31/08/2016,Adult Social Care,Services For Older People - 65 And Over,Third Party Payments,Residential,580,24-Aug-2016,1608-00584,0.00,14559.68,R,Alexander Residential Home,No
Http://opendatacommunities.org/id/metropolitan-district-council/leeds,Leeds City Council,31/08/2016,Citizens and Communities,Customer Access,Supplies and Services,Other Hired And Contracted Services,265,04-Aug-2016,1608-00585,0.00,472.00,R,Alexandra Costenco,No
Http://opendatacommunities.org/id/metropolitan-district-council/leeds,Leeds City Council,31/08/2016,Adult Social Care,Services For Older People - 65 And Over,Third Party Payments,Residential Care Dementia,571,24-Aug-2016,1608-00586,0.00,1511.28,R,Alexandra Court,No
Http://opendatacommunities.org/id/metropolitan-district-council/leeds,Leeds City Council,31/08/2016,Adult Social Care,Services For Older People - 65 And Over,Third Party Payments,Residential,580,24-Aug-2016,1608-00587,0.00,11586.80,R,Alexandra Court,No
Http://opendatacommunities.org/id/metropolitan-district-council/leeds,Leeds City Council,31/08/2016,Citizens and Communities,Customer Access,Supplies and Services,Other Hired And Contracted Services,265,04-Aug-2016,1608-00588,0.00,709.50,R,Alexandra Hirst,No
Http://opendatacommunities.org/id/metropolitan-district-council/leeds,Leeds City Council,31/08/2016,City Development,Recreation,Income,Swimming Bath Charges,923,08-Aug-2016,1608-00589,0.00,23.60,R,REDACTED PERSONAL DATA,No
Http://opendatacommunities.org/id/metropolitan-district-council/leeds,Leeds City Council,31/08/2016,Citizens and Communities,Customer Access,Supplies and Services,Other Hired And Contracted Services,265,04-Aug-2016,1608-00590,0.00,220.00,R,Alexia Blohm-Pain,No
Http://opendatacommunities.org/id/metropolitan-district-council/leeds,Leeds City Council,31/08/2016,Environment & Housing,Leeds Building Services,Supplies and Services,Other Hired And Contracted Services,265,03-Aug-2016,1608-00591,0.00,3150.00,R,Alfred Bagnall & Sons (Leeds) Ltd,No
Http://opendatacommunities.org/id/metropolitan-district-council/leeds,Leeds City Council,31/08/2016,Environment & Housing,Leeds Building Services,Supplies and Services,Other Hired And Contracted Services,265,26-Aug-2016,1608-00592,0.00,3898.03,R,Alfred Bagnall & Sons (Leeds) Ltd,No
Http://opendatacommunities.org/id/metropolitan-district-council/leeds,Leeds City Council,31/08/2016,Environment & Housing,Leeds Building Services,Supplies and Services,Other Hired And Contracted Services,265,26-Aug-2016,1608-00593,0.00,6772.00,R,Alfred Bagnall & Sons (Leeds) Ltd,No
Http://opendatacommunities.org/id/metropolitan-district-council/leeds,Leeds City Council as Accountable Body,31/08/2016,Social Services Pooled Budgets,Leeds Community Equip Store Pooled Budgt,Supplies and Services,Other Equipment,203,26-Aug-2016,1608-00594,0.00,1925.00,R,Alfred Bagnall & Sons (Leeds) Ltd,No
Http://opendatacommunities.org/id/metropolitan-district-council/leeds,Leeds City Council,31/08/2016,City Development,Libraries  Arts & Heritage,Supplies and Services,Other Hired And Contracted Services,265,31-Aug-2016,1608-00595,0.00,550.00,R,Alfred Bagnall & Sons (Leeds) Ltd,No
Http://opendatacommunities.org/id/metropolitan-district-council/leeds,Leeds City Council,31/08/2016,Childrens Services,Safeguarding Targeted & Specialist,Transfer Payments,Leaving Care Allowances,634,04-Aug-2016,1608-00596,0.00,60.00,R,REDACTED PERSONAL DATA,No
Http://opendatacommunities.org/id/metropolitan-district-council/leeds,Leeds City Council,31/08/2016,Childrens Services,Safeguarding Targeted & Specialist,Transfer Payments,Leaving Care Allowances,634,11-Aug-2016,1608-00597,0.00,60.00,R,REDACTED PERSONAL DATA,No
Http://opendatacommunities.org/id/metropolitan-district-council/leeds,Leeds City Council,31/08/2016,Childrens Services,Safeguarding Targeted & Specialist,Transfer Payments,Leaving Care Allowances,634,18-Aug-2016,1608-00598,0.00,60.00,R,REDACTED PERSONAL DATA,No
Http://opendatacommunities.org/id/metropolitan-district-council/leeds,Leeds City Council,31/08/2016,Childrens Services,Safeguarding Targeted & Specialist,Transfer Payments,Leaving Care Allowances,634,24-Aug-2016,1608-00599,0.00,60.00,R,REDACTED PERSONAL DATA,No
Http://opendatacommunities.org/id/metropolitan-district-council/leeds,Leeds City Council,31/08/2016,Adult Social Care,Other Generic Services,Supplies and Services,Conference Meetings,253,23-Aug-2016,1608-00600,0.00,15.00,R,REDACTED PERSONAL DATA,No
Http://opendatacommunities.org/id/metropolitan-district-council/leeds,Leeds City Council,31/08/2016,Childrens Services,Safeguarding Targeted & Specialist,Third Party Payments,Section 17,551,05-Aug-2016,1608-00601,0.00,56.90,R,REDACTED PERSONAL DATA,No
Http://opendatacommunities.org/id/metropolitan-district-council/leeds,Leeds City Council,31/08/2016,Childrens Services,Safeguarding Targeted & Specialist,Third Party Payments,Section 17,551,12-Aug-2016,1608-00602,0.00,56.90,R,REDACTED PERSONAL DATA,No
Http://opendatacommunities.org/id/metropolitan-district-council/leeds,Leeds City Council,31/08/2016,Childrens Services,Safeguarding Targeted & Specialist,Third Party Payments,Section 17,551,19-Aug-2016,1608-00603,0.00,56.90,R,REDACTED PERSONAL DATA,No
Http://opendatacommunities.org/id/metropolitan-district-council/leeds,Leeds City Council,31/08/2016,Childrens Services,Safeguarding Targeted & Specialist,Third Party Payments,Section 17,551,26-Aug-2016,1608-00604,0.00,56.90,R,REDACTED PERSONAL DATA,No
Http://opendatacommunities.org/id/metropolitan-district-council/leeds,Leeds City Council,31/08/2016,City Development,Libraries  Arts & Heritage,Supplies and Services,Other Hired And Contracted Services,265,04-Aug-2016,1608-00605,0.00,200.00,R,Alison Smith,No
Http://opendatacommunities.org/id/metropolitan-district-council/leeds,Leeds City Council,31/08/2016,Childrens Services,Learning Skills & Universal,Supplies and Services,Food & Drink,231,04-Aug-2016,1608-00606,0.00,29.95,R,REDACTED PERSONAL DATA,No
Http://opendatacommunities.org/id/metropolitan-district-council/leeds,Leeds City Council,31/08/2016,City Development,Economic Development,Supplies and Services,Publication And Promotion,267,26-Aug-2016,1608-00607,0.00,1000.00,R,Alive And Kicking Theatre Company Ltd,No
Http://opendatacommunities.org/id/metropolitan-district-council/leeds,Leeds City Council,31/08/2016,City Development,Economic Development,Supplies and Services,Publication And Promotion,267,26-Aug-2016,1608-00608,0.00,1000.00,R,Alive And Kicking Theatre Company Ltd,No
Http://opendatacommunities.org/id/metropolitan-district-council/leeds,Leeds City Council,31/08/2016,Childrens Services,Safeguarding Targeted & Specialist,Transfer Payments,Leaving Care Allowances,634,12-Aug-2016,1608-00609,0.00,60.00,R,All Abode,No
Http://opendatacommunities.org/id/metropolitan-district-council/leeds,Leeds City Council,31/08/2016,Childrens Services,Safeguarding Targeted & Specialist,Transfer Payments,Leaving Care Grants,635,15-Aug-2016,1608-00610,0.00,120.00,R,All Abode,No
Http://opendatacommunities.org/id/metropolitan-district-council/leeds,Leeds City Council,31/08/2016,Environment & Housing,Leeds Building Services,Supplies and Services,Other Hired And Contracted Services,265,15-Aug-2016,1608-00611,0.00,195.00,R,All Clear Solutions Ltd,No
Http://opendatacommunities.org/id/metropolitan-district-council/leeds,Leeds City Council,31/08/2016,Environment & Housing,Leeds Building Services,Supplies and Services,Other Hired And Contracted Services,265,16-Aug-2016,1608-00612,0.00,250.00,R,All Clear Solutions Ltd,No
Http://opendatacommunities.org/id/metropolitan-district-council/leeds,Leeds City Council,31/08/2016,Environment & Housing,Leeds Building Services,Supplies and Services,Other Hired And Contracted Services,265,26-Aug-2016,1608-00613,0.00,195.00,R,All Clear Solutions Ltd,No
Http://opendatacommunities.org/id/metropolitan-district-council/leeds,Leeds City Council,31/08/2016,Environment & Housing,Leeds Building Services,Supplies and Services,Other Hired And Contracted Services,265,26-Aug-2016,1608-00614,0.00,195.00,R,All Clear Solutions Ltd,No
Http://opendatacommunities.org/id/metropolitan-district-council/leeds,Leeds City Council,31/08/2016,Childrens Services,Safeguarding Targeted & Specialist,Supplies and Services,Conference Meetings,253,10-Aug-2016,1608-00615,0.00,45.00,R,All Saints Parish Church,No
Http://opendatacommunities.org/id/metropolitan-district-council/leeds,Leeds City Council,31/08/2016,Childrens Services,Safeguarding Targeted & Specialist,Supplies and Services,Conference Meetings,253,24-Aug-2016,1608-00616,0.00,60.00,R,All Saints Parish Church,No
Http://opendatacommunities.org/id/metropolitan-district-council/leeds,Leeds City Council,31/08/2016,Childrens Services,Safeguarding Targeted & Specialist,Supplies and Services,Conference Meetings,253,24-Aug-2016,1608-00617,0.00,45.00,R,All Saints Parish Church,No
Http://opendatacommunities.org/id/metropolitan-district-council/leeds,Leeds City Council as Accountable Body,31/08/2016,Social Services Pooled Budgets,Jcs For People With Learning Disabilitie,Third Party Payments,Sheltered Accommodation,569,24-Aug-2016,1608-00618,0.00,12777.88,R,Allerton Avenue,No
Http://opendatacommunities.org/id/metropolitan-district-council/leeds,Leeds City Council,31/08/2016,Strategic Accounts,Miscellaneous,Supplies and Services,Non-Recurring Grants,227,08-Aug-2016,1608-00619,0.00,300.00,R,Allerton Bywater Parish Council,No
Http://opendatacommunities.org/id/metropolitan-district-council/leeds,Leeds City Council,31/08/2016,Central & Corporate,Finance,Supplies and Services,Bank Charges,263,01-Aug-2016,1608-00620,0.00,-130.07,R,Alliance & Leicester Commercial Bank,No
Http://opendatacommunities.org/id/metropolitan-district-council/leeds,Leeds City Council,31/08/2016,Strategic Landlord,Housing Management,Supplies and Services,Other Hired And Contracted Services,265,04-Aug-2016,1608-00621,0.00,261.45,R,Alliance & Leicester Commercial Bank,No
Http://opendatacommunities.org/id/metropolitan-district-council/leeds,Leeds City Council,31/08/2016,Central & Corporate,Finance,Supplies and Services,Bank Charges,263,04-Aug-2016,1608-00622,0.00,2.02,R,Alliance & Leicester Commercial Bank,No
Http://opendatacommunities.org/id/metropolitan-district-council/leeds,Leeds City Council,31/08/2016,Central & Corporate,Finance,Supplies and Services,Bank Charges,263,04-Aug-2016,1608-00623,0.00,308.06,R,Alliance & Leicester Commercial Bank,No
Http://opendatacommunities.org/id/metropolitan-district-council/leeds,Leeds City Council,31/08/2016,Central & Corporate,Finance,Supplies and Services,Bank Charges,263,04-Aug-2016,1608-00624,0.00,1078.95,R,Alliance & Leicester Commercial Bank,No
Http://opendatacommunities.org/id/metropolitan-district-council/leeds,Leeds City Council,31/08/2016,Central & Corporate,Finance,Supplies and Services,Bank Charges,263,04-Aug-2016,1608-00625,0.00,100.14,R,Alliance & Leicester Commercial Bank,No
Http://opendatacommunities.org/id/metropolitan-district-council/leeds,Leeds City Council,31/08/2016,City Development,Highways,Supplies and Services,Other Hired And Contracted Services,265,05-Aug-2016,1608-00626,0.00,2245.90,R,Allied Exploration & Geotechnics Ltd,No
Http://opendatacommunities.org/id/metropolitan-district-council/leeds,Leeds City Council,31/08/2016,City Development,Highways,Supplies and Services,Other Hired And Contracted Services,265,05-Aug-2016,1608-00627,0.00,165.00,R,Allied Exploration & Geotechnics Ltd,No
Http://opendatacommunities.org/id/metropolitan-district-council/leeds,Leeds City Council,31/08/2016,City Development,Highways,Supplies and Services,Other Hired And Contracted Services,265,05-Aug-2016,1608-00628,0.00,1217.40,R,Allied Exploration & Geotechnics Ltd,No
Http://opendatacommunities.org/id/metropolitan-district-council/leeds,Leeds City Council,31/08/2016,City Development,Highways,Supplies and Services,Other Hired And Contracted Services,265,05-Aug-2016,1608-00629,0.00,421.00,R,Allied Exploration & Geotechnics Ltd,No
Http://opendatacommunities.org/id/metropolitan-district-council/leeds,Leeds City Council,31/08/2016,City Development,Highways,Supplies and Services,Other Hired And Contracted Services,265,08-Aug-2016,1608-00630,0.00,170.00,R,Allied Exploration & Geotechnics Ltd,No
Http://opendatacommunities.org/id/metropolitan-district-council/leeds,Leeds City Council,31/08/2016,City Development,Highways,Supplies and Services,Other Hired And Contracted Services,265,08-Aug-2016,1608-00631,0.00,967.30,R,Allied Exploration & Geotechnics Ltd,No
Http://opendatacommunities.org/id/metropolitan-district-council/leeds,Leeds City Council,31/08/2016,City Development,Highways,Supplies and Services,Other Hired And Contracted Services,265,10-Aug-2016,1608-00632,0.00,2849.70,R,Allied Exploration & Geotechnics Ltd,No
Http://opendatacommunities.org/id/metropolitan-district-council/leeds,Leeds City Council,31/08/2016,City Development,Highways,Supplies and Services,Other Hired And Contracted Services,265,17-Aug-2016,1608-00633,0.00,5856.50,R,Allied Exploration & Geotechnics Ltd,No
Http://opendatacommunities.org/id/metropolitan-district-council/leeds,Leeds City Council,31/08/2016,Adult Social Care,Other Generic Services,Third Party Payments,Home Care,568,01-Aug-2016,1608-00634,0.00,6758.38,R,Allied Healthcare,No
Http://opendatacommunities.org/id/metropolitan-district-council/leeds,Leeds City Council as Accountable Body,31/08/2016,Social Services Pooled Budgets,Jcs For People With Learning Disabilitie,Third Party Payments,Home Care,568,01-Aug-2016,1608-00635,0.00,420.50,R,Allied Healthcare,No
Http://opendatacommunities.org/id/metropolitan-district-council/leeds,Leeds City Council as Accountable Body,31/08/2016,Social Services Pooled Budgets,Jcs For People With Learning Disabilitie,Third Party Payments,Home Care,568,01-Aug-2016,1608-00636,0.00,1128.65,R,Allied Healthcare,No
Http://opendatacommunities.org/id/metropolitan-district-council/leeds,Leeds City Council as Accountable Body,31/08/2016,Social Services Pooled Budgets,Jcs For People With Learning Disabilitie,Third Party Payments,Home Care,568,01-Aug-2016,1608-00637,0.00,222.40,R,Allied Healthcare,No
Http://opendatacommunities.org/id/metropolitan-district-council/leeds,Leeds City Council as Accountable Body,31/08/2016,Social Services Pooled Budgets,Jcs For People With Learning Disabilitie,Third Party Payments,Home Care,568,01-Aug-2016,1608-00638,0.00,1188.98,R,Allied Healthcare,No
Http://opendatacommunities.org/id/metropolitan-district-council/leeds,Leeds City Council as Accountable Body,31/08/2016,Social Services Pooled Budgets,Jcs For People With Learning Disabilitie,Third Party Payments,Home Care,568,01-Aug-2016,1608-00639,0.00,1110.37,R,Allied Healthcare,No
Http://opendatacommunities.org/id/metropolitan-district-council/leeds,Leeds City Council as Accountable Body,31/08/2016,Social Services Pooled Budgets,Jcs For People With Learning Disabilitie,Third Party Payments,Home Care,568,01-Aug-2016,1608-00640,0.00,200.16,R,Allied Healthcare,No
Http://opendatacommunities.org/id/metropolitan-district-council/leeds,Leeds City Council,31/08/2016,Adult Social Care,Services For Older People - 65 And Over,Third Party Payments,Home Care,568,02-Aug-2016,1608-00641,0.00,421.43,R,Allied Healthcare,No
Http://opendatacommunities.org/id/metropolitan-district-council/leeds,Leeds City Council,31/08/2016,Adult Social Care,Services For Older People - 65 And Over,Third Party Payments,Home Care,568,02-Aug-2016,1608-00642,0.00,2632.21,R,Allied Healthcare,No
Http://opendatacommunities.org/id/metropolitan-district-council/leeds,Leeds City Council,31/08/2016,Adult Social Care,Services For Older People - 65 And Over,Third Party Payments,Home Care,568,02-Aug-2016,1608-00643,0.00,756.28,R,Allied Healthcare,No
Http://opendatacommunities.org/id/metropolitan-district-council/leeds,Leeds City Council,31/08/2016,Childrens Services,Safeguarding Targeted & Specialist,Third Party Payments,Services Rendered By Voluntary Sector,505,03-Aug-2016,1608-00644,0.00,560.40,R,Allied Healthcare,No
Http://opendatacommunities.org/id/metropolitan-district-council/leeds,Leeds City Council,31/08/2016,Childrens Services,Safeguarding Targeted & Specialist,Third Party Payments,Services Rendered By Voluntary Sector,505,03-Aug-2016,1608-00645,0.00,1131.74,R,Allied Healthcare,No
Http://opendatacommunities.org/id/metropolitan-district-council/leeds,Leeds City Council,31/08/2016,Childrens Services,Safeguarding Targeted & Specialist,Third Party Payments,Services Rendered By Voluntary Sector,505,03-Aug-2016,1608-00646,0.00,807.20,R,Allied Healthcare,No
Http://opendatacommunities.org/id/metropolitan-district-council/leeds,Leeds City Council,31/08/2016,Childrens Services,Safeguarding Targeted & Specialist,Third Party Payments,Services Rendered By Voluntary Sector,505,03-Aug-2016,1608-00647,0.00,868.05,R,Allied Healthcare,No
Http://opendatacommunities.org/id/metropolitan-district-council/leeds,Leeds City Council as Accountable Body,31/08/2016,Social Services Pooled Budgets,Jcs For People With Learning Disabilitie,Third Party Payments,Home Care,568,04-Aug-2016,1608-00648,0.00,648.04,R,Allied Healthcare,No
Http://opendatacommunities.org/id/metropolitan-district-council/leeds,Leeds City Council as Accountable Body,31/08/2016,Social Services Pooled Budgets,Jcs For People With Learning Disabilitie,Third Party Payments,Home Care,568,04-Aug-2016,1608-00649,0.00,614.90,R,Allied Healthcare,No
Http://opendatacommunities.org/id/metropolitan-district-council/leeds,Leeds City Council,31/08/2016,Childrens Services,Safeguarding Targeted & Specialist,Third Party Payments,Services Rendered By Voluntary Sector,505,10-Aug-2016,1608-00650,0.00,-380.00,R,Allied Healthcare,No
Http://opendatacommunities.org/id/metropolitan-district-council/leeds,Leeds City Council,31/08/2016,Childrens Services,Safeguarding Targeted & Specialist,Third Party Payments,Services Rendered By Voluntary Sector,505,10-Aug-2016,1608-00651,0.00,681.58,R,Allied Healthcare,No
Http://opendatacommunities.org/id/metropolitan-district-council/leeds,Leeds City Council as Accountable Body,31/08/2016,Social Services Pooled Budgets,Jcs For People With Learning Disabilitie,Third Party Payments,Home Care,568,10-Aug-2016,1608-00652,0.00,155.42,R,Allied Healthcare,No
Http://opendatacommunities.org/id/metropolitan-district-council/leeds,Leeds City Council,31/08/2016,Adult Social Care,Services For Older People - 65 And Over,Third Party Payments,Home Care,568,10-Aug-2016,1608-00653,0.00,74.27,R,Allied Healthcare,No
Http://opendatacommunities.org/id/metropolitan-district-council/leeds,Leeds City Council,31/08/2016,Childrens Services,Safeguarding Targeted & Specialist,Third Party Payments,Services Rendered By Voluntary Sector,505,12-Aug-2016,1608-00654,0.00,427.20,R,Allied Healthcare,No
Http://opendatacommunities.org/id/metropolitan-district-council/leeds,Leeds City Council as Accountable Body,31/08/2016,Social Services Pooled Budgets,Jcs For People With Learning Disabilitie,Third Party Payments,Home Care,568,17-Aug-2016,1608-00655,0.00,98.21,R,Allied Healthcare,No
Http://opendatacommunities.org/id/metropolitan-district-council/leeds,Leeds City Council as Accountable Body,31/08/2016,Social Services Pooled Budgets,Jcs For People With Learning Disabilitie,Third Party Payments,Home Care,568,17-Aug-2016,1608-00656,0.00,129.38,R,Allied Healthcare,No
Http://opendatacommunities.org/id/metropolitan-district-council/leeds,Leeds City Council,31/08/2016,Childrens Services,Safeguarding Targeted & Specialist,Third Party Payments,Services Rendered By Voluntary Sector,505,17-Aug-2016,1608-00657,0.00,1070.20,R,Allied Healthcare,No
Http://opendatacommunities.org/id/metropolitan-district-council/leeds,Leeds City Council,31/08/2016,Childrens Services,Safeguarding Targeted & Specialist,Third Party Payments,Services Rendered By Voluntary Sector,505,17-Aug-2016,1608-00658,0.00,1025.20,R,Allied Healthcare,No
Http://opendatacommunities.org/id/metropolitan-district-council/leeds,Leeds City Council,31/08/2016,Childrens Services,Safeguarding Targeted & Specialist,Third Party Payments,Services Rendered By Voluntary Sector,505,17-Aug-2016,1608-00659,0.00,621.25,R,Allied Healthcare,No
Http://opendatacommunities.org/id/metropolitan-district-council/leeds,Leeds City Council,31/08/2016,Childrens Services,Safeguarding Targeted & Specialist,Third Party Payments,Services Rendered By Voluntary Sector,505,17-Aug-2016,1608-00660,0.00,987.60,R,Allied Healthcare,No
Http://opendatacommunities.org/id/metropolitan-district-council/leeds,Leeds City Council,31/08/2016,Childrens Services,Safeguarding Targeted & Specialist,Third Party Payments,Services Rendered By Voluntary Sector,505,17-Aug-2016,1608-00661,0.00,987.60,R,Allied Healthcare,No
Http://opendatacommunities.org/id/metropolitan-district-council/leeds,Leeds City Council,31/08/2016,Childrens Services,Safeguarding Targeted & Specialist,Third Party Payments,Services Rendered By Voluntary Sector,505,17-Aug-2016,1608-00662,0.00,928.90,R,Allied Healthcare,No
Http://opendatacommunities.org/id/metropolitan-district-council/leeds,Leeds City Council,31/08/2016,Childrens Services,Safeguarding Targeted & Specialist,Third Party Payments,Services Rendered By Voluntary Sector,505,17-Aug-2016,1608-00663,0.00,807.20,R,Allied Healthcare,No
Http://opendatacommunities.org/id/metropolitan-district-council/leeds,Leeds City Council,31/08/2016,Childrens Services,Safeguarding Targeted & Specialist,Third Party Payments,Services Rendered By Voluntary Sector,505,17-Aug-2016,1608-00664,0.00,60.85,R,Allied Healthcare,No
Http://opendatacommunities.org/id/metropolitan-district-council/leeds,Leeds City Council,31/08/2016,Childrens Services,Safeguarding Targeted & Specialist,Third Party Payments,Services Rendered By Voluntary Sector,505,17-Aug-2016,1608-00665,0.00,180.40,R,Allied Healthcare,No
Http://opendatacommunities.org/id/metropolitan-district-council/leeds,Leeds City Council,31/08/2016,Childrens Services,Safeguarding Targeted & Specialist,Third Party Payments,Services Rendered By Voluntary Sector,505,17-Aug-2016,1608-00666,0.00,488.05,R,Allied Healthcare,No
Http://opendatacommunities.org/id/metropolitan-district-council/leeds,Leeds City Council,31/08/2016,Childrens Services,Safeguarding Targeted & Specialist,Third Party Payments,Services Rendered By Voluntary Sector,505,17-Aug-2016,1608-00667,0.00,250.85,R,Allied Healthcare,No
Http://opendatacommunities.org/id/metropolitan-district-council/leeds,Leeds City Council,31/08/2016,Childrens Services,Safeguarding Targeted & Specialist,Third Party Payments,Services Rendered By Voluntary Sector,505,17-Aug-2016,1608-00668,0.00,427.20,R,Allied Healthcare,No
Http://opendatacommunities.org/id/metropolitan-district-council/leeds,Leeds City Council,31/08/2016,Childrens Services,Safeguarding Targeted & Specialist,Third Party Payments,Services Rendered By Voluntary Sector,505,17-Aug-2016,1608-00669,0.00,190.00,R,Allied Healthcare,No
Http://opendatacommunities.org/id/metropolitan-district-council/leeds,Leeds City Council,31/08/2016,Childrens Services,Safeguarding Targeted & Specialist,Third Party Payments,Services Rendered By Voluntary Sector,505,17-Aug-2016,1608-00670,0.00,617.20,R,Allied Healthcare,No
Http://opendatacommunities.org/id/metropolitan-district-council/leeds,Leeds City Council,31/08/2016,Childrens Services,Safeguarding Targeted & Specialist,Third Party Payments,Services Rendered By Voluntary Sector,505,17-Aug-2016,1608-00671,0.00,678.05,R,Allied Healthcare,No
Http://opendatacommunities.org/id/metropolitan-district-council/leeds,Leeds City Council,31/08/2016,Childrens Services,Safeguarding Targeted & Specialist,Third Party Payments,Services Rendered By Voluntary Sector,505,17-Aug-2016,1608-00672,0.00,190.00,R,Allied Healthcare,No
Http://opendatacommunities.org/id/metropolitan-district-council/leeds,Leeds City Council,31/08/2016,Adult Social Care,Services For Older People - 65 And Over,Third Party Payments,Home Care,568,19-Aug-2016,1608-00673,0.00,2365.83,R,Allied Healthcare,No
Http://opendatacommunities.org/id/metropolitan-district-council/leeds,Leeds City Council,31/08/2016,Adult Social Care,Services For Older People Under 65 P/Dis,Third Party Payments,Home Care,568,19-Aug-2016,1608-00674,0.00,323.90,R,Allied Healthcare,No
Http://opendatacommunities.org/id/metropolitan-district-council/leeds,Leeds City Council,31/08/2016,Adult Social Care,Services For Older People - 65 And Over,Third Party Payments,Home Care,568,19-Aug-2016,1608-00675,0.00,447.44,R,Allied Healthcare,No
Http://opendatacommunities.org/id/metropolitan-district-council/leeds,Leeds City Council,31/08/2016,Adult Social Care,Services For Older People - 65 And Over,Third Party Payments,Home Care,568,19-Aug-2016,1608-00676,0.00,11960.16,R,Allied Healthcare,No
Http://opendatacommunities.org/id/metropolitan-district-council/leeds,Leeds City Council,31/08/2016,Adult Social Care,Services For Older People Under 65 P/Dis,Third Party Payments,Home Care,568,19-Aug-2016,1608-00677,0.00,3871.53,R,Allied Healthcare,No
Http://opendatacommunities.org/id/metropolitan-district-council/leeds,Leeds City Council,31/08/2016,Adult Social Care,Services For Older People - 65 And Over,Third Party Payments,Home Care,568,19-Aug-2016,1608-00678,0.00,17886.26,R,Allied Healthcare,No
Http://opendatacommunities.org/id/metropolitan-district-council/leeds,Leeds City Council,31/08/2016,Adult Social Care,Services For Older People Under 65 P/Dis,Third Party Payments,Home Care,568,19-Aug-2016,1608-00679,0.00,3789.83,R,Allied Healthcare,No
Http://opendatacommunities.org/id/metropolitan-district-council/leeds,Leeds City Council,31/08/2016,Adult Social Care,Services For Older People - 65 And Over,Third Party Payments,Home Care,568,19-Aug-2016,1608-00680,0.00,17090.69,R,Allied Healthcare,No
Http://opendatacommunities.org/id/metropolitan-district-council/leeds,Leeds City Council,31/08/2016,Adult Social Care,Services For Older People Under 65 P/Dis,Third Party Payments,Home Care,568,19-Aug-2016,1608-00681,0.00,9898.46,R,Allied Healthcare,No
Http://opendatacommunities.org/id/metropolitan-district-council/leeds,Leeds City Council,31/08/2016,Adult Social Care,Other Generic Services,Third Party Payments,Home Care,568,25-Aug-2016,1608-00682,0.00,17274.66,R,Allied Healthcare,No
Http://opendatacommunities.org/id/metropolitan-district-council/leeds,Leeds City Council,31/08/2016,Adult Social Care,Other Generic Services,Third Party Payments,Home Care,568,25-Aug-2016,1608-00683,0.00,6598.24,R,Allied Healthcare,No
Http://opendatacommunities.org/id/metropolitan-district-council/leeds,Leeds City Council,31/08/2016,Adult Social Care,Services For Older People - 65 And Over,Third Party Payments,Home Care,568,26-Aug-2016,1608-00684,0.00,5129.73,R,Allied Healthcare,No
Http://opendatacommunities.org/id/metropolitan-district-council/leeds,Leeds City Council,31/08/2016,Adult Social Care,Services For Older People Under 65 P/Dis,Third Party Payments,Home Care,568,31-Aug-2016,1608-00685,0.00,236.01,R,Allied Healthcare,No
Http://opendatacommunities.org/id/metropolitan-district-council/leeds,Leeds City Council,31/08/2016,Adult Social Care,Services For Older People Under 65 P/Dis,Third Party Payments,Home Care,568,31-Aug-2016,1608-00686,0.00,250.95,R,Allied Healthcare,No
Http://opendatacommunities.org/id/metropolitan-district-council/leeds,Leeds City Council,31/08/2016,Adult Social Care,Services For Older People Under 65 P/Dis,Third Party Payments,Home Care,568,31-Aug-2016,1608-00687,0.00,250.95,R,Allied Healthcare,No
Http://opendatacommunities.org/id/metropolitan-district-council/leeds,Leeds City Council,31/08/2016,Adult Social Care,Services For Older People Under 65 P/Dis,Third Party Payments,Home Care,568,31-Aug-2016,1608-00688,0.00,241.03,R,Allied Healthcare,No
Http://opendatacommunities.org/id/metropolitan-district-council/leeds,Leeds City Council,31/08/2016,Adult Social Care,Services For Older People Under 65 P/Dis,Third Party Payments,Home Care,568,31-Aug-2016,1608-00689,0.00,247.96,R,Allied Healthcare,No
Http://opendatacommunities.org/id/metropolitan-district-council/leeds,Leeds City Council,31/08/2016,Adult Social Care,Services For Older People Under 65 P/Dis,Third Party Payments,Home Care,568,31-Aug-2016,1608-00690,0.00,53.78,R,Allied Healthcare,No
Http://opendatacommunities.org/id/metropolitan-district-council/leeds,Leeds City Council,31/08/2016,Public Health,Public Health,Third Party Payments,Public Health Commissioned Services,526,02-Aug-2016,1608-00691,0.00,519.31,R,Allied Pharmacy Ltd,No
Http://opendatacommunities.org/id/metropolitan-district-council/leeds,Leeds City Council,31/08/2016,Central & Corporate,Democratic Services,Transport,Fuel (Non LCC Supplies),321,08-Aug-2016,1608-00692,0.00,288.63,R,Allstar Business Solutions Ltd,No
Http://opendatacommunities.org/id/metropolitan-district-council/leeds,Leeds City Council,31/08/2016,Childrens Services,Learning Skills & Universal,Transport,Fuel (Non LCC Supplies),321,08-Aug-2016,1608-00693,0.00,1991.99,R,Allstar Business Solutions Ltd,No
Http://opendatacommunities.org/id/metropolitan-district-council/leeds,Leeds City Council,31/08/2016,Environment & Housing,Parks and Countryside,Transport,Fuel (Non LCC Supplies),321,08-Aug-2016,1608-00694,0.00,60.69,R,Allstar Business Solutions Ltd,No
Http://opendatacommunities.org/id/metropolitan-district-council/leeds,Leeds City Council,31/08/2016,City Development,Highways,Transport,Fuel (Non LCC Supplies),321,08-Aug-2016,1608-00695,0.00,403.66,R,Allstar Business Solutions Ltd,No
Http://opendatacommunities.org/id/metropolitan-district-council/leeds,Leeds City Council,31/08/2016,Environment & Housing,Waste Management,Transport,Fuel (Non LCC Supplies),321,08-Aug-2016,1608-00696,0.00,1.20,R,Allstar Business Solutions Ltd,No
Http://opendatacommunities.org/id/metropolitan-district-council/leeds,Leeds City Council,31/08/2016,Childrens Services,Safeguarding Targeted & Specialist,Support Services,Legal Disbursements,411,05-Aug-2016,1608-00697,0.00,340.00,R,Alpha Biolaboratories Limited,No
Http://opendatacommunities.org/id/metropolitan-district-council/leeds,Leeds City Council,31/08/2016,Childrens Services,Safeguarding Targeted & Specialist,Support Services,Legal Disbursements,411,12-Aug-2016,1608-00698,0.00,130.00,R,Alpha Biolaboratories Limited,No
Http://opendatacommunities.org/id/metropolitan-district-council/leeds,Leeds City Council,31/08/2016,Childrens Services,Safeguarding Targeted & Specialist,Support Services,Legal Disbursements,411,18-Aug-2016,1608-00699,0.00,78.75,R,Alpha Biolaboratories Limited,No
Http://opendatacommunities.org/id/metropolitan-district-council/leeds,Leeds City Council,31/08/2016,Childrens Services,Safeguarding Targeted & Specialist,Support Services,Legal Disbursements,411,18-Aug-2016,1608-00700,0.00,148.33,R,Alpha Biolaboratories Limited,No
Http://opendatacommunities.org/id/metropolitan-district-council/leeds,Leeds City Council,31/08/2016,Childrens Services,Safeguarding Targeted & Specialist,Support Services,Legal Disbursements,411,18-Aug-2016,1608-00701,0.00,105.00,R,Alpha Biolaboratories Limited,No
Http://opendatacommunities.org/id/metropolitan-district-council/leeds,Leeds City Council,31/08/2016,Childrens Services,Safeguarding Targeted & Specialist,Support Services,Legal Disbursements,411,18-Aug-2016,1608-00702,0.00,178.13,R,Alpha Biolaboratories Limited,No
Http://opendatacommunities.org/id/metropolitan-district-council/leeds,Leeds City Council,31/08/2016,Childrens Services,Safeguarding Targeted & Specialist,Support Services,Legal Disbursements,411,18-Aug-2016,1608-00703,0.00,105.00,R,Alpha Biolaboratories Limited,No
Http://opendatacommunities.org/id/metropolitan-district-council/leeds,Leeds City Council,31/08/2016,Childrens Services,Safeguarding Targeted & Specialist,Support Services,Legal Disbursements,411,18-Aug-2016,1608-00704,0.00,545.00,R,Alpha Biolaboratories Limited,No
Http://opendatacommunities.org/id/metropolitan-district-council/leeds,Leeds City Council,31/08/2016,Childrens Services,Safeguarding Targeted & Specialist,Support Services,Legal Disbursements,411,25-Aug-2016,1608-00705,0.00,148.34,R,Alpha Biolaboratories Limited,No
Http://opendatacommunities.org/id/metropolitan-district-council/leeds,Leeds City Council,31/08/2016,Childrens Services,Safeguarding Targeted & Specialist,Support Services,Legal Disbursements,411,26-Aug-2016,1608-00706,0.00,165.00,R,Alpha Biolaboratories Limited,No
Http://opendatacommunities.org/id/metropolitan-district-council/leeds,Leeds City Council,31/08/2016,City Development,Recreation,Capital,Construction,3,10-Aug-2016,1608-00707,0.00,18543.88,C,Alternative Windows (Leeds) Ltd,No
Http://opendatacommunities.org/id/metropolitan-district-council/leeds,Leeds City Council,31/08/2016,Childrens Services,Learning Skills & Universal  ,Supplies and Services,Admission Charges To Schools,283,13-Jul-2016,1608-00708,0.00,310.00,R,Alton Towers Park,Yes
Http://opendatacommunities.org/id/metropolitan-district-council/leeds,Leeds City Council,31/08/2016,Childrens Services,Learning Skills & Universal  ,Supplies and Services,Admission Charges To Schools,283,13-Jul-2016,1608-00709,0.00,322.92,R,Alton Towers Park,Yes
Http://opendatacommunities.org/id/metropolitan-district-council/leeds,Leeds City Council,31/08/2016,City Development,Planning & Sustainable Development,Support Services,Professional Legal Services Charges,410,26-Aug-2016,1608-00710,0.00,3875.00,R,Alun Alesbury,No
Http://opendatacommunities.org/id/metropolitan-district-council/leeds,Leeds City Council,31/08/2016,City Development,Economic Development,Supplies and Services,Other Hired And Contracted Services,265,05-Aug-2016,1608-00711,0.00,1750.00,R,Am:Pm Hotels Ltd,No
Http://opendatacommunities.org/id/metropolitan-district-council/leeds,Leeds City Council,31/08/2016,City Development,Highways,Supplies and Services,Advertising,211,30-Aug-2016,1608-00712,0.00,4000.00,R,Ama Ltd,No
Http://opendatacommunities.org/id/metropolitan-district-council/leeds,Leeds City Council,31/08/2016,Childrens Services,Partnership Development & Leadership,Employees,Training & Development,70,26-Aug-2016,1608-00713,0.00,1322.20,R,REDACTED PERSONAL DATA,No
Http://opendatacommunities.org/id/metropolitan-district-council/leeds,Leeds City Council,31/08/2016,Insurance,Insurance,Supplies and Services,Insurance Claims,248,03-Aug-2016,1608-00714,0.00,150.00,R,REDACTED PERSONAL DATA,No
Http://opendatacommunities.org/id/metropolitan-district-council/leeds,Leeds City Council,31/08/2016,City Development,Recreation,Income,Swimming Bath Charges,923,10-Aug-2016,1608-00715,0.00,165.60,R,REDACTED PERSONAL DATA,No
Http://opendatacommunities.org/id/metropolitan-district-council/leeds,Leeds City Council,31/08/2016,Environment & Housing,Leeds Building Services,Supplies and Services,Operational Materials,205,01-Aug-2016,1608-00716,0.00,3.88,R,Amari Plastics Plc,No
Http://opendatacommunities.org/id/metropolitan-district-council/leeds,Leeds City Council,31/08/2016,Environment & Housing,Leeds Building Services,Supplies and Services,Operational Materials,205,05-Aug-2016,1608-00717,0.00,25.20,R,Amari Plastics Plc,No
Http://opendatacommunities.org/id/metropolitan-district-council/leeds,Leeds City Council,31/08/2016,Environment & Housing,Leeds Building Services,Supplies and Services,Operational Materials,205,18-Aug-2016,1608-00718,0.00,27.54,R,Amari Plastics Plc,No
Http://opendatacommunities.org/id/metropolitan-district-council/leeds,Leeds City Council,31/08/2016,Citizens and Communities,Communities,Supplies and Services,'Well Being' Large Grants Projects,230,22-Aug-2016,1608-00719,0.00,120.00,R,Amazing Face,No
Http://opendatacommunities.org/id/metropolitan-district-council/leeds,Leeds City Council,31/08/2016,Childrens Services,Safeguarding Targeted & Specialist,Supplies and Services,Hospitality,255,31-Aug-2016,1608-00720,0.00,525.00,R,Amazing Group,No
Http://opendatacommunities.org/id/metropolitan-district-council/leeds,Leeds City Council,31/08/2016,City Development,Recreation,Supplies and Services,Operational Furniture And Equipment,203,03-Aug-2016,1608-00721,0.00,108.60,R,Amazon Leisure Uk Ltd,No
Http://opendatacommunities.org/id/metropolitan-district-council/leeds,Leeds City Council,31/08/2016,City Development,Recreation,Supplies and Services,Operational Furniture And Equipment,203,03-Aug-2016,1608-00722,0.00,1038.92,R,Amazon Leisure Uk Ltd,No
Http://opendatacommunities.org/id/metropolitan-district-council/leeds,Leeds City Council,31/08/2016,City Development,Recreation,Supplies and Services,Operational Furniture And Equipment,203,03-Aug-2016,1608-00723,0.00,209.91,R,Amazon Leisure Uk Ltd,No
Http://opendatacommunities.org/id/metropolitan-district-council/leeds,Leeds City Council,31/08/2016,City Development,Recreation,Supplies and Services,Operational Furniture And Equipment,203,03-Aug-2016,1608-00724,0.00,127.50,R,Amazon Leisure Uk Ltd,No
Http://opendatacommunities.org/id/metropolitan-district-council/leeds,Leeds City Council,31/08/2016,City Development,Recreation,Supplies and Services,Operational Furniture And Equipment,203,03-Aug-2016,1608-00725,0.00,500.16,R,Amazon Leisure Uk Ltd,No
Http://opendatacommunities.org/id/metropolitan-district-council/leeds,Leeds City Council,31/08/2016,City Development,Recreation,Supplies and Services,Operational Furniture And Equipment,203,03-Aug-2016,1608-00726,0.00,59.67,R,Amazon Leisure Uk Ltd,No
Http://opendatacommunities.org/id/metropolitan-district-council/leeds,Leeds City Council,31/08/2016,City Development,Recreation,Supplies and Services,Operational Furniture And Equipment,203,03-Aug-2016,1608-00727,0.00,276.60,R,Amazon Leisure Uk Ltd,No
Http://opendatacommunities.org/id/metropolitan-district-council/leeds,Leeds City Council,31/08/2016,City Development,Recreation,Supplies and Services,Operational Furniture And Equipment,203,04-Aug-2016,1608-00728,0.00,105.00,R,Amazon Leisure Uk Ltd,No
Http://opendatacommunities.org/id/metropolitan-district-council/leeds,Leeds City Council,31/08/2016,City Development,Recreation,Supplies and Services,Operational Furniture And Equipment,203,05-Aug-2016,1608-00729,0.00,82.59,R,Amazon Leisure Uk Ltd,No
Http://opendatacommunities.org/id/metropolitan-district-council/leeds,Leeds City Council,31/08/2016,City Development,Recreation,Supplies and Services,Operational Furniture And Equipment,203,05-Aug-2016,1608-00730,0.00,138.75,R,Amazon Leisure Uk Ltd,No
Http://opendatacommunities.org/id/metropolitan-district-council/leeds,Leeds City Council,31/08/2016,City Development,Recreation,Supplies and Services,Operational Furniture And Equipment,203,10-Aug-2016,1608-00731,0.00,184.05,R,Amazon Leisure Uk Ltd,No
Http://opendatacommunities.org/id/metropolitan-district-council/leeds,Leeds City Council,31/08/2016,City Development,Recreation,Supplies and Services,Operational Furniture And Equipment,203,12-Aug-2016,1608-00732,0.00,9858.25,R,Amazon Leisure Uk Ltd,No
Http://opendatacommunities.org/id/metropolitan-district-council/leeds,Leeds City Council,31/08/2016,City Development,Recreation,Supplies and Services,Operational Furniture And Equipment,203,17-Aug-2016,1608-00733,0.00,2578.33,R,Amazon Leisure Uk Ltd,No
Http://opendatacommunities.org/id/metropolitan-district-council/leeds,Leeds City Council,31/08/2016,City Development,Recreation,Supplies and Services,Operational Furniture And Equipment,203,19-Aug-2016,1608-00734,0.00,105.00,R,Amazon Leisure Uk Ltd,No
Http://opendatacommunities.org/id/metropolitan-district-council/leeds,Leeds City Council,31/08/2016,City Development,Recreation,Supplies and Services,Operational Furniture And Equipment,203,19-Aug-2016,1608-00735,0.00,739.34,R,Amazon Leisure Uk Ltd,No
Http://opendatacommunities.org/id/metropolitan-district-council/leeds,Leeds City Council,31/08/2016,City Development,Recreation,Supplies and Services,Operational Furniture And Equipment,203,19-Aug-2016,1608-00736,0.00,927.05,R,Amazon Leisure Uk Ltd,No
Http://opendatacommunities.org/id/metropolitan-district-council/leeds,Leeds City Council,31/08/2016,City Development,Recreation,Supplies and Services,Operational Furniture And Equipment,203,19-Aug-2016,1608-00737,0.00,75.40,R,Amazon Leisure Uk Ltd,No
Http://opendatacommunities.org/id/metropolitan-district-council/leeds,Leeds City Council,31/08/2016,City Development,Recreation,Supplies and Services,Operational Furniture And Equipment,203,19-Aug-2016,1608-00738,0.00,2500.61,R,Amazon Leisure Uk Ltd,No
Http://opendatacommunities.org/id/metropolitan-district-council/leeds,Leeds City Council,31/08/2016,City Development,Recreation,Supplies and Services,Operational Furniture And Equipment,203,19-Aug-2016,1608-00739,0.00,1058.00,R,Amazon Leisure Uk Ltd,No
Http://opendatacommunities.org/id/metropolitan-district-council/leeds,Leeds City Council,31/08/2016,City Development,Recreation,Supplies and Services,Operational Furniture And Equipment,203,19-Aug-2016,1608-00740,0.00,132.68,R,Amazon Leisure Uk Ltd,No
Http://opendatacommunities.org/id/metropolitan-district-council/leeds,Leeds City Council,31/08/2016,City Development,Recreation,Supplies and Services,Operational Furniture And Equipment,203,23-Aug-2016,1608-00741,0.00,178.58,R,Amazon Leisure Uk Ltd,No
Http://opendatacommunities.org/id/metropolitan-district-council/leeds,Leeds City Council,31/08/2016,City Development,Recreation,Supplies and Services,Operational Furniture And Equipment,203,24-Aug-2016,1608-00742,0.00,491.06,R,Amazon Leisure Uk Ltd,No
Http://opendatacommunities.org/id/metropolitan-district-council/leeds,Leeds City Council,31/08/2016,City Development,Recreation,Supplies and Services,Operational Furniture And Equipment,203,24-Aug-2016,1608-00743,0.00,743.06,R,Amazon Leisure Uk Ltd,No
Http://opendatacommunities.org/id/metropolitan-district-council/leeds,Leeds City Council,31/08/2016,City Development,Recreation,Supplies and Services,Operational Furniture And Equipment,203,26-Aug-2016,1608-00744,0.00,116.25,R,Amazon Leisure Uk Ltd,No
Http://opendatacommunities.org/id/metropolitan-district-council/leeds,Leeds City Council,31/08/2016,City Development,Recreation,Supplies and Services,Operational Furniture And Equipment,203,26-Aug-2016,1608-00745,0.00,138.75,R,Amazon Leisure Uk Ltd,No
Http://opendatacommunities.org/id/metropolitan-district-council/leeds,Leeds City Council,31/08/2016,City Development,Recreation,Supplies and Services,Operational Furniture And Equipment,203,31-Aug-2016,1608-00746,0.00,31.80,R,Amazon Leisure Uk Ltd,No
Http://opendatacommunities.org/id/metropolitan-district-council/leeds,Leeds City Council,31/08/2016,City Development,Recreation,Supplies and Services,Operational Furniture And Equipment,203,31-Aug-2016,1608-00747,0.00,809.04,R,Amazon Leisure Uk Ltd,No
Http://opendatacommunities.org/id/metropolitan-district-council/leeds,Leeds City Council,31/08/2016,Childrens Services,Safeguarding Targeted & Specialist  ,Third Party Payments,Section 17,551,18-Jul-2016,1608-00748,0.00,-79.00,R,Amazon Prime,Yes
Http://opendatacommunities.org/id/metropolitan-district-council/leeds,Leeds City Council,31/08/2016,City Development,Libraries  Arts & Heritage  ,Supplies and Services,Operational Materials,205,08-Jul-2016,1608-00749,0.00,24.50,R,Amazon Svcs Europe sar,Yes
Http://opendatacommunities.org/id/metropolitan-district-council/leeds,Leeds City Council,31/08/2016,City Development,Libraries  Arts & Heritage  ,Supplies and Services,Books & Audio-Visual Materials,206,14-Jul-2016,1608-00750,0.00,3.78,R,Amazon Svcs Europe sar,Yes
Http://opendatacommunities.org/id/metropolitan-district-council/leeds,Leeds City Council,31/08/2016,Childrens Services,Partnership Development & Leadership  ,Employees,Best Value Training,70,20-Jul-2016,1608-00751,0.00,155.60,R,Amazon Svcs Europe sar,Yes
Http://opendatacommunities.org/id/metropolitan-district-council/leeds,Leeds City Council,31/08/2016,City Development,Libraries  Arts & Heritage  ,Supplies and Services,Books & Audio-Visual Materials,206,28-Jul-2016,1608-00752,0.00,5.67,R,Amazon Svcs Europe sar,Yes
Http://opendatacommunities.org/id/metropolitan-district-council/leeds,Leeds City Council,31/08/2016,Environment & Housing,Environmental Action (City Centre)  ,Supplies and Services,Operational Furniture And Equipment,203,30-Jun-2016,1608-00753,0.00,31.15,R,Amazon UK Marketplace,Yes
Http://opendatacommunities.org/id/metropolitan-district-council/leeds,Leeds City Council,31/08/2016,City Development,Libraries  Arts & Heritage  ,Supplies and Services,Books & Audio-Visual Materials,206,30-Jun-2016,1608-00754,0.00,11.02,R,Amazon UK Marketplace,Yes
Http://opendatacommunities.org/id/metropolitan-district-council/leeds,Leeds City Council,31/08/2016,City Development,Libraries  Arts & Heritage  ,Supplies and Services,Operational Materials,205,30-Jun-2016,1608-00755,0.00,149.97,R,Amazon UK Marketplace,Yes
Http://opendatacommunities.org/id/metropolitan-district-council/leeds,Leeds City Council,31/08/2016,City Development,Libraries  Arts & Heritage  ,Supplies and Services,Operational Materials,205,30-Jun-2016,1608-00756,0.00,2.53,R,Amazon UK Marketplace,Yes
Http://opendatacommunities.org/id/metropolitan-district-council/leeds,Leeds City Council,31/08/2016,City Development,Libraries  Arts & Heritage  ,Supplies and Services,Operational Materials,205,30-Jun-2016,1608-00757,0.00,1.99,R,Amazon UK Marketplace,Yes
Http://opendatacommunities.org/id/metropolitan-district-council/leeds,Leeds City Council,31/08/2016,City Development,Libraries  Arts & Heritage  ,Supplies and Services,Operational Materials,205,30-Jun-2016,1608-00758,0.00,7.30,R,Amazon UK Marketplace,Yes
Http://opendatacommunities.org/id/metropolitan-district-council/leeds,Leeds City Council,31/08/2016,City Development,Libraries  Arts & Heritage  ,Supplies and Services,Operational Materials,205,30-Jun-2016,1608-00759,0.00,17.00,R,Amazon UK Marketplace,Yes
Http://opendatacommunities.org/id/metropolitan-district-council/leeds,Leeds City Council,31/08/2016,City Development,Libraries  Arts & Heritage  ,Supplies and Services,Operational Materials,205,30-Jun-2016,1608-00760,0.00,234.00,R,Amazon UK Marketplace,Yes
Http://opendatacommunities.org/id/metropolitan-district-council/leeds,Leeds City Council,31/08/2016,City Development,Libraries  Arts & Heritage  ,Supplies and Services,Operational Materials,205,30-Jun-2016,1608-00761,0.00,6.48,R,Amazon UK Marketplace,Yes
Http://opendatacommunities.org/id/metropolitan-district-council/leeds,Leeds City Council,31/08/2016,City Development,Libraries  Arts & Heritage  ,Supplies and Services,Operational Materials,205,30-Jun-2016,1608-00762,0.00,10.41,R,Amazon UK Marketplace,Yes
Http://opendatacommunities.org/id/metropolitan-district-council/leeds,Leeds City Council,31/08/2016,Adult Social Care,Services For Older People - 65 And Over  ,Supplies and Services,Office Consumables,210,30-Jun-2016,1608-00763,0.00,26.25,R,Amazon UK Marketplace,Yes
Http://opendatacommunities.org/id/metropolitan-district-council/leeds,Leeds City Council,31/08/2016,City Development,Libraries  Arts & Heritage  ,Supplies and Services,Books & Audio-Visual Materials,206,30-Jun-2016,1608-00764,0.00,19.12,R,Amazon UK Marketplace,Yes
Http://opendatacommunities.org/id/metropolitan-district-council/leeds,Leeds City Council,31/08/2016,City Development,Libraries  Arts & Heritage  ,Supplies and Services,Operational Materials,205,30-Jun-2016,1608-00765,0.00,1.88,R,Amazon UK Marketplace,Yes
Http://opendatacommunities.org/id/metropolitan-district-council/leeds,Leeds City Council,31/08/2016,City Development,Libraries  Arts & Heritage  ,Supplies and Services,Operational Materials,205,30-Jun-2016,1608-00766,0.00,4.86,R,Amazon UK Marketplace,Yes
